date,department/service,beneficiary,amount,summary of purpose,category,transaction number, SAP vendor number
01.12.2018,CHIEF EXECUTIVE,SHAPE SPACE LONDON TLD,"2,750.00",CAPITAL PS (REGEN),CONST'N MAIN CONTRACT - NON CERTIFICATED,5902330996,1000081907
01.12.2018,CHIEF EXECUTIVE'S OFFICE,THE HANDLEY PARTNERSHIP LTD,258,HERNE HILL,GRANTS,5902330876,1000072511
01.12.2018,COMMUNITIES,SOUTHWARK CATHEDRAL,632,MAYORAL SUPPORT,HIRE OF ROOMS/HALLS,5902331758,1000063220
01.12.2018,COMMUNITIES,CANON UK LTD,807.56,TENANTS FUND,OP LEASE/HIRE CHARGES:PLANT/EQUIP/FURNIT,5902332290,1000015046
01.12.2018,EXTERNAL AFFAIRS,GOVDELIVERY EUROPE LTD,"2,185.00",MEDIA,SUBSCRIPTIONS,5902331655,1000076351
01.12.2018,F & C S EXCLUDING CORPORATE BUDGETS,ARCUS GLOBAL LTD,795,ADMINISTRATIVE SUPPORT,SOFTWARE,5902332155,1000080110
01.12.2018,LEISURE DIRECTORATE,CONSTANTINE LIMITED,515,HERITAGE,OTHER CONTRACTORS,5902331190,11202702
01.12.2018,PROPERTY SERVICES,ACCESS LIFTS LTD,749,CPHA  MANAGED PROPERTIES,BUILDING R&M,5902330966,1000077559
01.12.2018,PROPERTY SERVICES,KENT COUNTY COUNCIL - LASER,944.62,KENNINGTON WORKSHOPS,ELECTRICITY,5902331015,1000012926
01.12.2018,PROPERTY SERVICES,AXIS SECURITY SERVICES LTD,281,KENNINGTON WORKSHOPS,SECURITY SERVICES,5902331863,1000035320
01.12.2018,REGENERATION,BNP PARIBAS REAL ESTATE ADVISORY & PROPERTY MANAGEMENT,"8,935.00",14-20 SHAND STREET,PROFESSIONAL FEES,5902331895,1000053153
02.12.2018,ADULT SOCIAL CARE,KENT COUNTY COUNCIL - LASER,"1,617.93",SOUTHWARK RESOURCE CENTRE,ELECTRICITY,5902331385,1000012926
02.12.2018,CHIEF EXECUTIVE,CYCLEHOOP LTD,"2,440.00",CAPITAL PS (REGEN),CONSTRUCTION,5902331325,1000057894
02.12.2018,ENVIRONMENT DIRECTORATE,BELL BRUSH COMPANY,794.2,MANAGEMENT TEAM,MATERIALS,5902331165,1259776
02.12.2018,ENVIRONMENT DIRECTORATE,KENT COUNTY COUNCIL - LASER,"2,733.18",MULTI STOREY CAR PARK,ELECTRICITY,5902331730,1000012926
02.12.2018,ENVIRONMENT DIRECTORATE,GRADKO INTERNATIONAL LTD,354.25,POLLUTION CONTROL,STATIONERY,5902331789,1000068330
02.12.2018,ENVIRONMENT DIRECTORATE,SOUTHWARK NEWSPAPER LTD,276,STREET WORKS OVERHEADS,MARKETING & PUBLICITY SERVICES,5902331766,1556957
02.12.2018,ENVIRONMENT DIRECTORATE,SOUTHWARK NEWSPAPER LTD,276,STREET WORKS OVERHEADS,MARKETING & PUBLICITY SERVICES,5902331769,1556957
02.12.2018,ENVIRONMENT DIRECTORATE,SOUTHWARK NEWSPAPER LTD,288,STREET WORKS OVERHEADS,MARKETING & PUBLICITY SERVICES,5902331770,1556957
02.12.2018,ENVIRONMENT DIRECTORATE,SOUTHWARK NEWSPAPER LTD,288,STREET WORKS OVERHEADS,MARKETING & PUBLICITY SERVICES,5902332104,1556957
02.12.2018,ENVIRONMENT DIRECTORATE,SOUTHWARK NEWSPAPER LTD,300,STREET WORKS OVERHEADS,MARKETING & PUBLICITY SERVICES,5902331771,1556957
02.12.2018,ENVIRONMENT DIRECTORATE,SOUTHWARK NEWSPAPER LTD,300,STREET WORKS OVERHEADS,MARKETING & PUBLICITY SERVICES,5902331774,1556957
02.12.2018,ENVIRONMENT DIRECTORATE,SOUTHWARK NEWSPAPER LTD,300,STREET WORKS OVERHEADS,MARKETING & PUBLICITY SERVICES,5902331778,1556957
02.12.2018,ENVIRONMENT DIRECTORATE,SOUTHWARK NEWSPAPER LTD,336,STREET WORKS OVERHEADS,MARKETING & PUBLICITY SERVICES,5902331768,1556957
02.12.2018,HOUSING HRA,SOUTHWARK NEWSPAPER LTD,"1,968.00",CAPITAL PS (REGEN),LAND & BUILDINGS ACQUISITION FEES,5902331786,1556957
02.12.2018,LEISURE DIRECTORATE,KENT COUNTY COUNCIL - LASER,"1,369.39",CREMATORIUM,ELECTRICITY,5902332115,1000012926
02.12.2018,LEISURE DIRECTORATE,KENT COUNTY COUNCIL - LASER,"5,430.34",SDM BUDGET,ELECTRICITY,5902331479,1000012926
02.12.2018,MODERNISATION HGF,KENT COUNTY COUNCIL - LASER,684.74,7 TALFOURD ROAD,ELECTRICITY,5902331448,1000012926
02.12.2018,MODERNISATION HGF,KENT COUNTY COUNCIL - LASER,"1,476.40",BOURNEMOUTH GROVE,ELECTRICITY,5902331457,1000012926
02.12.2018,MODERNISATION HGF,KENT COUNTY COUNCIL - LASER,"1,798.72",BOURNEMOUTH GROVE,ELECTRICITY,5902331452,1000012926
02.12.2018,MODERNISATION HGF,KENT COUNTY COUNCIL - LASER,"8,504.58",QUEENS RD 1 (BLOCK F),ELECTRICITY,5902331433,1000012926
02.12.2018,MODERNISATION HGF,KENT COUNTY COUNCIL - LASER,"3,049.83",QUEENS ROAD 2 (BLOCK J),ELECTRICITY,5902331440,1000012926
02.12.2018,PROPERTY SERVICES,KENT COUNTY COUNCIL - LASER,"1,555.43",TOWER WORKSHOPS,ELECTRICITY,5902332295,1000012926
02.12.2018,REVENUES AND BENEFITS,CAPITA SECURE INFORMATION,"7,975.00",GM SAP,SOFTWARE,5902331841,1000070739
03.12.2018,CENTRAL FUNCTIONS,COMPLETE SECURITY INSTALLATIONS LTD,553,GENERAL HOLDING AC,BUILDING R&M,5902332144,1000081899
03.12.2018,ENVIRONMENT AND LEISURE,MORGANICO,"1,350.00",CAPITAL PS (LEISURE),CONST'N MAIN CONTRACT - NON CERTIFICATED,5902331046,1000061514
03.12.2018,F & C S EXCLUDING CORPORATE BUDGETS,DSI BILLING SERVICES LTD,"2,049.57",ADMINISTRATIVE SUPPORT,POSTAGES,5902332179,1000058640
03.12.2018,F & C S EXCLUDING CORPORATE BUDGETS,BDO LLP,"22,037.25",INTERNAL AUDIT CONTRACTS,PAYMENTS FOR FINANCIAL SERVICES,5902332218,1000057898
03.12.2018,F & C S EXCLUDING CORPORATE BUDGETS,BDO LLP,"2,083.33",RISK ADMIN,PROFESSIONAL FEES,5902331754,1000057898
03.12.2018,HOUSING HRA,WESSEX LIFT CO LTD,"-9,443.50",CAPITAL PS (HRA),CONST'N MAIN CONTRACT - NON CERTIFICATED,5902332626,3000001207
03.12.2018,HOUSING HRA,WESSEX LIFT CO LTD,"9,443.50",CAPITAL PS (HRA),CONST'N MAIN CONTRACT - NON CERTIFICATED,5902332613,3000001207
03.12.2018,MODERNISATION HGF,KENT COUNTY COUNCIL - LASER,"48,928.03",160 TOOLEY ST.,ELECTRICITY,5902331426,1000012926
04.12.2018,ADULT SOCIAL CARE,PAULWAYS KENNELS,350,HOSPITAL DISCHARGE TEAM,MISCELLANEOUS EXPENSES,5902332432,1068767
04.12.2018,ADULT SOCIAL CARE,MEDEQUIP ASSISTIVE TECHNOLOGY LTD,732.6,ICES CONTRACT,EQUIPMENT PURCHASE & REPAIR,5902332494,1000062775
04.12.2018,ADULT SOCIAL CARE,MEDEQUIP ASSISTIVE TECHNOLOGY LTD,732.6,ICES CONTRACT,EQUIPMENT PURCHASE & REPAIR,5902332495,1000062775
04.12.2018,ADULT SOCIAL CARE,MEDEQUIP ASSISTIVE TECHNOLOGY LTD,732.6,ICES CONTRACT,EQUIPMENT PURCHASE & REPAIR,5902332498,1000062775
04.12.2018,ADULT SOCIAL CARE,MEDEQUIP ASSISTIVE TECHNOLOGY LTD,"157,554.52",ICES CONTRACT,EQUIPMENT PURCHASE & REPAIR,5902332493,1000062775
04.12.2018,ADULT SOCIAL CARE,CYGNET CARE SERVICES LTD,"56,348.11",LD LTS 18-64,RESIDENTIAL CARE,2102894687,1000050432
04.12.2018,ADULT SOCIAL CARE,INSPIRE SOCIAL CARE LTD,617.6,SAFEGUARDING TEAM,OTHER CONTRACTORS,5902332700,1000081757
04.12.2018,ADULT SOCIAL CARE,INSPIRE SOCIAL CARE LTD,"1,022.00",SAFEGUARDING TEAM,OTHER CONTRACTORS,5902332668,1000081757
04.12.2018,ADULT SOCIAL CARE,INSPIRE SOCIAL CARE LTD,"1,033.20",SAFEGUARDING TEAM,OTHER CONTRACTORS,5902332697,1000081757
04.12.2018,ADULT SOCIAL CARE,INSPIRE SOCIAL CARE LTD,"1,649.80",SAFEGUARDING TEAM,OTHER CONTRACTORS,5902332664,1000081757
04.12.2018,ADULT SOCIAL CARE,INSPIRE SOCIAL CARE LTD,"1,690.40",SAFEGUARDING TEAM,OTHER CONTRACTORS,5902332681,1000081757
04.12.2018,ADULT SOCIAL CARE,INSPIRE SOCIAL CARE LTD,"1,859.60",SAFEGUARDING TEAM,OTHER CONTRACTORS,5902332677,1000081757
04.12.2018,ADULT SOCIAL CARE,GLS EDUCATIONAL SUPPLIES LTD,678.96,SOUTHWARK RESOURCE CENTRE,"CLOTHING, UNIFORMS & LAUNDRY",5902332530,1318282
04.12.2018,ASSET MANAGEMENT,PPROPERTYPLACEBOOK LTD,525,DISREPAIR,BUILDING R&M,5902332670,1000077817
04.12.2018,ASSET MANAGEMENT,CHESHIRE ESTATE AND LEGAL LTD,"1,020.00",DISREPAIR,BUILDING R&M,5902332644,1000081908
04.12.2018,ASSET MANAGEMENT,CHESHIRE ESTATE AND LEGAL LTD,"4,150.00",DISREPAIR,BUILDING R&M,5902332644,1000081908
04.12.2018,ASSET MANAGEMENT,SANDERSONS BUILDING SERVICES LTD,"1,398.63",R&M CONTRACTS (SOUTH),BUILDING R&M,2102894684,3000002065
04.12.2018,ASSET MANAGEMENT,SANDERSONS BUILDING SERVICES LTD,"1,686.48",R&M CONTRACTS (SOUTH),BUILDING R&M,2102894678,3000002065
04.12.2018,ASSET MANAGEMENT,SANDERSONS BUILDING SERVICES LTD,"2,041.05",R&M CONTRACTS (SOUTH),BUILDING R&M,2102894674,3000002065
04.12.2018,ASSET MANAGEMENT,SANDERSONS BUILDING SERVICES LTD,"2,520.87",R&M CONTRACTS (SOUTH),BUILDING R&M,2102894683,3000002065
04.12.2018,ASSET MANAGEMENT,SANDERSONS BUILDING SERVICES LTD,"2,624.86",R&M CONTRACTS (SOUTH),BUILDING R&M,2102894675,3000002065
04.12.2018,ASSET MANAGEMENT,SANDERSONS BUILDING SERVICES LTD,"2,846.15",R&M CONTRACTS (SOUTH),BUILDING R&M,2102894676,3000002065
04.12.2018,ASSET MANAGEMENT,SANDERSONS BUILDING SERVICES LTD,"3,906.41",R&M CONTRACTS (SOUTH),BUILDING R&M,2102894682,3000002065
04.12.2018,ASSET MANAGEMENT,SANDERSONS BUILDING SERVICES LTD,"4,345.20",R&M CONTRACTS (SOUTH),BUILDING R&M,2102894673,3000002065
04.12.2018,ASSET MANAGEMENT,SANDERSONS BUILDING SERVICES LTD,"4,392.40",R&M CONTRACTS (SOUTH),BUILDING R&M,2102894680,3000002065
04.12.2018,ASSET MANAGEMENT,SANDERSONS BUILDING SERVICES LTD,"5,259.66",R&M CONTRACTS (SOUTH),BUILDING R&M,2102894679,3000002065
04.12.2018,ASSET MANAGEMENT,SANDERSONS BUILDING SERVICES LTD,"5,597.90",R&M CONTRACTS (SOUTH),BUILDING R&M,2102894677,3000002065
04.12.2018,ASSET MANAGEMENT,SANDERSONS BUILDING SERVICES LTD,"7,080.30",R&M CONTRACTS (SOUTH),BUILDING R&M,2102894681,3000002065
04.12.2018,CENTRAL FUNCTIONS,ROWANWOOD PROFESSIONAL SERVICES LTD,"1,000.00",ASSET MANAGEMENT SYSTEM,CONSULTANTS SERVICES,5902332686,1000080531
04.12.2018,CENTRAL FUNCTIONS,ROWANWOOD PROFESSIONAL SERVICES LTD,"1,200.00",ASSET MANAGEMENT SYSTEM,CONSULTANTS SERVICES,5902332683,1000080531
04.12.2018,CENTRAL FUNCTIONS,ROWANWOOD PROFESSIONAL SERVICES LTD,"1,900.00",ASSET MANAGEMENT SYSTEM,CONSULTANTS SERVICES,5902332684,1000080531
04.12.2018,CHIEF EXECUTIVE,BT PAYPHONES PLANNING,"9,222.49",CAPITAL PS (REGEN),CONSTRUCTION MAIN CONTRACT,5902332521,1000029252
04.12.2018,CHILDREN'S SERVICES,CONTACT PROFESSIONALS,406.4,CARE PRACTICE GROUP SET C,OTHER PAYMENTS FOR CLIENTS,5902332672,1000057263
04.12.2018,CHILDREN'S SERVICES,TFL TELESALES / OYSTER FULFILMENT,"1,440.00",CENTRAL COSTS - SEN,PUBLIC TRANSPORT,5902332690,1000059727
04.12.2018,CHILDREN'S SERVICES,TAYLOR CONWAY LTD,"7,425.00",CLINICAL SERVICE,PROFESSIONAL FEES,5902332667,1000080955
04.12.2018,CHILDREN'S SERVICES,ROYAL BOROUGH OF KENSINGTON & CHELSEA,"19,220.50",EDUC & PARTICIPATION,SOFTWARE,5902332658,1000033864
04.12.2018,CHILDREN'S SERVICES,YOUNG FUTURES,"2,000.00",LEAVING CARE GRANT,OTHER PAYMENTS FOR CLIENTS,5902332680,1000059563
04.12.2018,CHILDREN'S SERVICES,JORDAN XAVIER LTD,332.14,S24 CLA,EXTERNAL AGENCIES AND BODIES,5902332656,1000081470
04.12.2018,CHILDREN'S SERVICES,JORDAN XAVIER LTD,332.14,S24 CLA,EXTERNAL AGENCIES AND BODIES,5902332657,1000081470
04.12.2018,CHILDREN'S SERVICES,JORDAN XAVIER LTD,385.71,S24 CLA,EXTERNAL AGENCIES AND BODIES,5902332654,1000081470
04.12.2018,CHILDREN'S SERVICES,JORDAN XAVIER LTD,"1,992.86",S24 CLA,EXTERNAL AGENCIES AND BODIES,5902332656,1000081470
04.12.2018,CHILDREN'S SERVICES,JORDAN XAVIER LTD,"1,992.86",S24 CLA,EXTERNAL AGENCIES AND BODIES,5902332657,1000081470
04.12.2018,CHILDREN'S SERVICES,JORDAN XAVIER LTD,775,SEMI INDEPENDENT,EXTERNAL AGENCIES AND BODIES,5902332659,1000081470
04.12.2018,CHILDREN'S SERVICES,JORDAN XAVIER LTD,"1,992.86",SEMI INDEPENDENT,EXTERNAL AGENCIES AND BODIES,5902332659,1000081470
04.12.2018,CHILDREN'S SERVICES,RYE HILL ESTATE T&RA,750,THOMAS CALTON CENTRE,HIRE OF ROOMS/HALLS,5902332561,1000042261
04.12.2018,COMMISSIONING & CENTRAL,TCR TRAINING LTD,495,"ASC - PROVIDER SRVS, OTS AND BUS SUPPORT",TRAINING,5902332708,1000035836
04.12.2018,COMMUNITIES,ABOUT THIS VAN,"2,032.50",COMMUNITY COUNCILS TEAM,DELIVERY CHARGES,5902332508,1000039842
04.12.2018,COMMUNITIES,COOPER CLOSE CO-OPERATIVE LTD,"14,525.50",COOPERS CLOSE CO-OP,M&M ALLOWANCE CO-OPS,5902332693,1216346
04.12.2018,COMMUNITIES,EMS EVENTS LTD,616.5,MAYORAL SUPPORT,MISCELLANEOUS EXPENSES,5902332627,1000057494
04.12.2018,COMMUNITIES,PULLENS T&RA,"1,974.50",TENANTS FUND,GRANTS,5902332631,1000051379
04.12.2018,CORPORATE & DEMOCRATIC CORE,GERRI SCOTT LTD,"2,550.00",CORPORATE & DEPARTMENTAL EXP.,CONSULTANTS SERVICES,5902332565,1000081996
04.12.2018,CUSTOMER EXPERIENCE HGF,IMPERIAL COLLEGE PROJECTS LTD,276,CORONER'S,PROFESSIONAL FEES,5902332628,1000080106
04.12.2018,CUSTOMER EXPERIENCE HGF,IMPERIAL COLLEGE PROJECTS LTD,296,CORONER'S,PROFESSIONAL FEES,5902332604,1000080106
04.12.2018,CUSTOMER EXPERIENCE HGF,IMPERIAL COLLEGE PROJECTS LTD,368,CORONER'S,PROFESSIONAL FEES,5902332610,1000080106
04.12.2018,CUSTOMER EXPERIENCE HGF,IMPERIAL COLLEGE PROJECTS LTD,384,CORONER'S,PROFESSIONAL FEES,5902332630,1000080106
04.12.2018,CUSTOMER EXPERIENCE HGF,SG PATH LTD,415.8,CORONER'S,PROFESSIONAL FEES,5902332427,1000077883
04.12.2018,CUSTOMER EXPERIENCE HGF,SG PATH LTD,415.8,CORONER'S,PROFESSIONAL FEES,5902332428,1000077883
04.12.2018,CUSTOMER EXPERIENCE HGF,SG PATH LTD,415.8,CORONER'S,PROFESSIONAL FEES,5902332429,1000077883
04.12.2018,CUSTOMER EXPERIENCE HGF,SG PATH LTD,415.8,CORONER'S,PROFESSIONAL FEES,5902332431,1000077883
04.12.2018,CUSTOMER EXPERIENCE HGF,SG PATH LTD,415.8,CORONER'S,PROFESSIONAL FEES,5902332436,1000077883
04.12.2018,CUSTOMER EXPERIENCE HGF,SG PATH LTD,415.8,CORONER'S,PROFESSIONAL FEES,5902332437,1000077883
04.12.2018,CUSTOMER EXPERIENCE HGF,IMPERIAL COLLEGE PROJECTS LTD,420,CORONER'S,PROFESSIONAL FEES,5902332636,1000080106
04.12.2018,CUSTOMER EXPERIENCE HGF,IMPERIAL COLLEGE PROJECTS LTD,444,CORONER'S,PROFESSIONAL FEES,5902332597,1000080106
04.12.2018,CUSTOMER EXPERIENCE HGF,IMPERIAL COLLEGE PROJECTS LTD,460,CORONER'S,PROFESSIONAL FEES,5902332633,1000080106
04.12.2018,CUSTOMER EXPERIENCE HGF,IMPERIAL COLLEGE PROJECTS LTD,484,CORONER'S,PROFESSIONAL FEES,5902332599,1000080106
04.12.2018,CUSTOMER EXPERIENCE HGF,IMPERIAL COLLEGE PROJECTS LTD,520,CORONER'S,PROFESSIONAL FEES,5902332625,1000080106
04.12.2018,CUSTOMER EXPERIENCE HGF,IMPERIAL COLLEGE PROJECTS LTD,540,CORONER'S,PROFESSIONAL FEES,5902332606,1000080106
04.12.2018,CUSTOMER EXPERIENCE HGF,IMPERIAL COLLEGE PROJECTS LTD,556,CORONER'S,PROFESSIONAL FEES,5902332641,1000080106
04.12.2018,CUSTOMER EXPERIENCE HGF,IMPERIAL COLLEGE PROJECTS LTD,600,CORONER'S,PROFESSIONAL FEES,5902332645,1000080106
04.12.2018,CUSTOMER EXPERIENCE HGF,KINDLY PROPERTIES,"1,404.00",NIGHTLY TA (NSC),EXTERNAL AGENCIES AND BODIES,5902332551,1000060734
04.12.2018,CUSTOMER EXPERIENCE HGF,KINDLY PROPERTIES,"26,567.05",NIGHTLY TA (NSC),EXTERNAL AGENCIES AND BODIES,5902332559,1000060734
04.12.2018,CUSTOMER EXPERIENCE HGF,NATIONWIDE ACCOMMODATION,"98,811.50",NIGHTLY TA (NSC),EXTERNAL AGENCIES AND BODIES,5902332520,1000076112
04.12.2018,ENVIRONMENT AND LEISURE,INTO SERVICES LONDON LTD,440,CAPITAL PS (LEISURE),CONSTRUCTION FEES  - EXTERNAL,5902332535,1000059328
04.12.2018,ENVIRONMENT AND LEISURE,LONDON GRID FOR LEARNING TRUST,520,CAPITAL PS (LEISURE),CONSTRUCTION FEES  - EXTERNAL,5902332469,1000066669
04.12.2018,ENVIRONMENT AND LEISURE,LONDON GRID FOR LEARNING TRUST,"1,237.47",CAPITAL PS (LEISURE),CONSTRUCTION FEES  - EXTERNAL,5902332650,1000066669
04.12.2018,ENVIRONMENT AND LEISURE,INFINITY NETWORKS LTD,"6,924.00",CAPITAL PS (LEISURE),CONSTRUCTION FEES  - EXTERNAL,5902332541,1000035571
04.12.2018,ENVIRONMENT AND LEISURE,WARWICK LANDSCAPING LTD,"54,885.70",CAPITAL PS (LEISURE),CONSTRUCTION FEES  - EXTERNAL,2102894670,3000001705
04.12.2018,ENVIRONMENT AND LEISURE,JERRAM FALKUS CONSTRUCTION,"31,682.23",CAPITAL PS (LEISURE),CONSTRUCTION MAIN CONTRACT -CERTIFICATED,2102894671,4003636
04.12.2018,ENVIRONMENT DIRECTORATE,LONDON TOOLS LIMITED,415,BUSINESS CORE,EQUIPMENT PURCHASE & REPAIR,5902332525,1000003017
04.12.2018,ENVIRONMENT DIRECTORATE,LONDON TOOLS LIMITED,354,ENGINEERING CRAFTS,MATERIALS,5902332563,1000003017
04.12.2018,ENVIRONMENT DIRECTORATE,COMPLETE TREE CARE LTD,"2,136.08",NON HOUSING GROUNDS,AGENCY STAFF,5902332706,1000041410
04.12.2018,ENVIRONMENT DIRECTORATE,FENLAND LEISURE PRODUCTS LTD,"5,438.93",PARKS TECH UNIT (PREMISES),OTHER R&M,2102894668,3000001785
04.12.2018,ENVIRONMENT DIRECTORATE,CONWAY AECOM LTD,"7,076.48",PARKS TECH UNIT (PREMISES),OTHER R&M,2102894669,3000001595
04.12.2018,ENVIRONMENT DIRECTORATE,313Y LTD,275,PUBLIC LIGHTING,MARKETING & PUBLICITY SERVICES,5902332679,1000078584
04.12.2018,ENVIRONMENT DIRECTORATE,LOCKESLEYS LTD,600,PUBLIC LIGHTING,OTHER CONTRACTORS,2102894666,3000001480
04.12.2018,ENVIRONMENT DIRECTORATE,CONWAY AECOM LTD,"1,541.56",PUBLIC LIGHTING,OTHER CONTRACTORS,2102894667,3000001595
04.12.2018,ENVIRONMENT DIRECTORATE,LOCKESLEYS LTD,"3,164.10",PUBLIC LIGHTING,OTHER CONTRACTORS,2102894666,3000001480
04.12.2018,ENVIRONMENT DIRECTORATE,TYCO INTEGRATED FIRE & SECURITY,"1,062.50",TOWN CENTRE CCTV,OTHER CONTRACTORS,5902332576,1000077948
04.12.2018,ENVIRONMENT DIRECTORATE,VEOLIA ES SOUTHWARK LTD,"1,840,171.34",WASTE PFI,PFI/PPP PAYMENTS,5902332534,1000056979
04.12.2018,ENVIRONMENT DIRECTORATE,VEOLIA ES SOUTHWARK LTD,"1,881,389.41",WASTE PFI,PFI/PPP PAYMENTS,5902332552,1000056979
04.12.2018,ENVIRONMENT DIRECTORATE,VEOLIA ES SOUTHWARK LTD,"1,896,887.87",WASTE PFI,PFI/PPP PAYMENTS,5902332544,1000056979
04.12.2018,ENVIRONMENT DIRECTORATE,VEOLIA ES SOUTHWARK LTD,"1,907,429.58",WASTE PFI,PFI/PPP PAYMENTS,5902332537,1000056979
04.12.2018,ENVIRONMENT DIRECTORATE,VEOLIA ES SOUTHWARK LTD,"2,006,141.82",WASTE PFI,PFI/PPP PAYMENTS,5902332548,1000056979
04.12.2018,ENVIRONMENT DIRECTORATE,VEOLIA ES SOUTHWARK LTD,"2,018,986.57",WASTE PFI,PFI/PPP PAYMENTS,5902332543,1000056979
04.12.2018,HOUSING & MODERNISATION,AFRO-BRAZILIAN ARTS & CULTURAL EXCHANGE INSTITUTE,500,VCS GRANTS,OTHER CONTRACTORS,5902332496,1000072302
04.12.2018,HOUSING & MODERNISATION,NUNHEADS VOICE LTD,750,VCS GRANTS,OTHER CONTRACTORS,5902332501,1000053009
04.12.2018,HOUSING GENERAL FUND,AJM ADAPTIONS LTD,350,CAPITAL PS (HOUSING GF),CAPITAL GRANTS,5902332476,1000080297
04.12.2018,HOUSING GENERAL FUND,AJM ADAPTIONS LTD,450,CAPITAL PS (HOUSING GF),CAPITAL GRANTS,5902332471,1000080297
04.12.2018,HOUSING GENERAL FUND,AJM ADAPTIONS LTD,558.2,CAPITAL PS (HOUSING GF),CAPITAL GRANTS,5902332454,1000080297
04.12.2018,HOUSING GENERAL FUND,AJM ADAPTIONS LTD,"4,826.00",CAPITAL PS (HOUSING GF),CAPITAL GRANTS,5902332596,1000080297
04.12.2018,HOUSING HRA,WESSEX LIFT CO LTD,330,CAPITAL PS (HRA),CONST'N MAIN CONTRACT - NON CERTIFICATED,2102894686,3000001207
04.12.2018,HOUSING HRA,WESSEX LIFT CO LTD,"9,443.50",CAPITAL PS (HRA),CONST'N MAIN CONTRACT - NON CERTIFICATED,2102894685,3000001207
04.12.2018,HOUSING HRA,POTTER RAPER AND PARTNERS,"40,746.82",CAPITAL PS (HRA),CONSTRUCTION FEES  - EXTERNAL,5902332648,1009369
04.12.2018,HOUSING HRA,SALTASH ENTERPRISES LTD,"135,546.70",CAPITAL PS (HRA),CONSTRUCTION MAIN CONTRACT -CERTIFICATED,2102894672,4013605
04.12.2018,HOUSING HRA,ENGIE REGENERATION (APOLLO) LTD,"493,175.19",CAPITAL PS (HRA),CONSTRUCTION MAIN CONTRACT -CERTIFICATED,2102894614,4000449
04.12.2018,HOUSING HRA,ARMSTRONG YORK,"5,950.00",PAYMENTS CONTROL ACCOUNT-ARMSTRONG YORKE,MANUAL CREDITORS,5902332489,1000058092
04.12.2018,HOUSING STRATEGY AND OPTIONS,SOLACE WOMEN'S AID,"22,500.00",HOMELESS & HOUSING OPTIONS MGT,PROFESSIONAL FEES,5902332689,1000057231
04.12.2018,LEISURE DIRECTORATE,LONDON TOOLS LIMITED,394.4,BMX BIKE TRACK,MATERIALS,5902332605,1000003017
04.12.2018,LEISURE DIRECTORATE,CASTLE WATER LTD,401.66,BURGESS AREA TEAM,WATER,5902332442,1000078867
04.12.2018,LEISURE DIRECTORATE,BRYAN CAVE LEIGHTON PAISNER LLP,"4,500.00",PARKS SERVICES DEVELOPMENT,PAYMENTS FOR LEGAL SERVICES,5902332445,1000032275
04.12.2018,LEISURE DIRECTORATE,INCENTIVE QAS LTD,943.99,TEMPORARY NEWINGTON,PREMISES CLEANING,5902332500,1000074675
04.12.2018,LEISURE DIRECTORATE,COMPLETE TREE CARE LTD,731.25,TREES O'HEADS,CONSULTANTS SERVICES,5902332571,1000041410
04.12.2018,LEISURE DIRECTORATE,COMPLETE TREE CARE LTD,731.25,TREES O'HEADS,CONSULTANTS SERVICES,5902332574,1000041410
04.12.2018,MODERNISATION HGF,INTERSERVE (FACILITIES MANAGEMENT),"450,383.30",FM SERVICES BY INTERSERVE,INTEGRATED FACILITIES MANAGEMENT CONTRACT,5902332692,1000070792
04.12.2018,PLANNING AND TRANSPORT,RP2 LTD,"1,300.00",PLANNING POLICY TEAM,MARKETING & PUBLICITY SERVICES,5902332698,1000063096
04.12.2018,REGENERATION,KALMARS COMMERCIAL LTD,"-113,500.00",OKR MASTER PLANNING,PROFESSIONAL FEES,5902332922,1000081844
04.12.2018,REGENERATION,KALMARS COMMERCIAL LTD,"113,500.00",OKR MASTER PLANNING,PROFESSIONAL FEES,5902332812,1000081844
04.12.2018,RESIDENT SERVICES,KENT COUNTY COUNCIL - LASER,"1,311.20",SUPPORTED HOSTELS,GAS,5902332517,1000012926
04.12.2018,RESIDENT SERVICES,LONDON TOOLS LIMITED,375,TA HOSTELS,MATERIALS,5902332621,1000003017
04.12.2018,SOUTHWARK BUILDING SERVICES,TRAVIS PERKINS,258.35,BERMONDSEY DAY TO DAY - PLUMBER,MATERIALS,5902332462,1514319
04.12.2018,SOUTHWARK BUILDING SERVICES,TRAVIS PERKINS,289.07,BERMONDSEY DAY TO DAY - PLUMBER,MATERIALS,5902332607,1514319
04.12.2018,SOUTHWARK BUILDING SERVICES,LOCKESLEYS LTD,940.7,BUSINESS SUPPORT,OTHER CONTRACTORS,2102894663,3000001480
04.12.2018,SOUTHWARK BUILDING SERVICES,DIAMOND SCAFFOLDING (SOUTH EAST),"2,015.87",BUSINESS SUPPORT,OTHER CONTRACTORS,2102894619,3000001625
04.12.2018,SOUTHWARK BUILDING SERVICES,BUDMAX CONSTRUCTION LTD,"2,292.72",BUSINESS SUPPORT,OTHER CONTRACTORS,2102894617,3000001936
04.12.2018,SOUTHWARK BUILDING SERVICES,SMITHY DECORATING,"6,232.28",BUSINESS SUPPORT,OTHER CONTRACTORS,2102894618,3000002050
04.12.2018,SOUTHWARK BUILDING SERVICES,MASHER BROTHERS LTD,"12,063.81",BUSINESS SUPPORT,OTHER CONTRACTORS,2102894616,3000001100
04.12.2018,SOUTHWARK BUILDING SERVICES,FRANKLYN SHAW ASSOCIATES LTD,"12,518.73",BUSINESS SUPPORT,OTHER CONTRACTORS,2102894662,3000001465
04.12.2018,SOUTHWARK BUILDING SERVICES,ATPB LTD,"18,526.65",BUSINESS SUPPORT,OTHER CONTRACTORS,2102894661,3000001850
04.12.2018,SOUTHWARK BUILDING SERVICES,DEREK BUILDING SERVICES LTD,"27,637.25",BUSINESS SUPPORT,OTHER CONTRACTORS,2102894664,3000001751
04.12.2018,SOUTHWARK BUILDING SERVICES,NEW IMAGE WINDOWS LTD,"28,421.21",BUSINESS SUPPORT,OTHER CONTRACTORS,2102894665,3000000956
04.12.2018,SOUTHWARK BUILDING SERVICES,TMG TRADING LTD,"38,812.76",BUSINESS SUPPORT,OTHER CONTRACTORS,2102894615,3000002073
04.12.2018,SOUTHWARK BUILDING SERVICES,TRAVIS PERKINS,289.07,R & M OVERHEADS,MATERIALS,5902332546,1514319
04.12.2018,SOUTHWARK BUILDING SERVICES,LONDON TOOLS LIMITED,388,R & M OVERHEADS,MATERIALS,5902332590,1000003017
04.12.2018,SOUTHWARK BUILDING SERVICES,LONDON TOOLS LIMITED,388,R & M OVERHEADS,MATERIALS,5902332593,1000003017
04.12.2018,SOUTHWARK BUILDING SERVICES,LONDON TOOLS LIMITED,388,R & M OVERHEADS,MATERIALS,5902332602,1000003017
04.12.2018,SOUTHWARK BUILDING SERVICES,LONDON TOOLS LIMITED,252,STORES/LOGISTICS,CREDITORS -GR/IR CLEARING ACCOUNT,5902332527,1000003017
04.12.2018,SOUTHWARK BUILDING SERVICES,"BROWNING, JONES & MORRIS LTD",299.8,STORES/LOGISTICS,CREDITORS -GR/IR CLEARING ACCOUNT,5902332704,1027429
04.12.2018,SOUTHWARK BUILDING SERVICES,AGENTIS WORKWEAR LTD,350,STORES/LOGISTICS,CREDITORS -GR/IR CLEARING ACCOUNT,5902332425,1000065561
04.12.2018,SOUTHWARK BUILDING SERVICES,"BROWNING, JONES & MORRIS LTD",399.8,STORES/LOGISTICS,CREDITORS -GR/IR CLEARING ACCOUNT,5902332566,1027429
04.12.2018,SOUTHWARK BUILDING SERVICES,"BROWNING, JONES & MORRIS LTD",479.6,STORES/LOGISTICS,CREDITORS -GR/IR CLEARING ACCOUNT,5902332566,1027429
04.12.2018,SOUTHWARK BUILDING SERVICES,LONDON TOOLS LIMITED,708.1,STORES/LOGISTICS,CREDITORS -GR/IR CLEARING ACCOUNT,5902332617,1000003017
04.12.2018,SOUTHWARK BUILDING SERVICES,AGENTIS WORKWEAR LTD,768,STORES/LOGISTICS,CREDITORS -GR/IR CLEARING ACCOUNT,5902332425,1000065561
04.12.2018,SOUTHWARK BUILDING SERVICES,LONDON TOOLS LIMITED,966.08,STORES/LOGISTICS,CREDITORS -GR/IR CLEARING ACCOUNT,5902332617,1000003017
04.12.2018,SOUTHWARK BUILDING SERVICES,LONDON TOOLS LIMITED,"1,050.00",STORES/LOGISTICS,CREDITORS -GR/IR CLEARING ACCOUNT,5902332569,1000003017
04.12.2018,SOUTHWARK BUILDING SERVICES,LONDON TOOLS LIMITED,"1,625.00",STORES/LOGISTICS,CREDITORS -GR/IR CLEARING ACCOUNT,5902332529,1000003017
04.12.2018,SOUTHWARK BUILDING SERVICES,LONDON TOOLS LIMITED,"5,000.00",STORES/LOGISTICS,CREDITORS -GR/IR CLEARING ACCOUNT,5902332615,1000003017
04.12.2018,SOUTHWARK BUILDING SERVICES,LONDON TOOLS LIMITED,"7,500.00",STORES/LOGISTICS,CREDITORS -GR/IR CLEARING ACCOUNT,5902332622,1000003017
04.12.2018,SOUTHWARK BUILDING SERVICES,TRAVIS PERKINS,289.07,WALWORTH TM 1 DAY TO DAY - PLUMBER,MATERIALS,5902332554,1514319
04.12.2018,SOUTHWARK BUILDING SERVICES,TRAVIS PERKINS,300,WALWORTH TM 2 DAY TO DAY - ELECTRICIAN,MATERIALS,5902332572,1514319
05.12.2018,ADULT SOCIAL CARE,FOUNTAIN CARE LTD,329.4,APPOINTEESHIPS,OTHER PAYMENTS FOR CLIENTS,2102896183,1000066815
05.12.2018,ADULT SOCIAL CARE,EDF ENERGY PLC,738.17,APPOINTEESHIPS,OTHER PAYMENTS FOR CLIENTS,2102896224,1008746
05.12.2018,ADULT SOCIAL CARE,REDACTED PERSONAL DATA,"4,558.84",APPOINTEESHIPS,OTHER PAYMENTS FOR CLIENTS,REDACTED,REDACTED
05.12.2018,ADULT SOCIAL CARE,REDACTED PERSONAL DATA,"11,069.15",APPOINTEESHIPS,OTHER PAYMENTS FOR CLIENTS,REDACTED,REDACTED
05.12.2018,ADULT SOCIAL CARE,SURREY DOCKS FARM PROVIDENT SOCIETY,312,LD LTS 18-64,DAYCARE,2102894986,1000000958
05.12.2018,ADULT SOCIAL CARE,THE CAMDEN SOCIETY (SOCIAL CARE),340.08,LD LTS 18-64,DAYCARE,2102894888,1000036369
05.12.2018,ADULT SOCIAL CARE,THE CAMDEN SOCIETY (SOCIAL CARE),465.6,LD LTS 18-64,DAYCARE,2102894882,1000036369
05.12.2018,ADULT SOCIAL CARE,SURREY DOCKS FARM PROVIDENT SOCIETY,487.5,LD LTS 18-64,DAYCARE,2102894988,1000000958
05.12.2018,ADULT SOCIAL CARE,THE CAMDEN SOCIETY (SOCIAL CARE),674.16,LD LTS 18-64,DAYCARE,2102894887,1000036369
05.12.2018,ADULT SOCIAL CARE,THE CAMDEN SOCIETY (SOCIAL CARE),704,LD LTS 18-64,DAYCARE,2102894883,1000036369
05.12.2018,ADULT SOCIAL CARE,THE CAMDEN SOCIETY (SOCIAL CARE),705.6,LD LTS 18-64,DAYCARE,2102894889,1000036369
05.12.2018,ADULT SOCIAL CARE,SURREY DOCKS FARM PROVIDENT SOCIETY,720,LD LTS 18-64,DAYCARE,2102894985,1000000958
05.12.2018,ADULT SOCIAL CARE,THE CAMDEN SOCIETY (SOCIAL CARE),897.6,LD LTS 18-64,DAYCARE,2102894880,1000036369
05.12.2018,ADULT SOCIAL CARE,THE CAMDEN SOCIETY (SOCIAL CARE),903.6,LD LTS 18-64,DAYCARE,2102894884,1000036369
05.12.2018,ADULT SOCIAL CARE,THE CAMDEN SOCIETY (SOCIAL CARE),"1,668.00",LD LTS 18-64,DAYCARE,2102894885,1000036369
05.12.2018,ADULT SOCIAL CARE,THE CAMDEN SOCIETY (SOCIAL CARE),"1,824.40",LD LTS 18-64,DAYCARE,2102894886,1000036369
05.12.2018,ADULT SOCIAL CARE,THE CAMDEN SOCIETY (SOCIAL CARE),"2,044.00",LD LTS 18-64,DAYCARE,2102894879,1000036369
05.12.2018,ADULT SOCIAL CARE,THE CAMDEN SOCIETY (SOCIAL CARE),"2,160.00",LD LTS 18-64,DAYCARE,2102894881,1000036369
05.12.2018,ADULT SOCIAL CARE,NATIONAL AUTISTIC SOCIETY CARE PACK,"3,778.44",LD LTS 18-64,DAYCARE,2102895086,1000020538
05.12.2018,ADULT SOCIAL CARE,MHM WALES,297.9,LD LTS 18-64,EXTERNAL AGENCIES AND BODIES,2102894898,1000081227
05.12.2018,ADULT SOCIAL CARE,MEDACS HOMECARE,390.15,LD LTS 18-64,HOMECARE - C&V,2102894974,11287415
05.12.2018,ADULT SOCIAL CARE,REMARK LIVING,345,LD LTS 18-64,SUPPORTED LIVING,2102895098,1000081741
05.12.2018,ADULT SOCIAL CARE,MEDACS HOMECARE,416.34,LD LTS 18-64,SUPPORTED LIVING,2102894977,11287415
05.12.2018,ADULT SOCIAL CARE,ROYAL ASSOCIATION FOR DEAF PEOPLE,720,LD LTS 18-64,SUPPORTED LIVING,2102895094,1000062283
05.12.2018,ADULT SOCIAL CARE,CARE O LINE,880,LD LTS 18-64,SUPPORTED LIVING,2102894981,11241743
05.12.2018,ADULT SOCIAL CARE,CARE O LINE,880,LD LTS 18-64,SUPPORTED LIVING,2102894983,11241743
05.12.2018,ADULT SOCIAL CARE,CARE O LINE,"2,200.00",LD LTS 18-64,SUPPORTED LIVING,2102894982,11241743
05.12.2018,ADULT SOCIAL CARE,CARE O LINE,"7,040.00",LD LTS 18-64,SUPPORTED LIVING,2102894984,11241743
05.12.2018,ADULT SOCIAL CARE,SERVESOUL LTD,262.87,LD STS 65+,HOMECARE - IC,2102895023,1000081503
05.12.2018,ADULT SOCIAL CARE,LONDON CARE LTD,350.97,MEM LTS 65+,HOMECARE - C&V,2102894928,1000003398
05.12.2018,ADULT SOCIAL CARE,LONDON CARE LTD,"1,011.62",MEM LTS 65+,HOMECARE - C&V,2102894921,1000003398
05.12.2018,ADULT SOCIAL CARE,SNOWBALL CARE UK LTD,256,MEM LTS 65+,HOMECARE - SPOT,2102894942,1000081483
05.12.2018,ADULT SOCIAL CARE,SNOWBALL CARE UK LTD,"2,208.00",MEM LTS 65+,HOMECARE - SPOT,2102894956,1000081483
05.12.2018,ADULT SOCIAL CARE,CLOUDS END SERVICES LTD,750,MH LTS 18-64,EXTERNAL AGENCIES AND BODIES,2102894980,1000079240
05.12.2018,ADULT SOCIAL CARE,CLOUDS END SERVICES LTD,"1,000.00",MH LTS 18-64,EXTERNAL AGENCIES AND BODIES,2102894979,1000079240
05.12.2018,ADULT SOCIAL CARE,PHOENIX HEALTHCARE & RECRUITMENT,391.36,PHY LTS 18-64,DAYCARE,2102895089,1000065636
05.12.2018,ADULT SOCIAL CARE,PHOENIX HEALTHCARE & RECRUITMENT,391.36,PHY LTS 18-64,DAYCARE,2102895096,1000065636
05.12.2018,ADULT SOCIAL CARE,PHOENIX HEALTHCARE & RECRUITMENT,391.36,PHY LTS 18-64,DAYCARE,2102895099,1000065636
05.12.2018,ADULT SOCIAL CARE,LONDON CARE LTD,392,PHY LTS 18-64,HOMECARE - C&V,2102894922,1000003398
05.12.2018,ADULT SOCIAL CARE,LONDON CARE LTD,416.25,PHY LTS 18-64,HOMECARE - C&V,2102894903,1000003398
05.12.2018,ADULT SOCIAL CARE,LONDON CARE LTD,474.61,PHY LTS 18-64,HOMECARE - C&V,2102894915,1000003398
05.12.2018,ADULT SOCIAL CARE,LONDON CARE LTD,599.4,PHY LTS 18-64,HOMECARE - C&V,2102894926,1000003398
05.12.2018,ADULT SOCIAL CARE,LONDON CARE LTD,949.4,PHY LTS 18-64,HOMECARE - C&V,2102894902,1000003398
05.12.2018,ADULT SOCIAL CARE,LONDON CARE LTD,"1,068.44",PHY LTS 18-64,HOMECARE - C&V,2102894910,1000003398
05.12.2018,ADULT SOCIAL CARE,LONDON CARE LTD,"2,231.46",PHY LTS 18-64,HOMECARE - C&V,2102894909,1000003398
05.12.2018,ADULT SOCIAL CARE,SERVESOUL LTD,354.66,PHY LTS 18-64,HOMECARE - SPOT,2102895001,1000081503
05.12.2018,ADULT SOCIAL CARE,SERVESOUL LTD,509.64,PHY LTS 18-64,HOMECARE - SPOT,2102895063,1000081503
05.12.2018,ADULT SOCIAL CARE,SERVESOUL LTD,525.74,PHY LTS 18-64,HOMECARE - SPOT,2102894998,1000081503
05.12.2018,ADULT SOCIAL CARE,SNOWBALL CARE UK LTD,560,PHY LTS 18-64,HOMECARE - SPOT,2102894930,1000081483
05.12.2018,ADULT SOCIAL CARE,CONCEPT CARE SOLUTIONS LTD,620.5,PHY LTS 18-64,HOMECARE - SPOT,2102894952,1000081790
05.12.2018,ADULT SOCIAL CARE,SNOWBALL CARE UK LTD,"1,824.00",PHY LTS 18-64,HOMECARE - SPOT,2102894951,1000081483
05.12.2018,ADULT SOCIAL CARE,HUMBLE HEALTH CARE LTD,"3,010.52",PHY LTS 18-64,HOMECARE - SPOT,2102894940,1000079270
05.12.2018,ADULT SOCIAL CARE,MEDACS HOMECARE,621.35,PHY LTS 18-64,SUPPORTED LIVING,2102894973,11287415
05.12.2018,ADULT SOCIAL CARE,SWK DISABLEMENT ASSN,348.42,PHY LTS 65+,HOMECARE - C&V,2102894963,1000011698
05.12.2018,ADULT SOCIAL CARE,LONDON CARE LTD,394.92,PHY LTS 65+,HOMECARE - C&V,2102894913,1000003398
05.12.2018,ADULT SOCIAL CARE,LONDON CARE LTD,466.48,PHY LTS 65+,HOMECARE - C&V,2102894925,1000003398
05.12.2018,ADULT SOCIAL CARE,SWK DISABLEMENT ASSN,516.8,PHY LTS 65+,HOMECARE - C&V,2102894971,1000011698
05.12.2018,ADULT SOCIAL CARE,LONDON CARE LTD,566.32,PHY LTS 65+,HOMECARE - C&V,2102894911,1000003398
05.12.2018,ADULT SOCIAL CARE,LONDON CARE LTD,666.2,PHY LTS 65+,HOMECARE - C&V,2102894900,1000003398
05.12.2018,ADULT SOCIAL CARE,LONDON CARE LTD,749.54,PHY LTS 65+,HOMECARE - C&V,2102894905,1000003398
05.12.2018,ADULT SOCIAL CARE,LONDON CARE LTD,816.2,PHY LTS 65+,HOMECARE - C&V,2102894916,1000003398
05.12.2018,ADULT SOCIAL CARE,LONDON CARE LTD,882.8,PHY LTS 65+,HOMECARE - C&V,2102894906,1000003398
05.12.2018,ADULT SOCIAL CARE,CAREWATCH LEWISHAM,"1,281.00",PHY LTS 65+,HOMECARE - C&V,2102895093,1000042627
05.12.2018,ADULT SOCIAL CARE,LONDON CARE LTD,"1,290.99",PHY LTS 65+,HOMECARE - C&V,2102894924,1000003398
05.12.2018,ADULT SOCIAL CARE,LONDON CARE LTD,"1,306.60",PHY LTS 65+,HOMECARE - C&V,2102894929,1000003398
05.12.2018,ADULT SOCIAL CARE,LONDON CARE LTD,"1,374.26",PHY LTS 65+,HOMECARE - C&V,2102894901,1000003398
05.12.2018,ADULT SOCIAL CARE,LONDON CARE LTD,"2,135.80",PHY LTS 65+,HOMECARE - C&V,2102894923,1000003398
05.12.2018,ADULT SOCIAL CARE,LONDON CARE LTD,"2,672.95",PHY LTS 65+,HOMECARE - C&V,2102894918,1000003398
05.12.2018,ADULT SOCIAL CARE,SERVESOUL LTD,262.87,PHY LTS 65+,HOMECARE - SPOT,2102895033,1000081503
05.12.2018,ADULT SOCIAL CARE,SERVESOUL LTD,292.08,PHY LTS 65+,HOMECARE - SPOT,2102895044,1000081503
05.12.2018,ADULT SOCIAL CARE,SWK DISABLEMENT ASSN,293.04,PHY LTS 65+,HOMECARE - SPOT,2102894959,1000011698
05.12.2018,ADULT SOCIAL CARE,SERVESOUL LTD,300.42,PHY LTS 65+,HOMECARE - SPOT,2102895051,1000081503
05.12.2018,ADULT SOCIAL CARE,SNOWBALL CARE UK LTD,336,PHY LTS 65+,HOMECARE - SPOT,2102894957,1000081483
05.12.2018,ADULT SOCIAL CARE,SERVESOUL LTD,350.49,PHY LTS 65+,HOMECARE - SPOT,2102895035,1000081503
05.12.2018,ADULT SOCIAL CARE,LONDON CARE LTD,416.32,PHY LTS 65+,HOMECARE - SPOT,2102894904,1000003398
05.12.2018,ADULT SOCIAL CARE,SERVESOUL LTD,417.25,PHY LTS 65+,HOMECARE - SPOT,2102895080,1000081503
05.12.2018,ADULT SOCIAL CARE,HUMBLE HEALTH CARE LTD,432,PHY LTS 65+,HOMECARE - SPOT,2102894945,1000079270
05.12.2018,ADULT SOCIAL CARE,SERVESOUL LTD,433.94,PHY LTS 65+,HOMECARE - SPOT,2102895049,1000081503
05.12.2018,ADULT SOCIAL CARE,SERVESOUL LTD,467.32,PHY LTS 65+,HOMECARE - SPOT,2102895038,1000081503
05.12.2018,ADULT SOCIAL CARE,SWK DISABLEMENT ASSN,498.98,PHY LTS 65+,HOMECARE - SPOT,2102894964,1000011698
05.12.2018,ADULT SOCIAL CARE,SWK DISABLEMENT ASSN,524.4,PHY LTS 65+,HOMECARE - SPOT,2102894967,1000011698
05.12.2018,ADULT SOCIAL CARE,SERVESOUL LTD,525.74,PHY LTS 65+,HOMECARE - SPOT,2102895005,1000081503
05.12.2018,ADULT SOCIAL CARE,SERVESOUL LTD,525.74,PHY LTS 65+,HOMECARE - SPOT,2102895032,1000081503
05.12.2018,ADULT SOCIAL CARE,SERVESOUL LTD,525.74,PHY LTS 65+,HOMECARE - SPOT,2102895047,1000081503
05.12.2018,ADULT SOCIAL CARE,SERVESOUL LTD,525.74,PHY LTS 65+,HOMECARE - SPOT,2102895077,1000081503
05.12.2018,ADULT SOCIAL CARE,SERVESOUL LTD,554.94,PHY LTS 65+,HOMECARE - SPOT,2102895028,1000081503
05.12.2018,ADULT SOCIAL CARE,SNOWBALL CARE UK LTD,560,PHY LTS 65+,HOMECARE - SPOT,2102894955,1000081483
05.12.2018,ADULT SOCIAL CARE,SERVESOUL LTD,584.15,PHY LTS 65+,HOMECARE - SPOT,2102895002,1000081503
05.12.2018,ADULT SOCIAL CARE,SERVESOUL LTD,584.15,PHY LTS 65+,HOMECARE - SPOT,2102895020,1000081503
05.12.2018,ADULT SOCIAL CARE,SERVESOUL LTD,642.57,PHY LTS 65+,HOMECARE - SPOT,2102895019,1000081503
05.12.2018,ADULT SOCIAL CARE,CONCEPT CARE SOLUTIONS LTD,714,PHY LTS 65+,HOMECARE - SPOT,2102894947,1000081790
05.12.2018,ADULT SOCIAL CARE,SERVESOUL LTD,749.26,PHY LTS 65+,HOMECARE - SPOT,2102894989,1000081503
05.12.2018,ADULT SOCIAL CARE,SERVESOUL LTD,759.4,PHY LTS 65+,HOMECARE - SPOT,2102895006,1000081503
05.12.2018,ADULT SOCIAL CARE,SWK DISABLEMENT ASSN,765.16,PHY LTS 65+,HOMECARE - SPOT,2102894960,1000011698
05.12.2018,ADULT SOCIAL CARE,SWK DISABLEMENT ASSN,792,PHY LTS 65+,HOMECARE - SPOT,2102894965,1000011698
05.12.2018,ADULT SOCIAL CARE,SWK DISABLEMENT ASSN,830.28,PHY LTS 65+,HOMECARE - SPOT,2102894970,1000011698
05.12.2018,ADULT SOCIAL CARE,SNOWBALL CARE UK LTD,912,PHY LTS 65+,HOMECARE - SPOT,2102894935,1000081483
05.12.2018,ADULT SOCIAL CARE,SNOWBALL CARE UK LTD,"1,008.00",PHY LTS 65+,HOMECARE - SPOT,2102894931,1000081483
05.12.2018,ADULT SOCIAL CARE,SNOWBALL CARE UK LTD,"1,120.00",PHY LTS 65+,HOMECARE - SPOT,2102894953,1000081483
05.12.2018,ADULT SOCIAL CARE,SWK DISABLEMENT ASSN,"1,559.16",PHY LTS 65+,HOMECARE - SPOT,2102894961,1000011698
05.12.2018,ADULT SOCIAL CARE,SWK DISABLEMENT ASSN,"1,693.12",PHY LTS 65+,HOMECARE - SPOT,2102894962,1000011698
05.12.2018,ADULT SOCIAL CARE,SNOWBALL CARE UK LTD,"2,016.00",PHY LTS 65+,HOMECARE - SPOT,2102894950,1000081483
05.12.2018,ADULT SOCIAL CARE,SWK DISABLEMENT ASSN,"2,492.80",PHY LTS 65+,HOMECARE - SPOT,2102894969,1000011698
05.12.2018,ADULT SOCIAL CARE,SERVESOUL LTD,308.77,PHY STS 18-64,HOMECARE - IC,2102895052,1000081503
05.12.2018,ADULT SOCIAL CARE,SNOWBALL CARE UK LTD,660,PHY STS 18-64,HOMECARE - IC,2102894932,1000081483
05.12.2018,ADULT SOCIAL CARE,CONCEPT CARE SOLUTIONS LTD,267.75,PHY STS 65+,HOMECARE - IC,2102894946,1000081790
05.12.2018,ADULT SOCIAL CARE,SERVESOUL LTD,279.56,PHY STS 65+,HOMECARE - IC,2102895031,1000081503
05.12.2018,ADULT SOCIAL CARE,SERVESOUL LTD,467.32,PHY STS 65+,HOMECARE - IC,2102895013,1000081503
05.12.2018,ADULT SOCIAL CARE,SERVESOUL LTD,467.32,PHY STS 65+,HOMECARE - IC,2102895085,1000081503
05.12.2018,ADULT SOCIAL CARE,SERVESOUL LTD,525.74,PHY STS 65+,HOMECARE - IC,2102895030,1000081503
05.12.2018,ADULT SOCIAL CARE,SERVESOUL LTD,542.43,PHY STS 65+,HOMECARE - IC,2102895062,1000081503
05.12.2018,ADULT SOCIAL CARE,SERVESOUL LTD,600.84,PHY STS 65+,HOMECARE - IC,2102895039,1000081503
05.12.2018,ADULT SOCIAL CARE,SNOWBALL CARE UK LTD,"1,348.00",PHY STS 65+,HOMECARE - IC,2102894936,1000081483
05.12.2018,ADULT SOCIAL CARE,SNOWBALL CARE UK LTD,"2,544.00",PHY STS 65+,HOMECARE - IC,2102894943,1000081483
05.12.2018,ADULT SOCIAL CARE,REDACTED PERSONAL DATA,272,RESPITE FOSTERCARERS,PAYMENTS TO CARERS,REDACTED,REDACTED
05.12.2018,ADULT SOCIAL CARE,REDACTED PERSONAL DATA,320,RESPITE FOSTERCARERS,PAYMENTS TO CARERS,REDACTED,REDACTED
05.12.2018,ADULT SOCIAL CARE,REDACTED PERSONAL DATA,476.69,RESPITE FOSTERCARERS,PAYMENTS TO CARERS,REDACTED,REDACTED
05.12.2018,ADULT SOCIAL CARE,REDACTED PERSONAL DATA,880,RESPITE FOSTERCARERS,PAYMENTS TO CARERS,REDACTED,REDACTED
05.12.2018,ADULT SOCIAL CARE,SURREY DOCKS FARM PROVIDENT SOCIETY,500,SOCIAL ISOLATION,DAYCARE,2102894987,1000000958
05.12.2018,ADULT SOCIAL CARE,CAREMARK LTD,448.4,SOCIAL ISOLATION,HOMECARE - SPOT,2102894934,1000081358
05.12.2018,ADULT SOCIAL CARE,CONTACT PROFESSIONALS,266,SPECIALIST CARE,SECTION 17 PAYMENTS TO AGENCIES/CARERS,2102894815,1000057263
05.12.2018,ADULT SOCIAL CARE,CONTACT PROFESSIONALS,266,SPECIALIST CARE,SECTION 17 PAYMENTS TO AGENCIES/CARERS,2102894829,1000057263
05.12.2018,ADULT SOCIAL CARE,CONTACT PROFESSIONALS,266,SPECIALIST CARE,SECTION 17 PAYMENTS TO AGENCIES/CARERS,2102894840,1000057263
05.12.2018,ADULT SOCIAL CARE,CONTACT PROFESSIONALS,266,SPECIALIST CARE,SECTION 17 PAYMENTS TO AGENCIES/CARERS,2102896069,1000057263
05.12.2018,ADULT SOCIAL CARE,CONTACT PROFESSIONALS,285,SPECIALIST CARE,SECTION 17 PAYMENTS TO AGENCIES/CARERS,2102894844,1000057263
05.12.2018,ADULT SOCIAL CARE,CONTACT PROFESSIONALS,304,SPECIALIST CARE,SECTION 17 PAYMENTS TO AGENCIES/CARERS,2102894823,1000057263
05.12.2018,ADULT SOCIAL CARE,CONTACT PROFESSIONALS,304,SPECIALIST CARE,SECTION 17 PAYMENTS TO AGENCIES/CARERS,2102894830,1000057263
05.12.2018,ADULT SOCIAL CARE,CONTACT PROFESSIONALS,304,SPECIALIST CARE,SECTION 17 PAYMENTS TO AGENCIES/CARERS,2102896099,1000057263
05.12.2018,ADULT SOCIAL CARE,CONTACT PROFESSIONALS,304,SPECIALIST CARE,SECTION 17 PAYMENTS TO AGENCIES/CARERS,2102896103,1000057263
05.12.2018,ADULT SOCIAL CARE,PECULIAR CARE HOMES LTD,359,SPECIALIST CARE,SECTION 17 PAYMENTS TO AGENCIES/CARERS,2102894695,1000076991
05.12.2018,ADULT SOCIAL CARE,CONTACT PROFESSIONALS,380,SPECIALIST CARE,SECTION 17 PAYMENTS TO AGENCIES/CARERS,2102894810,1000057263
05.12.2018,ADULT SOCIAL CARE,CONTACT PROFESSIONALS,380,SPECIALIST CARE,SECTION 17 PAYMENTS TO AGENCIES/CARERS,2102896068,1000057263
05.12.2018,ADULT SOCIAL CARE,CONTACT PROFESSIONALS,456,SPECIALIST CARE,SECTION 17 PAYMENTS TO AGENCIES/CARERS,2102896106,1000057263
05.12.2018,ADULT SOCIAL CARE,PECULIAR CARE HOMES LTD,484.65,SPECIALIST CARE,SECTION 17 PAYMENTS TO AGENCIES/CARERS,2102894696,1000076991
05.12.2018,ADULT SOCIAL CARE,PECULIAR CARE HOMES LTD,"3,751.55",SPECIALIST CARE,SECTION 17 PAYMENTS TO AGENCIES/CARERS,2102894694,1000076991
05.12.2018,ADULT SOCIAL CARE,PAULWAYS KENNELS,730,SUB LTS 18-64,OTHER PAYMENTS FOR CLIENTS,2102895097,1068767
05.12.2018,ADULT SOCIAL CARE,PECULIAR CARE HOMES LTD,287.2,TRANSITIONS 14-18YRS,SECTION 17 PAYMENTS TO AGENCIES/CARERS,2102894693,1000076991
05.12.2018,ADULT SOCIAL CARE,CONTACT PROFESSIONALS,380,TRANSITIONS 14-18YRS,SECTION 17 PAYMENTS TO AGENCIES/CARERS,2102896070,1000057263
05.12.2018,ADULT SOCIAL CARE,CONTACT PROFESSIONALS,912,TRANSITIONS 14-18YRS,SECTION 17 PAYMENTS TO AGENCIES/CARERS,2102894814,1000057263
05.12.2018,ADULT SOCIAL CARE,CONTACT PROFESSIONALS,912,TRANSITIONS 14-18YRS,SECTION 17 PAYMENTS TO AGENCIES/CARERS,2102896064,1000057263
05.12.2018,ADULT SOCIAL CARE,PECULIAR CARE HOMES LTD,"1,453.95",TRANSITIONS 14-18YRS,SECTION 17 PAYMENTS TO AGENCIES/CARERS,2102894697,1000076991
05.12.2018,ADULT SOCIAL CARE,CONTACT PROFESSIONALS,"1,489.00",TRANSITIONS 14-18YRS,SECTION 17 PAYMENTS TO AGENCIES/CARERS,2102896102,1000057263
05.12.2018,ADULT SOCIAL CARE,CONTACT PROFESSIONALS,"4,228.00",TRANSITIONS 14-18YRS,SECTION 17 PAYMENTS TO AGENCIES/CARERS,2102894835,1000057263
05.12.2018,ASSET MANAGEMENT,PROPERTY FACILITIES GROUP PLC,"17,839.76",R&M CONTRACTS (SOUTH),BUILDING R&M,2102896211,3000001420
05.12.2018,ASSET MANAGEMENT,PROPERTY FACILITIES GROUP PLC,"18,957.05",R&M CONTRACTS (SOUTH),BUILDING R&M,2102896210,3000001420
05.12.2018,CENTRAL FUNCTIONS,NPOWER LTD,450.82,HEATING ACCOUNT,ELECTRICITY,5902332726,1000078994
05.12.2018,CENTRAL FUNCTIONS,NPOWER LTD,"1,947.97",HEATING ACCOUNT,ELECTRICITY,5902332726,1000078994
05.12.2018,CENTRAL FUNCTIONS,NPOWER LTD,"2,203.57",HEATING ACCOUNT,ELECTRICITY,5902332726,1000078994
05.12.2018,CENTRAL FUNCTIONS,KENT COUNTY COUNCIL - LASER,"15,274.10",HEATING ACCOUNT,GAS,5902332853,1000012926
05.12.2018,CENTRAL FUNCTIONS,KENT COUNTY COUNCIL - LASER,"424,299.92",HEATING ACCOUNT,GAS,5902332853,1000012926
05.12.2018,CHIEF EXECUTIVE,P D CONSTRUCTION LTD,"4,840.00",CAPITAL PS (REGEN),CONST'N MAIN CONTRACT - NON CERTIFICATED,2102896209,4001883
05.12.2018,CHIEF EXECUTIVE,CONWAY AECOM LTD,322.75,CAPITAL PS (REGEN),CONSTRUCTION,5902332814,1000071205
05.12.2018,CHIEF EXECUTIVE,CONWAY AECOM LTD,659.89,CAPITAL PS (REGEN),CONSTRUCTION,5902332814,1000071205
05.12.2018,CHIEF EXECUTIVE,CONWAY AECOM LTD,"4,116.43",CAPITAL PS (REGEN),CONSTRUCTION,5902332819,1000071205
05.12.2018,CHIEF EXECUTIVE,PECKHAM PALMS LTD,"118,554.00",CAPITAL PS (REGEN),FIT-OUT,5902332878,1000081205
05.12.2018,CHIEF EXECUTIVE'S OFFICE,J C CONSULTANT SERVICES LTD,"8,000.00",CHIEF EXEC'S OFFICE,GRANTS,5902332866,1000042476
05.12.2018,CHIEF EXECUTIVE'S OFFICE,J C CONSULTANT SERVICES LTD,"8,500.00",CHIEF EXEC'S OFFICE,GRANTS,5902332904,1000042476
05.12.2018,CHILDREN AND ADULT,KIER CONSTRUCTION LTD,"858,137.05",CAPITAL PS (EDUCATION),CONSTRUCTION,2102896205,3000001970
05.12.2018,CHILDREN AND ADULT,DAVID MILES & PARTNERS LTD,"3,674.25",CAPITAL PS (EDUCATION),CONSTRUCTION FEES  - EXTERNAL,5902332809,1000001119
05.12.2018,CHILDREN AND ADULT,LIBRA CONSTRUCTION SERVICES LTD,"4,333.00",CAPITAL PS (EDUCATION),CONSTRUCTION MAIN CONTRACT -CERTIFICATED,2102896208,3000000875
05.12.2018,CHILDREN AND ADULT,BELLENDEN PRIMARY SCHOOL,"13,539.25",CAPITAL PS (EDUCATION),FIT-OUT,5902332855,5001000007
05.12.2018,CHILDREN AND ADULT,INTERSERVE (FACILITIES MANAGEMENT),"8,969.76",CAPITAL PS (SOC SERV),CONSTRUCTION MAIN CONTRACT,2102896207,3000000166
05.12.2018,CHILDREN'S SERVICES,REDACTED PERSONAL DATA,251.12,ADOPTION PLACEMENTS & INTER AGENCY,PAYMENTS TO CARERS,REDACTED,REDACTED
05.12.2018,CHILDREN'S SERVICES,REDACTED PERSONAL DATA,251.94,ADOPTION PLACEMENTS & INTER AGENCY,PAYMENTS TO CARERS,REDACTED,REDACTED
05.12.2018,CHILDREN'S SERVICES,REDACTED PERSONAL DATA,252.9,ADOPTION PLACEMENTS & INTER AGENCY,PAYMENTS TO CARERS,REDACTED,REDACTED
05.12.2018,CHILDREN'S SERVICES,REDACTED PERSONAL DATA,253.56,ADOPTION PLACEMENTS & INTER AGENCY,PAYMENTS TO CARERS,REDACTED,REDACTED
05.12.2018,CHILDREN'S SERVICES,REDACTED PERSONAL DATA,255.2,ADOPTION PLACEMENTS & INTER AGENCY,PAYMENTS TO CARERS,REDACTED,REDACTED
05.12.2018,CHILDREN'S SERVICES,REDACTED PERSONAL DATA,255.22,ADOPTION PLACEMENTS & INTER AGENCY,PAYMENTS TO CARERS,REDACTED,REDACTED
05.12.2018,CHILDREN'S SERVICES,REDACTED PERSONAL DATA,255.22,ADOPTION PLACEMENTS & INTER AGENCY,PAYMENTS TO CARERS,REDACTED,REDACTED
05.12.2018,CHILDREN'S SERVICES,REDACTED PERSONAL DATA,261,ADOPTION PLACEMENTS & INTER AGENCY,PAYMENTS TO CARERS,REDACTED,REDACTED
05.12.2018,CHILDREN'S SERVICES,REDACTED PERSONAL DATA,269.22,ADOPTION PLACEMENTS & INTER AGENCY,PAYMENTS TO CARERS,REDACTED,REDACTED
05.12.2018,CHILDREN'S SERVICES,REDACTED PERSONAL DATA,279.26,ADOPTION PLACEMENTS & INTER AGENCY,PAYMENTS TO CARERS,REDACTED,REDACTED
05.12.2018,CHILDREN'S SERVICES,REDACTED PERSONAL DATA,282.76,ADOPTION PLACEMENTS & INTER AGENCY,PAYMENTS TO CARERS,REDACTED,REDACTED
05.12.2018,CHILDREN'S SERVICES,REDACTED PERSONAL DATA,293.98,ADOPTION PLACEMENTS & INTER AGENCY,PAYMENTS TO CARERS,REDACTED,REDACTED
05.12.2018,CHILDREN'S SERVICES,REDACTED PERSONAL DATA,304.64,ADOPTION PLACEMENTS & INTER AGENCY,PAYMENTS TO CARERS,REDACTED,REDACTED
05.12.2018,CHILDREN'S SERVICES,REDACTED PERSONAL DATA,359.44,ADOPTION PLACEMENTS & INTER AGENCY,PAYMENTS TO CARERS,REDACTED,REDACTED
05.12.2018,CHILDREN'S SERVICES,REDACTED PERSONAL DATA,359.44,ADOPTION PLACEMENTS & INTER AGENCY,PAYMENTS TO CARERS,REDACTED,REDACTED
05.12.2018,CHILDREN'S SERVICES,REDACTED PERSONAL DATA,368.52,ADOPTION PLACEMENTS & INTER AGENCY,PAYMENTS TO CARERS,REDACTED,REDACTED
05.12.2018,CHILDREN'S SERVICES,REDACTED PERSONAL DATA,375.54,ADOPTION PLACEMENTS & INTER AGENCY,PAYMENTS TO CARERS,REDACTED,REDACTED
05.12.2018,CHILDREN'S SERVICES,REDACTED PERSONAL DATA,375.54,ADOPTION PLACEMENTS & INTER AGENCY,PAYMENTS TO CARERS,REDACTED,REDACTED
05.12.2018,CHILDREN'S SERVICES,REDACTED PERSONAL DATA,375.54,ADOPTION PLACEMENTS & INTER AGENCY,PAYMENTS TO CARERS,REDACTED,REDACTED
05.12.2018,CHILDREN'S SERVICES,REDACTED PERSONAL DATA,375.54,ADOPTION PLACEMENTS & INTER AGENCY,PAYMENTS TO CARERS,REDACTED,REDACTED
05.12.2018,CHILDREN'S SERVICES,REDACTED PERSONAL DATA,375.54,ADOPTION PLACEMENTS & INTER AGENCY,PAYMENTS TO CARERS,REDACTED,REDACTED
05.12.2018,CHILDREN'S SERVICES,REDACTED PERSONAL DATA,375.54,ADOPTION PLACEMENTS & INTER AGENCY,PAYMENTS TO CARERS,REDACTED,REDACTED
05.12.2018,CHILDREN'S SERVICES,REDACTED PERSONAL DATA,375.54,ADOPTION PLACEMENTS & INTER AGENCY,PAYMENTS TO CARERS,REDACTED,REDACTED
05.12.2018,CHILDREN'S SERVICES,REDACTED PERSONAL DATA,375.54,ADOPTION PLACEMENTS & INTER AGENCY,PAYMENTS TO CARERS,REDACTED,REDACTED
05.12.2018,CHILDREN'S SERVICES,REDACTED PERSONAL DATA,375.54,ADOPTION PLACEMENTS & INTER AGENCY,PAYMENTS TO CARERS,REDACTED,REDACTED
05.12.2018,CHILDREN'S SERVICES,REDACTED PERSONAL DATA,382.3,ADOPTION PLACEMENTS & INTER AGENCY,PAYMENTS TO CARERS,REDACTED,REDACTED
05.12.2018,CHILDREN'S SERVICES,REDACTED PERSONAL DATA,382.3,ADOPTION PLACEMENTS & INTER AGENCY,PAYMENTS TO CARERS,REDACTED,REDACTED
05.12.2018,CHILDREN'S SERVICES,REDACTED PERSONAL DATA,382.3,ADOPTION PLACEMENTS & INTER AGENCY,PAYMENTS TO CARERS,REDACTED,REDACTED
05.12.2018,CHILDREN'S SERVICES,REDACTED PERSONAL DATA,382.3,ADOPTION PLACEMENTS & INTER AGENCY,PAYMENTS TO CARERS,REDACTED,REDACTED
05.12.2018,CHILDREN'S SERVICES,REDACTED PERSONAL DATA,390.26,ADOPTION PLACEMENTS & INTER AGENCY,PAYMENTS TO CARERS,REDACTED,REDACTED
05.12.2018,CHILDREN'S SERVICES,REDACTED PERSONAL DATA,400.84,ADOPTION PLACEMENTS & INTER AGENCY,PAYMENTS TO CARERS,REDACTED,REDACTED
05.12.2018,CHILDREN'S SERVICES,REDACTED PERSONAL DATA,400.84,ADOPTION PLACEMENTS & INTER AGENCY,PAYMENTS TO CARERS,REDACTED,REDACTED
05.12.2018,CHILDREN'S SERVICES,REDACTED PERSONAL DATA,400.84,ADOPTION PLACEMENTS & INTER AGENCY,PAYMENTS TO CARERS,REDACTED,REDACTED
05.12.2018,CHILDREN'S SERVICES,REDACTED PERSONAL DATA,404.46,ADOPTION PLACEMENTS & INTER AGENCY,PAYMENTS TO CARERS,REDACTED,REDACTED
05.12.2018,CHILDREN'S SERVICES,REDACTED PERSONAL DATA,408.78,ADOPTION PLACEMENTS & INTER AGENCY,PAYMENTS TO CARERS,REDACTED,REDACTED
05.12.2018,CHILDREN'S SERVICES,REDACTED PERSONAL DATA,451.8,ADOPTION PLACEMENTS & INTER AGENCY,PAYMENTS TO CARERS,REDACTED,REDACTED
05.12.2018,CHILDREN'S SERVICES,REDACTED PERSONAL DATA,457.14,ADOPTION PLACEMENTS & INTER AGENCY,PAYMENTS TO CARERS,REDACTED,REDACTED
05.12.2018,CHILDREN'S SERVICES,REDACTED PERSONAL DATA,465.48,ADOPTION PLACEMENTS & INTER AGENCY,PAYMENTS TO CARERS,REDACTED,REDACTED
05.12.2018,CHILDREN'S SERVICES,REDACTED PERSONAL DATA,465.52,ADOPTION PLACEMENTS & INTER AGENCY,PAYMENTS TO CARERS,REDACTED,REDACTED
05.12.2018,CHILDREN'S SERVICES,REDACTED PERSONAL DATA,465.54,ADOPTION PLACEMENTS & INTER AGENCY,PAYMENTS TO CARERS,REDACTED,REDACTED
05.12.2018,CHILDREN'S SERVICES,REDACTED PERSONAL DATA,465.54,ADOPTION PLACEMENTS & INTER AGENCY,PAYMENTS TO CARERS,REDACTED,REDACTED
05.12.2018,CHILDREN'S SERVICES,REDACTED PERSONAL DATA,465.54,ADOPTION PLACEMENTS & INTER AGENCY,PAYMENTS TO CARERS,REDACTED,REDACTED
05.12.2018,CHILDREN'S SERVICES,REDACTED PERSONAL DATA,465.54,ADOPTION PLACEMENTS & INTER AGENCY,PAYMENTS TO CARERS,REDACTED,REDACTED
05.12.2018,CHILDREN'S SERVICES,REDACTED PERSONAL DATA,484.92,ADOPTION PLACEMENTS & INTER AGENCY,PAYMENTS TO CARERS,REDACTED,REDACTED
05.12.2018,CHILDREN'S SERVICES,REDACTED PERSONAL DATA,485.22,ADOPTION PLACEMENTS & INTER AGENCY,PAYMENTS TO CARERS,REDACTED,REDACTED
05.12.2018,CHILDREN'S SERVICES,REDACTED PERSONAL DATA,502,ADOPTION PLACEMENTS & INTER AGENCY,PAYMENTS TO CARERS,REDACTED,REDACTED
05.12.2018,CHILDREN'S SERVICES,REDACTED PERSONAL DATA,510.96,ADOPTION PLACEMENTS & INTER AGENCY,PAYMENTS TO CARERS,REDACTED,REDACTED
05.12.2018,CHILDREN'S SERVICES,REDACTED PERSONAL DATA,512.02,ADOPTION PLACEMENTS & INTER AGENCY,PAYMENTS TO CARERS,REDACTED,REDACTED
05.12.2018,CHILDREN'S SERVICES,REDACTED PERSONAL DATA,530,ADOPTION PLACEMENTS & INTER AGENCY,PAYMENTS TO CARERS,REDACTED,REDACTED
05.12.2018,CHILDREN'S SERVICES,REDACTED PERSONAL DATA,552.16,ADOPTION PLACEMENTS & INTER AGENCY,PAYMENTS TO CARERS,REDACTED,REDACTED
05.12.2018,CHILDREN'S SERVICES,REDACTED PERSONAL DATA,559.06,ADOPTION PLACEMENTS & INTER AGENCY,PAYMENTS TO CARERS,REDACTED,REDACTED
05.12.2018,CHILDREN'S SERVICES,REDACTED PERSONAL DATA,588.42,ADOPTION PLACEMENTS & INTER AGENCY,PAYMENTS TO CARERS,REDACTED,REDACTED
05.12.2018,CHILDREN'S SERVICES,REDACTED PERSONAL DATA,623.94,ADOPTION PLACEMENTS & INTER AGENCY,PAYMENTS TO CARERS,REDACTED,REDACTED
05.12.2018,CHILDREN'S SERVICES,REDACTED PERSONAL DATA,635.34,ADOPTION PLACEMENTS & INTER AGENCY,PAYMENTS TO CARERS,REDACTED,REDACTED
05.12.2018,CHILDREN'S SERVICES,REDACTED PERSONAL DATA,640.9,ADOPTION PLACEMENTS & INTER AGENCY,PAYMENTS TO CARERS,REDACTED,REDACTED
05.12.2018,CHILDREN'S SERVICES,REDACTED PERSONAL DATA,652.9,ADOPTION PLACEMENTS & INTER AGENCY,PAYMENTS TO CARERS,REDACTED,REDACTED
05.12.2018,CHILDREN'S SERVICES,REDACTED PERSONAL DATA,652.9,ADOPTION PLACEMENTS & INTER AGENCY,PAYMENTS TO CARERS,REDACTED,REDACTED
05.12.2018,CHILDREN'S SERVICES,REDACTED PERSONAL DATA,653.06,ADOPTION PLACEMENTS & INTER AGENCY,PAYMENTS TO CARERS,REDACTED,REDACTED
05.12.2018,CHILDREN'S SERVICES,REDACTED PERSONAL DATA,682.3,ADOPTION PLACEMENTS & INTER AGENCY,PAYMENTS TO CARERS,REDACTED,REDACTED
05.12.2018,CHILDREN'S SERVICES,REDACTED PERSONAL DATA,682.3,ADOPTION PLACEMENTS & INTER AGENCY,PAYMENTS TO CARERS,REDACTED,REDACTED
05.12.2018,CHILDREN'S SERVICES,REDACTED PERSONAL DATA,695.04,ADOPTION PLACEMENTS & INTER AGENCY,PAYMENTS TO CARERS,REDACTED,REDACTED
05.12.2018,CHILDREN'S SERVICES,REDACTED PERSONAL DATA,695.12,ADOPTION PLACEMENTS & INTER AGENCY,PAYMENTS TO CARERS,REDACTED,REDACTED
05.12.2018,CHILDREN'S SERVICES,REDACTED PERSONAL DATA,705.24,ADOPTION PLACEMENTS & INTER AGENCY,PAYMENTS TO CARERS,REDACTED,REDACTED
05.12.2018,CHILDREN'S SERVICES,REDACTED PERSONAL DATA,712.3,ADOPTION PLACEMENTS & INTER AGENCY,PAYMENTS TO CARERS,REDACTED,REDACTED
05.12.2018,CHILDREN'S SERVICES,REDACTED PERSONAL DATA,717.14,ADOPTION PLACEMENTS & INTER AGENCY,PAYMENTS TO CARERS,REDACTED,REDACTED
05.12.2018,CHILDREN'S SERVICES,REDACTED PERSONAL DATA,738.32,ADOPTION PLACEMENTS & INTER AGENCY,PAYMENTS TO CARERS,REDACTED,REDACTED
05.12.2018,CHILDREN'S SERVICES,REDACTED PERSONAL DATA,767.68,ADOPTION PLACEMENTS & INTER AGENCY,PAYMENTS TO CARERS,REDACTED,REDACTED
05.12.2018,CHILDREN'S SERVICES,REDACTED PERSONAL DATA,777.36,ADOPTION PLACEMENTS & INTER AGENCY,PAYMENTS TO CARERS,REDACTED,REDACTED
05.12.2018,CHILDREN'S SERVICES,REDACTED PERSONAL DATA,854.28,ADOPTION PLACEMENTS & INTER AGENCY,PAYMENTS TO CARERS,REDACTED,REDACTED
05.12.2018,CHILDREN'S SERVICES,REDACTED PERSONAL DATA,908,ADOPTION PLACEMENTS & INTER AGENCY,PAYMENTS TO CARERS,REDACTED,REDACTED
05.12.2018,CHILDREN'S SERVICES,REDACTED PERSONAL DATA,"1,053.20",ADOPTION PLACEMENTS & INTER AGENCY,PAYMENTS TO CARERS,REDACTED,REDACTED
05.12.2018,CHILDREN'S SERVICES,SWIIS FOSTER CARE LTD,697.97,AGENCY FOSTERING,EXTERNAL AGENCIES AND BODIES,2102894736,1000069633
05.12.2018,CHILDREN'S SERVICES,SYNERGY FOSTERING LTD,"1,894.85",AGENCY FOSTERING,EXTERNAL AGENCIES AND BODIES,2102896126,1000031559
05.12.2018,CHILDREN'S SERVICES,HELP ME GROW FOSTERING SERVICES LTD,"2,777.10",AGENCY FOSTERING,EXTERNAL AGENCIES AND BODIES,2102894700,1000079302
05.12.2018,CHILDREN'S SERVICES,HELP ME GROW FOSTERING SERVICES LTD,"2,777.10",AGENCY FOSTERING,EXTERNAL AGENCIES AND BODIES,2102894737,1000079302
05.12.2018,CHILDREN'S SERVICES,COMPASS FOSTERING SOUTH LTD,"2,796.39",AGENCY FOSTERING,EXTERNAL AGENCIES AND BODIES,2102896146,1000073772
05.12.2018,CHILDREN'S SERVICES,KENT HOMEFINDING & FOSTERING LTD,"2,943.00",AGENCY FOSTERING,EXTERNAL AGENCIES AND BODIES,2102896124,1000033978
05.12.2018,CHILDREN'S SERVICES,KENT HOMEFINDING & FOSTERING LTD,"2,943.00",AGENCY FOSTERING,EXTERNAL AGENCIES AND BODIES,2102896125,1000033978
05.12.2018,CHILDREN'S SERVICES,KENT HOMEFINDING & FOSTERING LTD,"2,943.00",AGENCY FOSTERING,EXTERNAL AGENCIES AND BODIES,2102896148,1000033978
05.12.2018,CHILDREN'S SERVICES,COMPASS FOSTERING LONDON LTD,"2,978.70",AGENCY FOSTERING,EXTERNAL AGENCIES AND BODIES,2102896142,1000057908
05.12.2018,CHILDREN'S SERVICES,SUPPORTED FOSTERING SERVICES,"2,995.80",AGENCY FOSTERING,EXTERNAL AGENCIES AND BODIES,2102896117,1927554
05.12.2018,CHILDREN'S SERVICES,TIME FOR CHILDREN LTD,"3,000.00",AGENCY FOSTERING,EXTERNAL AGENCIES AND BODIES,2102896138,1000024439
05.12.2018,CHILDREN'S SERVICES,HELP ME GROW FOSTERING SERVICES LTD,"3,085.50",AGENCY FOSTERING,EXTERNAL AGENCIES AND BODIES,2102894698,1000079302
05.12.2018,CHILDREN'S SERVICES,HELP ME GROW FOSTERING SERVICES LTD,"3,085.50",AGENCY FOSTERING,EXTERNAL AGENCIES AND BODIES,2102894704,1000079302
05.12.2018,CHILDREN'S SERVICES,HELP ME GROW FOSTERING SERVICES LTD,"3,085.50",AGENCY FOSTERING,EXTERNAL AGENCIES AND BODIES,2102894711,1000079302
05.12.2018,CHILDREN'S SERVICES,HELP ME GROW FOSTERING SERVICES LTD,"3,085.50",AGENCY FOSTERING,EXTERNAL AGENCIES AND BODIES,2102894716,1000079302
05.12.2018,CHILDREN'S SERVICES,HELP ME GROW FOSTERING SERVICES LTD,"3,085.50",AGENCY FOSTERING,EXTERNAL AGENCIES AND BODIES,2102894720,1000079302
05.12.2018,CHILDREN'S SERVICES,SELECT FOSTERCARE SERVICES LTD,"3,180.00",AGENCY FOSTERING,EXTERNAL AGENCIES AND BODIES,2102896158,1000079277
05.12.2018,CHILDREN'S SERVICES,COMPASS FOSTERING SOUTH LTD,"3,201.39",AGENCY FOSTERING,EXTERNAL AGENCIES AND BODIES,2102896141,1000073772
05.12.2018,CHILDREN'S SERVICES,CORE ASSETS FOSTERING LTD,"3,211.60",AGENCY FOSTERING,EXTERNAL AGENCIES AND BODIES,2102896122,11288002
05.12.2018,CHILDREN'S SERVICES,CONNECT FOSTERING SERVICES LTD,"3,235.71",AGENCY FOSTERING,EXTERNAL AGENCIES AND BODIES,2102896154,1000079969
05.12.2018,CHILDREN'S SERVICES,THE XCEL 2000 PARTNERSHIP LTD,"3,248.57",AGENCY FOSTERING,EXTERNAL AGENCIES AND BODIES,2102896133,1000024427
05.12.2018,CHILDREN'S SERVICES,FIVE RIVERS CHILD CARE LTD,"3,257.14",AGENCY FOSTERING,EXTERNAL AGENCIES AND BODIES,2102896121,1000018792
05.12.2018,CHILDREN'S SERVICES,CHILDREN OF COLOUR,"3,360.00",AGENCY FOSTERING,EXTERNAL AGENCIES AND BODIES,2102894717,1000044955
05.12.2018,CHILDREN'S SERVICES,CAPSTONE FOSTER CARE,"3,398.40",AGENCY FOSTERING,EXTERNAL AGENCIES AND BODIES,2102896112,1000050353
05.12.2018,CHILDREN'S SERVICES,ST CHRISTOPHER FELLOWSHIP,"3,407.10",AGENCY FOSTERING,EXTERNAL AGENCIES AND BODIES,2102896151,1000045269
05.12.2018,CHILDREN'S SERVICES,CONNECT FOSTERING SERVICES LTD,"3,407.14",AGENCY FOSTERING,EXTERNAL AGENCIES AND BODIES,2102896129,1000079969
05.12.2018,CHILDREN'S SERVICES,SUPPORTED FOSTERING SERVICES,"3,413.40",AGENCY FOSTERING,EXTERNAL AGENCIES AND BODIES,2102896157,1927554
05.12.2018,CHILDREN'S SERVICES,RYANCARE FOSTERING,"3,427.50",AGENCY FOSTERING,EXTERNAL AGENCIES AND BODIES,2102896115,1000062376
05.12.2018,CHILDREN'S SERVICES,CHILDREN OF COLOUR,"3,444.00",AGENCY FOSTERING,EXTERNAL AGENCIES AND BODIES,2102894701,1000044955
05.12.2018,CHILDREN'S SERVICES,CHILDREN OF COLOUR,"3,444.00",AGENCY FOSTERING,EXTERNAL AGENCIES AND BODIES,2102894730,1000044955
05.12.2018,CHILDREN'S SERVICES,CHILDREN OF COLOUR,"3,444.00",AGENCY FOSTERING,EXTERNAL AGENCIES AND BODIES,2102894734,1000044955
05.12.2018,CHILDREN'S SERVICES,BARNARDOS SERVICES LTD,"3,444.30",AGENCY FOSTERING,EXTERNAL AGENCIES AND BODIES,2102896134,1000063730
05.12.2018,CHILDREN'S SERVICES,KENT HOMEFINDING & FOSTERING LTD,"3,450.00",AGENCY FOSTERING,EXTERNAL AGENCIES AND BODIES,2102896123,1000033978
05.12.2018,CHILDREN'S SERVICES,KENT HOMEFINDING & FOSTERING LTD,"3,450.00",AGENCY FOSTERING,EXTERNAL AGENCIES AND BODIES,2102896132,1000033978
05.12.2018,CHILDREN'S SERVICES,KENT HOMEFINDING & FOSTERING LTD,"3,450.00",AGENCY FOSTERING,EXTERNAL AGENCIES AND BODIES,2102896137,1000033978
05.12.2018,CHILDREN'S SERVICES,FUTURES FOR CHILDREN LIMITED,"3,532.20",AGENCY FOSTERING,EXTERNAL AGENCIES AND BODIES,2102896144,1000041984
05.12.2018,CHILDREN'S SERVICES,SELECT FOSTERCARE SERVICES LTD,"3,535.50",AGENCY FOSTERING,EXTERNAL AGENCIES AND BODIES,2102896118,1000079277
05.12.2018,CHILDREN'S SERVICES,COMPASS FOSTERING LONDON LTD,"3,557.10",AGENCY FOSTERING,EXTERNAL AGENCIES AND BODIES,2102896113,1000057908
05.12.2018,CHILDREN'S SERVICES,COMPASS FOSTERING LONDON LTD,"3,557.10",AGENCY FOSTERING,EXTERNAL AGENCIES AND BODIES,2102896143,1000057908
05.12.2018,CHILDREN'S SERVICES,ETHELBERT SPECIALIST HOMES,"3,559.46",AGENCY FOSTERING,EXTERNAL AGENCIES AND BODIES,2102896114,1796129
05.12.2018,CHILDREN'S SERVICES,ETHELBERT SPECIALIST HOMES,"3,559.46",AGENCY FOSTERING,EXTERNAL AGENCIES AND BODIES,2102896130,1796129
05.12.2018,CHILDREN'S SERVICES,ETHELBERT SPECIALIST HOMES,"3,559.46",AGENCY FOSTERING,EXTERNAL AGENCIES AND BODIES,2102896155,1796129
05.12.2018,CHILDREN'S SERVICES,WELCOME FOSTER CARE LTD,"3,642.90",AGENCY FOSTERING,EXTERNAL AGENCIES AND BODIES,2102896150,1000074586
05.12.2018,CHILDREN'S SERVICES,ANCHOR FOSTERCARE,"3,677.10",AGENCY FOSTERING,EXTERNAL AGENCIES AND BODIES,2102896140,1000065675
05.12.2018,CHILDREN'S SERVICES,ANCHOR FOSTERCARE,"3,732.30",AGENCY FOSTERING,EXTERNAL AGENCIES AND BODIES,2102896152,1000065675
05.12.2018,CHILDREN'S SERVICES,CHILDREN FIRST FOSTERING AGENCY LTD,"3,750.00",AGENCY FOSTERING,EXTERNAL AGENCIES AND BODIES,2102896135,1000060081
05.12.2018,CHILDREN'S SERVICES,CHILDREN FIRST FOSTERING AGENCY LTD,"3,750.00",AGENCY FOSTERING,EXTERNAL AGENCIES AND BODIES,2102896153,1000060081
05.12.2018,CHILDREN'S SERVICES,ETHELBERT SPECIALIST HOMES,"3,757.16",AGENCY FOSTERING,EXTERNAL AGENCIES AND BODIES,2102896120,1796129
05.12.2018,CHILDREN'S SERVICES,ETHELBERT SPECIALIST HOMES,"3,757.16",AGENCY FOSTERING,EXTERNAL AGENCIES AND BODIES,2102896136,1796129
05.12.2018,CHILDREN'S SERVICES,NEXT STEP FOSTERING SERVICES LTD,"3,858.00",AGENCY FOSTERING,EXTERNAL AGENCIES AND BODIES,2102896116,1000044973
05.12.2018,CHILDREN'S SERVICES,BY THE BRIDGE LTD,"4,082.44",AGENCY FOSTERING,EXTERNAL AGENCIES AND BODIES,2102894707,1000043961
05.12.2018,CHILDREN'S SERVICES,BY THE BRIDGE LTD,"4,206.86",AGENCY FOSTERING,EXTERNAL AGENCIES AND BODIES,2102894714,1000043961
05.12.2018,CHILDREN'S SERVICES,BY THE BRIDGE LTD,"4,223.91",AGENCY FOSTERING,EXTERNAL AGENCIES AND BODIES,2102894735,1000043961
05.12.2018,CHILDREN'S SERVICES,BY THE BRIDGE LTD,"4,297.33",AGENCY FOSTERING,EXTERNAL AGENCIES AND BODIES,2102894706,1000043961
05.12.2018,CHILDREN'S SERVICES,BY THE BRIDGE LTD,"4,297.33",AGENCY FOSTERING,EXTERNAL AGENCIES AND BODIES,2102894715,1000043961
05.12.2018,CHILDREN'S SERVICES,BY THE BRIDGE LTD,"4,331.44",AGENCY FOSTERING,EXTERNAL AGENCIES AND BODIES,2102894719,1000043961
05.12.2018,CHILDREN'S SERVICES,COMPASS FOSTERING SOUTH EAST LTD,"4,350.00",AGENCY FOSTERING,EXTERNAL AGENCIES AND BODIES,2102896111,1000081155
05.12.2018,CHILDREN'S SERVICES,BY THE BRIDGE LTD,"4,359.64",AGENCY FOSTERING,EXTERNAL AGENCIES AND BODIES,2102894710,1000043961
05.12.2018,CHILDREN'S SERVICES,CHILDREN OF ALL NATIONS LTD,"4,417.93",AGENCY FOSTERING,EXTERNAL AGENCIES AND BODIES,2102895714,1000060151
05.12.2018,CHILDREN'S SERVICES,CHILDREN OF ALL NATIONS LTD,"4,417.93",AGENCY FOSTERING,EXTERNAL AGENCIES AND BODIES,2102895715,1000060151
05.12.2018,CHILDREN'S SERVICES,BY THE BRIDGE LTD,"4,422.60",AGENCY FOSTERING,EXTERNAL AGENCIES AND BODIES,2102894702,1000043961
05.12.2018,CHILDREN'S SERVICES,BY THE BRIDGE LTD,"4,422.60",AGENCY FOSTERING,EXTERNAL AGENCIES AND BODIES,2102894705,1000043961
05.12.2018,CHILDREN'S SERVICES,BY THE BRIDGE LTD,"4,422.60",AGENCY FOSTERING,EXTERNAL AGENCIES AND BODIES,2102894723,1000043961
05.12.2018,CHILDREN'S SERVICES,BY THE BRIDGE LTD,"4,422.60",AGENCY FOSTERING,EXTERNAL AGENCIES AND BODIES,2102894726,1000043961
05.12.2018,CHILDREN'S SERVICES,BY THE BRIDGE LTD,"4,433.01",AGENCY FOSTERING,EXTERNAL AGENCIES AND BODIES,2102894731,1000043961
05.12.2018,CHILDREN'S SERVICES,BY THE BRIDGE LTD,"4,447.59",AGENCY FOSTERING,EXTERNAL AGENCIES AND BODIES,2102894703,1000043961
05.12.2018,CHILDREN'S SERVICES,HELP ME GROW FOSTERING SERVICES LTD,"4,500.00",AGENCY FOSTERING,EXTERNAL AGENCIES AND BODIES,2102894729,1000079302
05.12.2018,CHILDREN'S SERVICES,ST CHRISTOPHER FELLOWSHIP,"4,500.00",AGENCY FOSTERING,EXTERNAL AGENCIES AND BODIES,2102896110,1000045269
05.12.2018,CHILDREN'S SERVICES,ST CHRISTOPHER FELLOWSHIP,"4,500.00",AGENCY FOSTERING,EXTERNAL AGENCIES AND BODIES,2102896119,1000045269
05.12.2018,CHILDREN'S SERVICES,BY THE BRIDGE LTD,"4,523.49",AGENCY FOSTERING,EXTERNAL AGENCIES AND BODIES,2102894725,1000043961
05.12.2018,CHILDREN'S SERVICES,BY THE BRIDGE LTD,"4,650.47",AGENCY FOSTERING,EXTERNAL AGENCIES AND BODIES,2102894709,1000043961
05.12.2018,CHILDREN'S SERVICES,BY THE BRIDGE LTD,"4,650.47",AGENCY FOSTERING,EXTERNAL AGENCIES AND BODIES,2102894732,1000043961
05.12.2018,CHILDREN'S SERVICES,CHILDREN OF COLOUR,"4,714.28",AGENCY FOSTERING,EXTERNAL AGENCIES AND BODIES,2102894721,1000044955
05.12.2018,CHILDREN'S SERVICES,BY THE BRIDGE LTD,"4,745.36",AGENCY FOSTERING,EXTERNAL AGENCIES AND BODIES,2102894722,1000043961
05.12.2018,CHILDREN'S SERVICES,BY THE BRIDGE LTD,"4,745.36",AGENCY FOSTERING,EXTERNAL AGENCIES AND BODIES,2102894733,1000043961
05.12.2018,CHILDREN'S SERVICES,HEATH FARM FAMILY SOLUTION (FOSTERING),"5,150.40",AGENCY FOSTERING,EXTERNAL AGENCIES AND BODIES,2102896131,11271268
05.12.2018,CHILDREN'S SERVICES,BY THE BRIDGE LTD,"5,292.86",AGENCY FOSTERING,EXTERNAL AGENCIES AND BODIES,2102894699,1000043961
05.12.2018,CHILDREN'S SERVICES,BY THE BRIDGE LTD,"5,292.86",AGENCY FOSTERING,EXTERNAL AGENCIES AND BODIES,2102894718,1000043961
05.12.2018,CHILDREN'S SERVICES,BY THE BRIDGE LTD,"5,292.86",AGENCY FOSTERING,EXTERNAL AGENCIES AND BODIES,2102894727,1000043961
05.12.2018,CHILDREN'S SERVICES,SUPPORTED FOSTERING SERVICES,"5,335.50",AGENCY FOSTERING,EXTERNAL AGENCIES AND BODIES,2102896127,1927554
05.12.2018,CHILDREN'S SERVICES,COMPASS FOSTERING SOUTH EAST LTD,"5,357.10",AGENCY FOSTERING,EXTERNAL AGENCIES AND BODIES,2102896128,1000081155
05.12.2018,CHILDREN'S SERVICES,HELP ME GROW FOSTERING SERVICES LTD,"5,571.30",AGENCY FOSTERING,EXTERNAL AGENCIES AND BODIES,2102894708,1000079302
05.12.2018,CHILDREN'S SERVICES,HELP ME GROW FOSTERING SERVICES LTD,"5,571.30",AGENCY FOSTERING,EXTERNAL AGENCIES AND BODIES,2102894712,1000079302
05.12.2018,CHILDREN'S SERVICES,HELP ME GROW FOSTERING SERVICES LTD,"5,571.30",AGENCY FOSTERING,EXTERNAL AGENCIES AND BODIES,2102894713,1000079302
05.12.2018,CHILDREN'S SERVICES,BY THE BRIDGE LTD,"5,571.43",AGENCY FOSTERING,EXTERNAL AGENCIES AND BODIES,2102894728,1000043961
05.12.2018,CHILDREN'S SERVICES,LIGHTHOUSE FOSTERING LTD,"5,580.86",AGENCY FOSTERING,EXTERNAL AGENCIES AND BODIES,2102895716,1000080372
05.12.2018,CHILDREN'S SERVICES,SHARED CARE SERVICES LTD,"5,650.20",AGENCY FOSTERING,EXTERNAL AGENCIES AND BODIES,2102896139,1000080308
05.12.2018,CHILDREN'S SERVICES,BY THE BRIDGE LTD,"6,030.00",AGENCY FOSTERING,EXTERNAL AGENCIES AND BODIES,2102894724,1000043961
05.12.2018,CHILDREN'S SERVICES,ALL4U FOSTERING LTD,"6,235.20",AGENCY FOSTERING,EXTERNAL AGENCIES AND BODIES,2102896147,1000080663
05.12.2018,CHILDREN'S SERVICES,MOSAIC FOSTER CARE LTD,"6,428.40",AGENCY FOSTERING,EXTERNAL AGENCIES AND BODIES,2102896149,1000076259
05.12.2018,CHILDREN'S SERVICES,MOSAIC FOSTER CARE LTD,"6,750.00",AGENCY FOSTERING,EXTERNAL AGENCIES AND BODIES,2102896145,1000076259
05.12.2018,CHILDREN'S SERVICES,MOSAIC FOSTER CARE LTD,"6,750.00",AGENCY FOSTERING,EXTERNAL AGENCIES AND BODIES,2102896156,1000076259
05.12.2018,CHILDREN'S SERVICES,REDACTED PERSONAL DATA,285.74,CARE GRPS  1 TO 3,OTHER PAYMENTS FOR CLIENTS,REDACTED,REDACTED
05.12.2018,CHILDREN'S SERVICES,REDACTED PERSONAL DATA,490,CARE PRACTICE GROUP SET C,OTHER PAYMENTS FOR CLIENTS,REDACTED,REDACTED
05.12.2018,CHILDREN'S SERVICES,REDACTED PERSONAL DATA,300,DISABILITY & HIV,ADDITIONAL PAYMENTS TO AGENCIES/CARERS,REDACTED,REDACTED
05.12.2018,CHILDREN'S SERVICES,REDACTED PERSONAL DATA,300,DISABILITY & HIV,ADDITIONAL PAYMENTS TO AGENCIES/CARERS,REDACTED,REDACTED
05.12.2018,CHILDREN'S SERVICES,REDACTED PERSONAL DATA,300,DISABILITY & HIV,ADDITIONAL PAYMENTS TO AGENCIES/CARERS,REDACTED,REDACTED
05.12.2018,CHILDREN'S SERVICES,REDACTED PERSONAL DATA,300,DISABILITY & HIV,ADDITIONAL PAYMENTS TO AGENCIES/CARERS,REDACTED,REDACTED
05.12.2018,CHILDREN'S SERVICES,REDACTED PERSONAL DATA,300,DISABILITY & HIV,ADDITIONAL PAYMENTS TO AGENCIES/CARERS,REDACTED,REDACTED
05.12.2018,CHILDREN'S SERVICES,REDACTED PERSONAL DATA,300,DISABILITY & HIV,ADDITIONAL PAYMENTS TO AGENCIES/CARERS,REDACTED,REDACTED
05.12.2018,CHILDREN'S SERVICES,REDACTED PERSONAL DATA,300,DISABILITY & HIV,ADDITIONAL PAYMENTS TO AGENCIES/CARERS,REDACTED,REDACTED
05.12.2018,CHILDREN'S SERVICES,REDACTED PERSONAL DATA,300,DISABILITY & HIV,ADDITIONAL PAYMENTS TO AGENCIES/CARERS,REDACTED,REDACTED
05.12.2018,CHILDREN'S SERVICES,REDACTED PERSONAL DATA,300,DISABILITY & HIV,ADDITIONAL PAYMENTS TO AGENCIES/CARERS,REDACTED,REDACTED
05.12.2018,CHILDREN'S SERVICES,REDACTED PERSONAL DATA,300,DISABILITY & HIV,ADDITIONAL PAYMENTS TO AGENCIES/CARERS,REDACTED,REDACTED
05.12.2018,CHILDREN'S SERVICES,REDACTED PERSONAL DATA,300,DISABILITY & HIV,ADDITIONAL PAYMENTS TO AGENCIES/CARERS,REDACTED,REDACTED
05.12.2018,CHILDREN'S SERVICES,REDACTED PERSONAL DATA,"1,200.00",DISABILITY & HIV,ADDITIONAL PAYMENTS TO AGENCIES/CARERS,REDACTED,REDACTED
05.12.2018,CHILDREN'S SERVICES,REDACTED PERSONAL DATA,"1,536.00",DISABILITY & HIV,ADDITIONAL PAYMENTS TO AGENCIES/CARERS,REDACTED,REDACTED
05.12.2018,CHILDREN'S SERVICES,REDACTED PERSONAL DATA,"2,690.00",DISABILITY & HIV,ADDITIONAL PAYMENTS TO AGENCIES/CARERS,REDACTED,REDACTED
05.12.2018,CHILDREN'S SERVICES,REDACTED PERSONAL DATA,400,DISABILITY & HIV,COMPUTER CONSUMABLES,REDACTED,REDACTED
05.12.2018,CHILDREN'S SERVICES,REDACTED PERSONAL DATA,400,DISABILITY & HIV,COMPUTER CONSUMABLES,REDACTED,REDACTED
05.12.2018,CHILDREN'S SERVICES,REDACTED PERSONAL DATA,"1,999.28",DISABILITY & HIV,OTHER PAYMENTS FOR CLIENTS,REDACTED,REDACTED
05.12.2018,CHILDREN'S SERVICES,REDACTED PERSONAL DATA,"-2,064.29",DISABILITY & HIV,PAYMENTS TO CARERS,REDACTED,REDACTED
05.12.2018,CHILDREN'S SERVICES,REDACTED PERSONAL DATA,"-1,881.28",DISABILITY & HIV,PAYMENTS TO CARERS,REDACTED,REDACTED
05.12.2018,CHILDREN'S SERVICES,REDACTED PERSONAL DATA,"-1,184.05",DISABILITY & HIV,PAYMENTS TO CARERS,REDACTED,REDACTED
05.12.2018,CHILDREN'S SERVICES,REDACTED PERSONAL DATA,-401.88,DISABILITY & HIV,PAYMENTS TO CARERS,REDACTED,REDACTED
05.12.2018,CHILDREN'S SERVICES,REDACTED PERSONAL DATA,-384.06,DISABILITY & HIV,PAYMENTS TO CARERS,REDACTED,REDACTED
05.12.2018,CHILDREN'S SERVICES,REDACTED PERSONAL DATA,-380.62,DISABILITY & HIV,PAYMENTS TO CARERS,REDACTED,REDACTED
05.12.2018,CHILDREN'S SERVICES,REDACTED PERSONAL DATA,-380.62,DISABILITY & HIV,PAYMENTS TO CARERS,REDACTED,REDACTED
05.12.2018,CHILDREN'S SERVICES,REDACTED PERSONAL DATA,-356.15,DISABILITY & HIV,PAYMENTS TO CARERS,REDACTED,REDACTED
05.12.2018,CHILDREN'S SERVICES,REDACTED PERSONAL DATA,-342.05,DISABILITY & HIV,PAYMENTS TO CARERS,REDACTED,REDACTED
05.12.2018,CHILDREN'S SERVICES,REDACTED PERSONAL DATA,-332.67,DISABILITY & HIV,PAYMENTS TO CARERS,REDACTED,REDACTED
05.12.2018,CHILDREN'S SERVICES,REDACTED PERSONAL DATA,-300,DISABILITY & HIV,PAYMENTS TO CARERS,REDACTED,REDACTED
05.12.2018,CHILDREN'S SERVICES,REDACTED PERSONAL DATA,-300,DISABILITY & HIV,PAYMENTS TO CARERS,REDACTED,REDACTED
05.12.2018,CHILDREN'S SERVICES,REDACTED PERSONAL DATA,-272.29,DISABILITY & HIV,PAYMENTS TO CARERS,REDACTED,REDACTED
05.12.2018,CHILDREN'S SERVICES,REDACTED PERSONAL DATA,300,DISABILITY & HIV,PAYMENTS TO CARERS,REDACTED,REDACTED
05.12.2018,CHILDREN'S SERVICES,REDACTED PERSONAL DATA,330,DISABILITY & HIV,PAYMENTS TO CARERS,REDACTED,REDACTED
05.12.2018,CHILDREN'S SERVICES,REDACTED PERSONAL DATA,332.59,DISABILITY & HIV,PAYMENTS TO CARERS,REDACTED,REDACTED
05.12.2018,CHILDREN'S SERVICES,REDACTED PERSONAL DATA,335.34,DISABILITY & HIV,PAYMENTS TO CARERS,REDACTED,REDACTED
05.12.2018,CHILDREN'S SERVICES,REDACTED PERSONAL DATA,382.3,DISABILITY & HIV,PAYMENTS TO CARERS,REDACTED,REDACTED
05.12.2018,CHILDREN'S SERVICES,REDACTED PERSONAL DATA,456.07,DISABILITY & HIV,PAYMENTS TO CARERS,REDACTED,REDACTED
05.12.2018,CHILDREN'S SERVICES,REDACTED PERSONAL DATA,456.07,DISABILITY & HIV,PAYMENTS TO CARERS,REDACTED,REDACTED
05.12.2018,CHILDREN'S SERVICES,REDACTED PERSONAL DATA,476.08,DISABILITY & HIV,PAYMENTS TO CARERS,REDACTED,REDACTED
05.12.2018,CHILDREN'S SERVICES,REDACTED PERSONAL DATA,498.91,DISABILITY & HIV,PAYMENTS TO CARERS,REDACTED,REDACTED
05.12.2018,CHILDREN'S SERVICES,REDACTED PERSONAL DATA,588.12,DISABILITY & HIV,PAYMENTS TO CARERS,REDACTED,REDACTED
05.12.2018,CHILDREN'S SERVICES,REDACTED PERSONAL DATA,635.34,DISABILITY & HIV,PAYMENTS TO CARERS,REDACTED,REDACTED
05.12.2018,CHILDREN'S SERVICES,REDACTED PERSONAL DATA,635.34,DISABILITY & HIV,PAYMENTS TO CARERS,REDACTED,REDACTED
05.12.2018,CHILDREN'S SERVICES,REDACTED PERSONAL DATA,635.34,DISABILITY & HIV,PAYMENTS TO CARERS,REDACTED,REDACTED
05.12.2018,CHILDREN'S SERVICES,REDACTED PERSONAL DATA,665.34,DISABILITY & HIV,PAYMENTS TO CARERS,REDACTED,REDACTED
05.12.2018,CHILDREN'S SERVICES,REDACTED PERSONAL DATA,665.34,DISABILITY & HIV,PAYMENTS TO CARERS,REDACTED,REDACTED
05.12.2018,CHILDREN'S SERVICES,REDACTED PERSONAL DATA,665.34,DISABILITY & HIV,PAYMENTS TO CARERS,REDACTED,REDACTED
05.12.2018,CHILDREN'S SERVICES,REDACTED PERSONAL DATA,665.34,DISABILITY & HIV,PAYMENTS TO CARERS,REDACTED,REDACTED
05.12.2018,CHILDREN'S SERVICES,REDACTED PERSONAL DATA,665.34,DISABILITY & HIV,PAYMENTS TO CARERS,REDACTED,REDACTED
05.12.2018,CHILDREN'S SERVICES,REDACTED PERSONAL DATA,665.34,DISABILITY & HIV,PAYMENTS TO CARERS,REDACTED,REDACTED
05.12.2018,CHILDREN'S SERVICES,REDACTED PERSONAL DATA,665.34,DISABILITY & HIV,PAYMENTS TO CARERS,REDACTED,REDACTED
05.12.2018,CHILDREN'S SERVICES,REDACTED PERSONAL DATA,682.3,DISABILITY & HIV,PAYMENTS TO CARERS,REDACTED,REDACTED
05.12.2018,CHILDREN'S SERVICES,REDACTED PERSONAL DATA,682.3,DISABILITY & HIV,PAYMENTS TO CARERS,REDACTED,REDACTED
05.12.2018,CHILDREN'S SERVICES,REDACTED PERSONAL DATA,682.3,DISABILITY & HIV,PAYMENTS TO CARERS,REDACTED,REDACTED
05.12.2018,CHILDREN'S SERVICES,REDACTED PERSONAL DATA,682.3,DISABILITY & HIV,PAYMENTS TO CARERS,REDACTED,REDACTED
05.12.2018,CHILDREN'S SERVICES,REDACTED PERSONAL DATA,682.3,DISABILITY & HIV,PAYMENTS TO CARERS,REDACTED,REDACTED
05.12.2018,CHILDREN'S SERVICES,REDACTED PERSONAL DATA,682.3,DISABILITY & HIV,PAYMENTS TO CARERS,REDACTED,REDACTED
05.12.2018,CHILDREN'S SERVICES,REDACTED PERSONAL DATA,682.3,DISABILITY & HIV,PAYMENTS TO CARERS,REDACTED,REDACTED
05.12.2018,CHILDREN'S SERVICES,REDACTED PERSONAL DATA,682.3,DISABILITY & HIV,PAYMENTS TO CARERS,REDACTED,REDACTED
05.12.2018,CHILDREN'S SERVICES,REDACTED PERSONAL DATA,682.3,DISABILITY & HIV,PAYMENTS TO CARERS,REDACTED,REDACTED
05.12.2018,CHILDREN'S SERVICES,REDACTED PERSONAL DATA,682.3,DISABILITY & HIV,PAYMENTS TO CARERS,REDACTED,REDACTED
05.12.2018,CHILDREN'S SERVICES,REDACTED PERSONAL DATA,695.34,DISABILITY & HIV,PAYMENTS TO CARERS,REDACTED,REDACTED
05.12.2018,CHILDREN'S SERVICES,REDACTED PERSONAL DATA,712.3,DISABILITY & HIV,PAYMENTS TO CARERS,REDACTED,REDACTED
05.12.2018,CHILDREN'S SERVICES,REDACTED PERSONAL DATA,712.3,DISABILITY & HIV,PAYMENTS TO CARERS,REDACTED,REDACTED
05.12.2018,CHILDREN'S SERVICES,REDACTED PERSONAL DATA,712.3,DISABILITY & HIV,PAYMENTS TO CARERS,REDACTED,REDACTED
05.12.2018,CHILDREN'S SERVICES,REDACTED PERSONAL DATA,712.3,DISABILITY & HIV,PAYMENTS TO CARERS,REDACTED,REDACTED
05.12.2018,CHILDREN'S SERVICES,REDACTED PERSONAL DATA,712.3,DISABILITY & HIV,PAYMENTS TO CARERS,REDACTED,REDACTED
05.12.2018,CHILDREN'S SERVICES,REDACTED PERSONAL DATA,712.3,DISABILITY & HIV,PAYMENTS TO CARERS,REDACTED,REDACTED
05.12.2018,CHILDREN'S SERVICES,REDACTED PERSONAL DATA,712.3,DISABILITY & HIV,PAYMENTS TO CARERS,REDACTED,REDACTED
05.12.2018,CHILDREN'S SERVICES,REDACTED PERSONAL DATA,712.3,DISABILITY & HIV,PAYMENTS TO CARERS,REDACTED,REDACTED
05.12.2018,CHILDREN'S SERVICES,REDACTED PERSONAL DATA,712.3,DISABILITY & HIV,PAYMENTS TO CARERS,REDACTED,REDACTED
05.12.2018,CHILDREN'S SERVICES,REDACTED PERSONAL DATA,712.3,DISABILITY & HIV,PAYMENTS TO CARERS,REDACTED,REDACTED
05.12.2018,CHILDREN'S SERVICES,REDACTED PERSONAL DATA,712.3,DISABILITY & HIV,PAYMENTS TO CARERS,REDACTED,REDACTED
05.12.2018,CHILDREN'S SERVICES,REDACTED PERSONAL DATA,712.3,DISABILITY & HIV,PAYMENTS TO CARERS,REDACTED,REDACTED
05.12.2018,CHILDREN'S SERVICES,REDACTED PERSONAL DATA,712.3,DISABILITY & HIV,PAYMENTS TO CARERS,REDACTED,REDACTED
05.12.2018,CHILDREN'S SERVICES,REDACTED PERSONAL DATA,712.3,DISABILITY & HIV,PAYMENTS TO CARERS,REDACTED,REDACTED
05.12.2018,CHILDREN'S SERVICES,REDACTED PERSONAL DATA,712.3,DISABILITY & HIV,PAYMENTS TO CARERS,REDACTED,REDACTED
05.12.2018,CHILDREN'S SERVICES,REDACTED PERSONAL DATA,712.3,DISABILITY & HIV,PAYMENTS TO CARERS,REDACTED,REDACTED
05.12.2018,CHILDREN'S SERVICES,REDACTED PERSONAL DATA,712.3,DISABILITY & HIV,PAYMENTS TO CARERS,REDACTED,REDACTED
05.12.2018,CHILDREN'S SERVICES,REDACTED PERSONAL DATA,712.3,DISABILITY & HIV,PAYMENTS TO CARERS,REDACTED,REDACTED
05.12.2018,CHILDREN'S SERVICES,REDACTED PERSONAL DATA,712.3,DISABILITY & HIV,PAYMENTS TO CARERS,REDACTED,REDACTED
05.12.2018,CHILDREN'S SERVICES,REDACTED PERSONAL DATA,712.3,DISABILITY & HIV,PAYMENTS TO CARERS,REDACTED,REDACTED
05.12.2018,CHILDREN'S SERVICES,REDACTED PERSONAL DATA,712.3,DISABILITY & HIV,PAYMENTS TO CARERS,REDACTED,REDACTED
05.12.2018,CHILDREN'S SERVICES,REDACTED PERSONAL DATA,742.3,DISABILITY & HIV,PAYMENTS TO CARERS,REDACTED,REDACTED
05.12.2018,CHILDREN'S SERVICES,REDACTED PERSONAL DATA,768.12,DISABILITY & HIV,PAYMENTS TO CARERS,REDACTED,REDACTED
05.12.2018,CHILDREN'S SERVICES,REDACTED PERSONAL DATA,768.12,DISABILITY & HIV,PAYMENTS TO CARERS,REDACTED,REDACTED
05.12.2018,CHILDREN'S SERVICES,REDACTED PERSONAL DATA,768.12,DISABILITY & HIV,PAYMENTS TO CARERS,REDACTED,REDACTED
05.12.2018,CHILDREN'S SERVICES,REDACTED PERSONAL DATA,768.12,DISABILITY & HIV,PAYMENTS TO CARERS,REDACTED,REDACTED
05.12.2018,CHILDREN'S SERVICES,REDACTED PERSONAL DATA,768.12,DISABILITY & HIV,PAYMENTS TO CARERS,REDACTED,REDACTED
05.12.2018,CHILDREN'S SERVICES,REDACTED PERSONAL DATA,768.12,DISABILITY & HIV,PAYMENTS TO CARERS,REDACTED,REDACTED
05.12.2018,CHILDREN'S SERVICES,REDACTED PERSONAL DATA,768.12,DISABILITY & HIV,PAYMENTS TO CARERS,REDACTED,REDACTED
05.12.2018,CHILDREN'S SERVICES,REDACTED PERSONAL DATA,771.49,DISABILITY & HIV,PAYMENTS TO CARERS,REDACTED,REDACTED
05.12.2018,CHILDREN'S SERVICES,REDACTED PERSONAL DATA,776.08,DISABILITY & HIV,PAYMENTS TO CARERS,REDACTED,REDACTED
05.12.2018,CHILDREN'S SERVICES,REDACTED PERSONAL DATA,776.08,DISABILITY & HIV,PAYMENTS TO CARERS,REDACTED,REDACTED
05.12.2018,CHILDREN'S SERVICES,REDACTED PERSONAL DATA,776.08,DISABILITY & HIV,PAYMENTS TO CARERS,REDACTED,REDACTED
05.12.2018,CHILDREN'S SERVICES,REDACTED PERSONAL DATA,776.08,DISABILITY & HIV,PAYMENTS TO CARERS,REDACTED,REDACTED
05.12.2018,CHILDREN'S SERVICES,REDACTED PERSONAL DATA,776.08,DISABILITY & HIV,PAYMENTS TO CARERS,REDACTED,REDACTED
05.12.2018,CHILDREN'S SERVICES,REDACTED PERSONAL DATA,776.08,DISABILITY & HIV,PAYMENTS TO CARERS,REDACTED,REDACTED
05.12.2018,CHILDREN'S SERVICES,REDACTED PERSONAL DATA,776.08,DISABILITY & HIV,PAYMENTS TO CARERS,REDACTED,REDACTED
05.12.2018,CHILDREN'S SERVICES,REDACTED PERSONAL DATA,776.08,DISABILITY & HIV,PAYMENTS TO CARERS,REDACTED,REDACTED
05.12.2018,CHILDREN'S SERVICES,REDACTED PERSONAL DATA,776.08,DISABILITY & HIV,PAYMENTS TO CARERS,REDACTED,REDACTED
05.12.2018,CHILDREN'S SERVICES,REDACTED PERSONAL DATA,776.08,DISABILITY & HIV,PAYMENTS TO CARERS,REDACTED,REDACTED
05.12.2018,CHILDREN'S SERVICES,REDACTED PERSONAL DATA,776.08,DISABILITY & HIV,PAYMENTS TO CARERS,REDACTED,REDACTED
05.12.2018,CHILDREN'S SERVICES,REDACTED PERSONAL DATA,776.08,DISABILITY & HIV,PAYMENTS TO CARERS,REDACTED,REDACTED
05.12.2018,CHILDREN'S SERVICES,REDACTED PERSONAL DATA,790.22,DISABILITY & HIV,PAYMENTS TO CARERS,REDACTED,REDACTED
05.12.2018,CHILDREN'S SERVICES,REDACTED PERSONAL DATA,798.12,DISABILITY & HIV,PAYMENTS TO CARERS,REDACTED,REDACTED
05.12.2018,CHILDREN'S SERVICES,REDACTED PERSONAL DATA,798.12,DISABILITY & HIV,PAYMENTS TO CARERS,REDACTED,REDACTED
05.12.2018,CHILDREN'S SERVICES,REDACTED PERSONAL DATA,798.12,DISABILITY & HIV,PAYMENTS TO CARERS,REDACTED,REDACTED
05.12.2018,CHILDREN'S SERVICES,REDACTED PERSONAL DATA,798.12,DISABILITY & HIV,PAYMENTS TO CARERS,REDACTED,REDACTED
05.12.2018,CHILDREN'S SERVICES,REDACTED PERSONAL DATA,798.12,DISABILITY & HIV,PAYMENTS TO CARERS,REDACTED,REDACTED
05.12.2018,CHILDREN'S SERVICES,REDACTED PERSONAL DATA,798.12,DISABILITY & HIV,PAYMENTS TO CARERS,REDACTED,REDACTED
05.12.2018,CHILDREN'S SERVICES,REDACTED PERSONAL DATA,798.12,DISABILITY & HIV,PAYMENTS TO CARERS,REDACTED,REDACTED
05.12.2018,CHILDREN'S SERVICES,REDACTED PERSONAL DATA,798.12,DISABILITY & HIV,PAYMENTS TO CARERS,REDACTED,REDACTED
05.12.2018,CHILDREN'S SERVICES,REDACTED PERSONAL DATA,798.12,DISABILITY & HIV,PAYMENTS TO CARERS,REDACTED,REDACTED
05.12.2018,CHILDREN'S SERVICES,REDACTED PERSONAL DATA,798.12,DISABILITY & HIV,PAYMENTS TO CARERS,REDACTED,REDACTED
05.12.2018,CHILDREN'S SERVICES,REDACTED PERSONAL DATA,798.12,DISABILITY & HIV,PAYMENTS TO CARERS,REDACTED,REDACTED
05.12.2018,CHILDREN'S SERVICES,REDACTED PERSONAL DATA,798.12,DISABILITY & HIV,PAYMENTS TO CARERS,REDACTED,REDACTED
05.12.2018,CHILDREN'S SERVICES,REDACTED PERSONAL DATA,798.12,DISABILITY & HIV,PAYMENTS TO CARERS,REDACTED,REDACTED
05.12.2018,CHILDREN'S SERVICES,REDACTED PERSONAL DATA,798.12,DISABILITY & HIV,PAYMENTS TO CARERS,REDACTED,REDACTED
05.12.2018,CHILDREN'S SERVICES,REDACTED PERSONAL DATA,798.12,DISABILITY & HIV,PAYMENTS TO CARERS,REDACTED,REDACTED
05.12.2018,CHILDREN'S SERVICES,REDACTED PERSONAL DATA,798.12,DISABILITY & HIV,PAYMENTS TO CARERS,REDACTED,REDACTED
05.12.2018,CHILDREN'S SERVICES,REDACTED PERSONAL DATA,798.12,DISABILITY & HIV,PAYMENTS TO CARERS,REDACTED,REDACTED
05.12.2018,CHILDREN'S SERVICES,REDACTED PERSONAL DATA,798.12,DISABILITY & HIV,PAYMENTS TO CARERS,REDACTED,REDACTED
05.12.2018,CHILDREN'S SERVICES,REDACTED PERSONAL DATA,806.08,DISABILITY & HIV,PAYMENTS TO CARERS,REDACTED,REDACTED
05.12.2018,CHILDREN'S SERVICES,REDACTED PERSONAL DATA,806.08,DISABILITY & HIV,PAYMENTS TO CARERS,REDACTED,REDACTED
05.12.2018,CHILDREN'S SERVICES,REDACTED PERSONAL DATA,806.08,DISABILITY & HIV,PAYMENTS TO CARERS,REDACTED,REDACTED
05.12.2018,CHILDREN'S SERVICES,REDACTED PERSONAL DATA,806.08,DISABILITY & HIV,PAYMENTS TO CARERS,REDACTED,REDACTED
05.12.2018,CHILDREN'S SERVICES,REDACTED PERSONAL DATA,806.08,DISABILITY & HIV,PAYMENTS TO CARERS,REDACTED,REDACTED
05.12.2018,CHILDREN'S SERVICES,REDACTED PERSONAL DATA,806.08,DISABILITY & HIV,PAYMENTS TO CARERS,REDACTED,REDACTED
05.12.2018,CHILDREN'S SERVICES,REDACTED PERSONAL DATA,806.08,DISABILITY & HIV,PAYMENTS TO CARERS,REDACTED,REDACTED
05.12.2018,CHILDREN'S SERVICES,REDACTED PERSONAL DATA,806.08,DISABILITY & HIV,PAYMENTS TO CARERS,REDACTED,REDACTED
05.12.2018,CHILDREN'S SERVICES,REDACTED PERSONAL DATA,806.08,DISABILITY & HIV,PAYMENTS TO CARERS,REDACTED,REDACTED
05.12.2018,CHILDREN'S SERVICES,REDACTED PERSONAL DATA,806.08,DISABILITY & HIV,PAYMENTS TO CARERS,REDACTED,REDACTED
05.12.2018,CHILDREN'S SERVICES,REDACTED PERSONAL DATA,806.08,DISABILITY & HIV,PAYMENTS TO CARERS,REDACTED,REDACTED
05.12.2018,CHILDREN'S SERVICES,REDACTED PERSONAL DATA,806.08,DISABILITY & HIV,PAYMENTS TO CARERS,REDACTED,REDACTED
05.12.2018,CHILDREN'S SERVICES,REDACTED PERSONAL DATA,806.08,DISABILITY & HIV,PAYMENTS TO CARERS,REDACTED,REDACTED
05.12.2018,CHILDREN'S SERVICES,REDACTED PERSONAL DATA,806.08,DISABILITY & HIV,PAYMENTS TO CARERS,REDACTED,REDACTED
05.12.2018,CHILDREN'S SERVICES,REDACTED PERSONAL DATA,806.08,DISABILITY & HIV,PAYMENTS TO CARERS,REDACTED,REDACTED
05.12.2018,CHILDREN'S SERVICES,REDACTED PERSONAL DATA,806.08,DISABILITY & HIV,PAYMENTS TO CARERS,REDACTED,REDACTED
05.12.2018,CHILDREN'S SERVICES,REDACTED PERSONAL DATA,806.08,DISABILITY & HIV,PAYMENTS TO CARERS,REDACTED,REDACTED
05.12.2018,CHILDREN'S SERVICES,REDACTED PERSONAL DATA,806.08,DISABILITY & HIV,PAYMENTS TO CARERS,REDACTED,REDACTED
05.12.2018,CHILDREN'S SERVICES,REDACTED PERSONAL DATA,806.08,DISABILITY & HIV,PAYMENTS TO CARERS,REDACTED,REDACTED
05.12.2018,CHILDREN'S SERVICES,REDACTED PERSONAL DATA,806.08,DISABILITY & HIV,PAYMENTS TO CARERS,REDACTED,REDACTED
05.12.2018,CHILDREN'S SERVICES,REDACTED PERSONAL DATA,806.08,DISABILITY & HIV,PAYMENTS TO CARERS,REDACTED,REDACTED
05.12.2018,CHILDREN'S SERVICES,REDACTED PERSONAL DATA,806.08,DISABILITY & HIV,PAYMENTS TO CARERS,REDACTED,REDACTED
05.12.2018,CHILDREN'S SERVICES,REDACTED PERSONAL DATA,806.08,DISABILITY & HIV,PAYMENTS TO CARERS,REDACTED,REDACTED
05.12.2018,CHILDREN'S SERVICES,REDACTED PERSONAL DATA,806.08,DISABILITY & HIV,PAYMENTS TO CARERS,REDACTED,REDACTED
05.12.2018,CHILDREN'S SERVICES,REDACTED PERSONAL DATA,806.08,DISABILITY & HIV,PAYMENTS TO CARERS,REDACTED,REDACTED
05.12.2018,CHILDREN'S SERVICES,REDACTED PERSONAL DATA,806.08,DISABILITY & HIV,PAYMENTS TO CARERS,REDACTED,REDACTED
05.12.2018,CHILDREN'S SERVICES,REDACTED PERSONAL DATA,806.08,DISABILITY & HIV,PAYMENTS TO CARERS,REDACTED,REDACTED
05.12.2018,CHILDREN'S SERVICES,REDACTED PERSONAL DATA,806.08,DISABILITY & HIV,PAYMENTS TO CARERS,REDACTED,REDACTED
05.12.2018,CHILDREN'S SERVICES,REDACTED PERSONAL DATA,806.08,DISABILITY & HIV,PAYMENTS TO CARERS,REDACTED,REDACTED
05.12.2018,CHILDREN'S SERVICES,REDACTED PERSONAL DATA,806.08,DISABILITY & HIV,PAYMENTS TO CARERS,REDACTED,REDACTED
05.12.2018,CHILDREN'S SERVICES,REDACTED PERSONAL DATA,806.08,DISABILITY & HIV,PAYMENTS TO CARERS,REDACTED,REDACTED
05.12.2018,CHILDREN'S SERVICES,REDACTED PERSONAL DATA,806.08,DISABILITY & HIV,PAYMENTS TO CARERS,REDACTED,REDACTED
05.12.2018,CHILDREN'S SERVICES,REDACTED PERSONAL DATA,806.08,DISABILITY & HIV,PAYMENTS TO CARERS,REDACTED,REDACTED
05.12.2018,CHILDREN'S SERVICES,REDACTED PERSONAL DATA,806.08,DISABILITY & HIV,PAYMENTS TO CARERS,REDACTED,REDACTED
05.12.2018,CHILDREN'S SERVICES,REDACTED PERSONAL DATA,806.08,DISABILITY & HIV,PAYMENTS TO CARERS,REDACTED,REDACTED
05.12.2018,CHILDREN'S SERVICES,REDACTED PERSONAL DATA,806.08,DISABILITY & HIV,PAYMENTS TO CARERS,REDACTED,REDACTED
05.12.2018,CHILDREN'S SERVICES,REDACTED PERSONAL DATA,806.08,DISABILITY & HIV,PAYMENTS TO CARERS,REDACTED,REDACTED
05.12.2018,CHILDREN'S SERVICES,REDACTED PERSONAL DATA,806.08,DISABILITY & HIV,PAYMENTS TO CARERS,REDACTED,REDACTED
05.12.2018,CHILDREN'S SERVICES,REDACTED PERSONAL DATA,806.08,DISABILITY & HIV,PAYMENTS TO CARERS,REDACTED,REDACTED
05.12.2018,CHILDREN'S SERVICES,REDACTED PERSONAL DATA,806.08,DISABILITY & HIV,PAYMENTS TO CARERS,REDACTED,REDACTED
05.12.2018,CHILDREN'S SERVICES,REDACTED PERSONAL DATA,806.08,DISABILITY & HIV,PAYMENTS TO CARERS,REDACTED,REDACTED
05.12.2018,CHILDREN'S SERVICES,REDACTED PERSONAL DATA,806.08,DISABILITY & HIV,PAYMENTS TO CARERS,REDACTED,REDACTED
05.12.2018,CHILDREN'S SERVICES,REDACTED PERSONAL DATA,806.08,DISABILITY & HIV,PAYMENTS TO CARERS,REDACTED,REDACTED
05.12.2018,CHILDREN'S SERVICES,REDACTED PERSONAL DATA,806.08,DISABILITY & HIV,PAYMENTS TO CARERS,REDACTED,REDACTED
05.12.2018,CHILDREN'S SERVICES,REDACTED PERSONAL DATA,806.08,DISABILITY & HIV,PAYMENTS TO CARERS,REDACTED,REDACTED
05.12.2018,CHILDREN'S SERVICES,REDACTED PERSONAL DATA,806.08,DISABILITY & HIV,PAYMENTS TO CARERS,REDACTED,REDACTED
05.12.2018,CHILDREN'S SERVICES,REDACTED PERSONAL DATA,806.08,DISABILITY & HIV,PAYMENTS TO CARERS,REDACTED,REDACTED
05.12.2018,CHILDREN'S SERVICES,REDACTED PERSONAL DATA,817.4,DISABILITY & HIV,PAYMENTS TO CARERS,REDACTED,REDACTED
05.12.2018,CHILDREN'S SERVICES,REDACTED PERSONAL DATA,828.12,DISABILITY & HIV,PAYMENTS TO CARERS,REDACTED,REDACTED
05.12.2018,CHILDREN'S SERVICES,REDACTED PERSONAL DATA,834.68,DISABILITY & HIV,PAYMENTS TO CARERS,REDACTED,REDACTED
05.12.2018,CHILDREN'S SERVICES,REDACTED PERSONAL DATA,854.28,DISABILITY & HIV,PAYMENTS TO CARERS,REDACTED,REDACTED
05.12.2018,CHILDREN'S SERVICES,REDACTED PERSONAL DATA,888.12,DISABILITY & HIV,PAYMENTS TO CARERS,REDACTED,REDACTED
05.12.2018,CHILDREN'S SERVICES,REDACTED PERSONAL DATA,888.12,DISABILITY & HIV,PAYMENTS TO CARERS,REDACTED,REDACTED
05.12.2018,CHILDREN'S SERVICES,REDACTED PERSONAL DATA,888.12,DISABILITY & HIV,PAYMENTS TO CARERS,REDACTED,REDACTED
05.12.2018,CHILDREN'S SERVICES,REDACTED PERSONAL DATA,888.12,DISABILITY & HIV,PAYMENTS TO CARERS,REDACTED,REDACTED
05.12.2018,CHILDREN'S SERVICES,REDACTED PERSONAL DATA,888.12,DISABILITY & HIV,PAYMENTS TO CARERS,REDACTED,REDACTED
05.12.2018,CHILDREN'S SERVICES,REDACTED PERSONAL DATA,888.12,DISABILITY & HIV,PAYMENTS TO CARERS,REDACTED,REDACTED
05.12.2018,CHILDREN'S SERVICES,REDACTED PERSONAL DATA,888.12,DISABILITY & HIV,PAYMENTS TO CARERS,REDACTED,REDACTED
05.12.2018,CHILDREN'S SERVICES,REDACTED PERSONAL DATA,888.12,DISABILITY & HIV,PAYMENTS TO CARERS,REDACTED,REDACTED
05.12.2018,CHILDREN'S SERVICES,REDACTED PERSONAL DATA,918.12,DISABILITY & HIV,PAYMENTS TO CARERS,REDACTED,REDACTED
05.12.2018,CHILDREN'S SERVICES,REDACTED PERSONAL DATA,924.2,DISABILITY & HIV,PAYMENTS TO CARERS,REDACTED,REDACTED
05.12.2018,CHILDREN'S SERVICES,REDACTED PERSONAL DATA,991.42,DISABILITY & HIV,PAYMENTS TO CARERS,REDACTED,REDACTED
05.12.2018,CHILDREN'S SERVICES,REDACTED PERSONAL DATA,991.42,DISABILITY & HIV,PAYMENTS TO CARERS,REDACTED,REDACTED
05.12.2018,CHILDREN'S SERVICES,REDACTED PERSONAL DATA,"1,006.08",DISABILITY & HIV,PAYMENTS TO CARERS,REDACTED,REDACTED
05.12.2018,CHILDREN'S SERVICES,REDACTED PERSONAL DATA,"1,050.08",DISABILITY & HIV,PAYMENTS TO CARERS,REDACTED,REDACTED
05.12.2018,CHILDREN'S SERVICES,REDACTED PERSONAL DATA,"1,093.06",DISABILITY & HIV,PAYMENTS TO CARERS,REDACTED,REDACTED
05.12.2018,CHILDREN'S SERVICES,REDACTED PERSONAL DATA,"1,094.60",DISABILITY & HIV,PAYMENTS TO CARERS,REDACTED,REDACTED
05.12.2018,CHILDREN'S SERVICES,REDACTED PERSONAL DATA,"1,294.60",DISABILITY & HIV,PAYMENTS TO CARERS,REDACTED,REDACTED
05.12.2018,CHILDREN'S SERVICES,REDACTED PERSONAL DATA,"1,321.08",DISABILITY & HIV,PAYMENTS TO CARERS,REDACTED,REDACTED
05.12.2018,CHILDREN'S SERVICES,REDACTED PERSONAL DATA,"1,321.08",DISABILITY & HIV,PAYMENTS TO CARERS,REDACTED,REDACTED
05.12.2018,CHILDREN'S SERVICES,REDACTED PERSONAL DATA,"1,633.46",DISABILITY & HIV,PAYMENTS TO CARERS,REDACTED,REDACTED
05.12.2018,CHILDREN'S SERVICES,REDACTED PERSONAL DATA,"1,700.00",DISABILITY & HIV,PAYMENTS TO CARERS,REDACTED,REDACTED
05.12.2018,CHILDREN'S SERVICES,REDACTED PERSONAL DATA,"1,881.28",DISABILITY & HIV,PAYMENTS TO CARERS,REDACTED,REDACTED
05.12.2018,CHILDREN'S SERVICES,REDACTED PERSONAL DATA,"4,492.86",DISABILITY & HIV,PAYMENTS TO CARERS,REDACTED,REDACTED
05.12.2018,CHILDREN'S SERVICES,THAMES REACH,442.5,EDUCATIONAL PSYCHOLOGY - SEND,TRAINING,5902332833,1723415
05.12.2018,CHILDREN'S SERVICES,REDACTED PERSONAL DATA,271.2,FRIENDS & FAMILY FOSTERING,ADDITIONAL PAYMENTS TO AGENCIES/CARERS,REDACTED,REDACTED
05.12.2018,CHILDREN'S SERVICES,REDACTED PERSONAL DATA,"1,200.00",FRIENDS & FAMILY FOSTERING,ADDITIONAL PAYMENTS TO AGENCIES/CARERS,REDACTED,REDACTED
05.12.2018,CHILDREN'S SERVICES,REDACTED PERSONAL DATA,300,FRIENDS & FAMILY FOSTERING,OTHER PAYMENTS FOR CLIENTS,REDACTED,REDACTED
05.12.2018,CHILDREN'S SERVICES,REDACTED PERSONAL DATA,600,FRIENDS & FAMILY FOSTERING,OTHER PAYMENTS FOR CLIENTS,REDACTED,REDACTED
05.12.2018,CHILDREN'S SERVICES,REDACTED PERSONAL DATA,600,FRIENDS & FAMILY FOSTERING,OTHER PAYMENTS FOR CLIENTS,REDACTED,REDACTED
05.12.2018,CHILDREN'S SERVICES,REDACTED PERSONAL DATA,272.04,FRIENDS & FAMILY FOSTERING,PAYMENTS TO CARERS,REDACTED,REDACTED
05.12.2018,CHILDREN'S SERVICES,REDACTED PERSONAL DATA,300,FRIENDS & FAMILY FOSTERING,PAYMENTS TO CARERS,REDACTED,REDACTED
05.12.2018,CHILDREN'S SERVICES,REDACTED PERSONAL DATA,335.34,FRIENDS & FAMILY FOSTERING,PAYMENTS TO CARERS,REDACTED,REDACTED
05.12.2018,CHILDREN'S SERVICES,REDACTED PERSONAL DATA,335.34,FRIENDS & FAMILY FOSTERING,PAYMENTS TO CARERS,REDACTED,REDACTED
05.12.2018,CHILDREN'S SERVICES,REDACTED PERSONAL DATA,335.34,FRIENDS & FAMILY FOSTERING,PAYMENTS TO CARERS,REDACTED,REDACTED
05.12.2018,CHILDREN'S SERVICES,REDACTED PERSONAL DATA,382.3,FRIENDS & FAMILY FOSTERING,PAYMENTS TO CARERS,REDACTED,REDACTED
05.12.2018,CHILDREN'S SERVICES,REDACTED PERSONAL DATA,476.08,FRIENDS & FAMILY FOSTERING,PAYMENTS TO CARERS,REDACTED,REDACTED
05.12.2018,CHILDREN'S SERVICES,REDACTED PERSONAL DATA,476.08,FRIENDS & FAMILY FOSTERING,PAYMENTS TO CARERS,REDACTED,REDACTED
05.12.2018,CHILDREN'S SERVICES,REDACTED PERSONAL DATA,476.08,FRIENDS & FAMILY FOSTERING,PAYMENTS TO CARERS,REDACTED,REDACTED
05.12.2018,CHILDREN'S SERVICES,REDACTED PERSONAL DATA,476.08,FRIENDS & FAMILY FOSTERING,PAYMENTS TO CARERS,REDACTED,REDACTED
05.12.2018,CHILDREN'S SERVICES,REDACTED PERSONAL DATA,635.34,FRIENDS & FAMILY FOSTERING,PAYMENTS TO CARERS,REDACTED,REDACTED
05.12.2018,CHILDREN'S SERVICES,REDACTED PERSONAL DATA,635.34,FRIENDS & FAMILY FOSTERING,PAYMENTS TO CARERS,REDACTED,REDACTED
05.12.2018,CHILDREN'S SERVICES,REDACTED PERSONAL DATA,682.3,FRIENDS & FAMILY FOSTERING,PAYMENTS TO CARERS,REDACTED,REDACTED
05.12.2018,CHILDREN'S SERVICES,REDACTED PERSONAL DATA,682.3,FRIENDS & FAMILY FOSTERING,PAYMENTS TO CARERS,REDACTED,REDACTED
05.12.2018,CHILDREN'S SERVICES,REDACTED PERSONAL DATA,682.3,FRIENDS & FAMILY FOSTERING,PAYMENTS TO CARERS,REDACTED,REDACTED
05.12.2018,CHILDREN'S SERVICES,REDACTED PERSONAL DATA,682.3,FRIENDS & FAMILY FOSTERING,PAYMENTS TO CARERS,REDACTED,REDACTED
05.12.2018,CHILDREN'S SERVICES,REDACTED PERSONAL DATA,682.3,FRIENDS & FAMILY FOSTERING,PAYMENTS TO CARERS,REDACTED,REDACTED
05.12.2018,CHILDREN'S SERVICES,REDACTED PERSONAL DATA,682.3,FRIENDS & FAMILY FOSTERING,PAYMENTS TO CARERS,REDACTED,REDACTED
05.12.2018,CHILDREN'S SERVICES,REDACTED PERSONAL DATA,682.3,FRIENDS & FAMILY FOSTERING,PAYMENTS TO CARERS,REDACTED,REDACTED
05.12.2018,CHILDREN'S SERVICES,REDACTED PERSONAL DATA,682.3,FRIENDS & FAMILY FOSTERING,PAYMENTS TO CARERS,REDACTED,REDACTED
05.12.2018,CHILDREN'S SERVICES,REDACTED PERSONAL DATA,682.3,FRIENDS & FAMILY FOSTERING,PAYMENTS TO CARERS,REDACTED,REDACTED
05.12.2018,CHILDREN'S SERVICES,REDACTED PERSONAL DATA,682.3,FRIENDS & FAMILY FOSTERING,PAYMENTS TO CARERS,REDACTED,REDACTED
05.12.2018,CHILDREN'S SERVICES,REDACTED PERSONAL DATA,682.3,FRIENDS & FAMILY FOSTERING,PAYMENTS TO CARERS,REDACTED,REDACTED
05.12.2018,CHILDREN'S SERVICES,REDACTED PERSONAL DATA,682.3,FRIENDS & FAMILY FOSTERING,PAYMENTS TO CARERS,REDACTED,REDACTED
05.12.2018,CHILDREN'S SERVICES,REDACTED PERSONAL DATA,682.3,FRIENDS & FAMILY FOSTERING,PAYMENTS TO CARERS,REDACTED,REDACTED
05.12.2018,CHILDREN'S SERVICES,REDACTED PERSONAL DATA,767.66,FRIENDS & FAMILY FOSTERING,PAYMENTS TO CARERS,REDACTED,REDACTED
05.12.2018,CHILDREN'S SERVICES,REDACTED PERSONAL DATA,776.08,FRIENDS & FAMILY FOSTERING,PAYMENTS TO CARERS,REDACTED,REDACTED
05.12.2018,CHILDREN'S SERVICES,REDACTED PERSONAL DATA,776.08,FRIENDS & FAMILY FOSTERING,PAYMENTS TO CARERS,REDACTED,REDACTED
05.12.2018,CHILDREN'S SERVICES,REDACTED PERSONAL DATA,776.08,FRIENDS & FAMILY FOSTERING,PAYMENTS TO CARERS,REDACTED,REDACTED
05.12.2018,CHILDREN'S SERVICES,REDACTED PERSONAL DATA,776.08,FRIENDS & FAMILY FOSTERING,PAYMENTS TO CARERS,REDACTED,REDACTED
05.12.2018,CHILDREN'S SERVICES,REDACTED PERSONAL DATA,776.08,FRIENDS & FAMILY FOSTERING,PAYMENTS TO CARERS,REDACTED,REDACTED
05.12.2018,CHILDREN'S SERVICES,REDACTED PERSONAL DATA,776.08,FRIENDS & FAMILY FOSTERING,PAYMENTS TO CARERS,REDACTED,REDACTED
05.12.2018,CHILDREN'S SERVICES,REDACTED PERSONAL DATA,776.08,FRIENDS & FAMILY FOSTERING,PAYMENTS TO CARERS,REDACTED,REDACTED
05.12.2018,CHILDREN'S SERVICES,REDACTED PERSONAL DATA,776.08,FRIENDS & FAMILY FOSTERING,PAYMENTS TO CARERS,REDACTED,REDACTED
05.12.2018,CHILDREN'S SERVICES,REDACTED PERSONAL DATA,776.08,FRIENDS & FAMILY FOSTERING,PAYMENTS TO CARERS,REDACTED,REDACTED
05.12.2018,CHILDREN'S SERVICES,REDACTED PERSONAL DATA,"5,709.74",FRIENDS & FAMILY FOSTERING,PAYMENTS TO CARERS,REDACTED,REDACTED
05.12.2018,CHILDREN'S SERVICES,REDACTED PERSONAL DATA,"2,000.00",LEAVING CARE GRANT,OTHER PAYMENTS FOR CLIENTS,REDACTED,REDACTED
05.12.2018,CHILDREN'S SERVICES,CHARLES DICKENS PRIMARY SCHOOL,"7,757.00",MATERNITY COVER,SCHOOLS CAPITATION,2102896260,5001000015
05.12.2018,CHILDREN'S SERVICES,AMBITIOUS ABOUT AUTISM,311.67,PUPIL PREMIUM,"SCHOOLS CAPITATION, STANDARDS FUND",2102896257,1000035784
05.12.2018,CHILDREN'S SERVICES,AMBITIOUS ABOUT AUTISM,311.67,PUPIL PREMIUM,"SCHOOLS CAPITATION, STANDARDS FUND",2102896258,1000035784
05.12.2018,CHILDREN'S SERVICES,AMBITIOUS ABOUT AUTISM,311.67,PUPIL PREMIUM,"SCHOOLS CAPITATION, STANDARDS FUND",2102896259,1000035784
05.12.2018,CHILDREN'S SERVICES,AMBITIOUS ABOUT AUTISM,440,PUPIL PREMIUM,"SCHOOLS CAPITATION, STANDARDS FUND",2102896256,1000035784
05.12.2018,CHILDREN'S SERVICES,REDACTED PERSONAL DATA,263.96,RESIDENCE ORDERS,PAYMENTS TO CARERS,REDACTED,REDACTED
05.12.2018,CHILDREN'S SERVICES,REDACTED PERSONAL DATA,264.16,RESIDENCE ORDERS,PAYMENTS TO CARERS,REDACTED,REDACTED
05.12.2018,CHILDREN'S SERVICES,REDACTED PERSONAL DATA,269.08,RESIDENCE ORDERS,PAYMENTS TO CARERS,REDACTED,REDACTED
05.12.2018,CHILDREN'S SERVICES,REDACTED PERSONAL DATA,269.08,RESIDENCE ORDERS,PAYMENTS TO CARERS,REDACTED,REDACTED
05.12.2018,CHILDREN'S SERVICES,REDACTED PERSONAL DATA,276.1,RESIDENCE ORDERS,PAYMENTS TO CARERS,REDACTED,REDACTED
05.12.2018,CHILDREN'S SERVICES,ESLAND SOUTH LTD,"18,214.29",RESIDENTIAL,EXTERNAL AGENCIES AND BODIES,2102894800,1000074184
05.12.2018,CHILDREN'S SERVICES,KEYS CHILDCARE LTD,857.15,RESIDENTIAL,OTHER PAYMENTS FOR CLIENTS,2102894793,1000081582
05.12.2018,CHILDREN'S SERVICES,HEARTWOOD OUTREACH SERVICES LTD,"11,250.00",RESIDENTIAL,RESIDENTIAL CARE,2102896108,1000075021
05.12.2018,CHILDREN'S SERVICES,PEBBLES CARE LTD,"11,571.43",RESIDENTIAL,RESIDENTIAL CARE,2102894797,1000081564
05.12.2018,CHILDREN'S SERVICES,ST CHRISTOPHER FELLOWSHIP,"14,571.30",RESIDENTIAL,RESIDENTIAL CARE,2102896107,1000045269
05.12.2018,CHILDREN'S SERVICES,CREATING CARE CHOICES LTD,"15,000.00",RESIDENTIAL,RESIDENTIAL CARE,2102895711,1000076738
05.12.2018,CHILDREN'S SERVICES,HILLCREST CHILDRENS SERVICES LTD,"15,900.00",RESIDENTIAL,RESIDENTIAL CARE,2102894789,1000077489
05.12.2018,CHILDREN'S SERVICES,KEYS CHILDCARE LTD,"16,071.42",RESIDENTIAL,RESIDENTIAL CARE,2102894792,1000081582
05.12.2018,CHILDREN'S SERVICES,CASTLE HOMES LIMITED,"16,344.69",RESIDENTIAL,RESIDENTIAL CARE,2102895713,1000019388
05.12.2018,CHILDREN'S SERVICES,CASTLE HOMES LIMITED,"16,889.51",RESIDENTIAL,RESIDENTIAL CARE,2102895712,1000019388
05.12.2018,CHILDREN'S SERVICES,EXCEPTIONAL CARE LTD,"18,000.00",RESIDENTIAL,RESIDENTIAL CARE,2102894790,1000080896
05.12.2018,CHILDREN'S SERVICES,FOOTSTEPS CARE LTD,"18,783.70",RESIDENTIAL,RESIDENTIAL CARE,2102894798,1000045464
05.12.2018,CHILDREN'S SERVICES,CHILDHOOD FIRST,"19,080.00",RESIDENTIAL,RESIDENTIAL CARE,2102894799,1000076330
05.12.2018,CHILDREN'S SERVICES,ST CHRISTOPHER FELLOWSHIP,"19,285.80",RESIDENTIAL,RESIDENTIAL CARE,2102896109,1000045269
05.12.2018,CHILDREN'S SERVICES,THE AMICUS COMMUNITY (ARUNDEL) LTD,"19,907.10",RESIDENTIAL,RESIDENTIAL CARE,2102894795,1000079012
05.12.2018,CHILDREN'S SERVICES,CAMBIAN CHILDCARE LTD,"20,571.30",RESIDENTIAL,RESIDENTIAL CARE,2102894796,1000075351
05.12.2018,CHILDREN'S SERVICES,CHILDHOOD FIRST,"21,484.29",RESIDENTIAL,RESIDENTIAL CARE,2102894794,1000076330
05.12.2018,CHILDREN'S SERVICES,INMIND CHILDRENS SERVICES LTD,"31,928.70",RESIDENTIAL,RESIDENTIAL CARE,2102894791,1000078280
05.12.2018,CHILDREN'S SERVICES,YOUNG FUTURES,-874.2,S24 CLA,EXTERNAL AGENCIES AND BODIES,2102894783,1000059563
05.12.2018,CHILDREN'S SERVICES,YOUNG FUTURES,-435.9,S24 CLA,EXTERNAL AGENCIES AND BODIES,2102894749,1000059563
05.12.2018,CHILDREN'S SERVICES,STEP AHEAD SERVICES LTD,311.43,S24 CLA,EXTERNAL AGENCIES AND BODIES,2102894785,1000036544
05.12.2018,CHILDREN'S SERVICES,STEP AHEAD SERVICES LTD,"1,034.57",S24 CLA,EXTERNAL AGENCIES AND BODIES,2102894787,1000036544
05.12.2018,CHILDREN'S SERVICES,JUST ONE RECRUITMENT AND TRAINING LTD,"1,176.00",S24 CLA,EXTERNAL AGENCIES AND BODIES,2102894778,1000081607
05.12.2018,CHILDREN'S SERVICES,CITYGLEN LTD,"1,350.00",S24 CLA,EXTERNAL AGENCIES AND BODIES,2102896160,1000026239
05.12.2018,CHILDREN'S SERVICES,FUTURE FOUNDATIONS LTD,"1,667.14",S24 CLA,EXTERNAL AGENCIES AND BODIES,2102894762,1000063272
05.12.2018,CHILDREN'S SERVICES,FUTURE FOUNDATIONS LTD,"1,667.14",S24 CLA,EXTERNAL AGENCIES AND BODIES,2102894770,1000063272
05.12.2018,CHILDREN'S SERVICES,FAMILY FOSTERING LTD,"1,714.20",S24 CLA,EXTERNAL AGENCIES AND BODIES,2102896161,1000075179
05.12.2018,CHILDREN'S SERVICES,HEARTWOOD OUTREACH SERVICES LTD,"1,826.70",S24 CLA,EXTERNAL AGENCIES AND BODIES,2102896162,1000075021
05.12.2018,CHILDREN'S SERVICES,YOUNG FUTURES,"1,920.00",S24 CLA,EXTERNAL AGENCIES AND BODIES,2102894745,1000059563
05.12.2018,CHILDREN'S SERVICES,YOUNG FUTURES,"1,920.00",S24 CLA,EXTERNAL AGENCIES AND BODIES,2102894776,1000059563
05.12.2018,CHILDREN'S SERVICES,JUST ONE RECRUITMENT AND TRAINING LTD,"2,366.00",S24 CLA,EXTERNAL AGENCIES AND BODIES,2102894739,1000081607
05.12.2018,CHILDREN'S SERVICES,JUST ONE RECRUITMENT AND TRAINING LTD,"2,366.00",S24 CLA,EXTERNAL AGENCIES AND BODIES,2102894746,1000081607
05.12.2018,CHILDREN'S SERVICES,JUST ONE RECRUITMENT AND TRAINING LTD,"2,366.00",S24 CLA,EXTERNAL AGENCIES AND BODIES,2102894753,1000081607
05.12.2018,CHILDREN'S SERVICES,JUST ONE RECRUITMENT AND TRAINING LTD,"2,366.00",S24 CLA,EXTERNAL AGENCIES AND BODIES,2102894754,1000081607
05.12.2018,CHILDREN'S SERVICES,JUST ONE RECRUITMENT AND TRAINING LTD,"2,366.00",S24 CLA,EXTERNAL AGENCIES AND BODIES,2102894769,1000081607
05.12.2018,CHILDREN'S SERVICES,JUST ONE RECRUITMENT AND TRAINING LTD,"2,366.00",S24 CLA,EXTERNAL AGENCIES AND BODIES,2102894779,1000081607
05.12.2018,CHILDREN'S SERVICES,JUST ONE RECRUITMENT AND TRAINING LTD,"2,366.00",S24 CLA,EXTERNAL AGENCIES AND BODIES,2102894780,1000081607
05.12.2018,CHILDREN'S SERVICES,JUST ONE RECRUITMENT AND TRAINING LTD,"2,366.00",S24 CLA,EXTERNAL AGENCIES AND BODIES,2102894781,1000081607
05.12.2018,CHILDREN'S SERVICES,HEARTWOOD OUTREACH SERVICES LTD,"2,535.60",S24 CLA,EXTERNAL AGENCIES AND BODIES,2102896159,1000075021
05.12.2018,CHILDREN'S SERVICES,YOUNG FUTURES,"2,700.00",S24 CLA,EXTERNAL AGENCIES AND BODIES,2102894750,1000059563
05.12.2018,CHILDREN'S SERVICES,FUTURE FOUNDATIONS LTD,"2,815.71",S24 CLA,EXTERNAL AGENCIES AND BODIES,2102894748,1000063272
05.12.2018,CHILDREN'S SERVICES,JUST ONE RECRUITMENT AND TRAINING LTD,"2,996.00",S24 CLA,EXTERNAL AGENCIES AND BODIES,2102894740,1000081607
05.12.2018,CHILDREN'S SERVICES,JUST ONE RECRUITMENT AND TRAINING LTD,"2,996.00",S24 CLA,EXTERNAL AGENCIES AND BODIES,2102894747,1000081607
05.12.2018,CHILDREN'S SERVICES,JUST ONE RECRUITMENT AND TRAINING LTD,"2,996.00",S24 CLA,EXTERNAL AGENCIES AND BODIES,2102894751,1000081607
05.12.2018,CHILDREN'S SERVICES,JUST ONE RECRUITMENT AND TRAINING LTD,"2,996.00",S24 CLA,EXTERNAL AGENCIES AND BODIES,2102894752,1000081607
05.12.2018,CHILDREN'S SERVICES,JUST ONE RECRUITMENT AND TRAINING LTD,"2,996.00",S24 CLA,EXTERNAL AGENCIES AND BODIES,2102894763,1000081607
05.12.2018,CHILDREN'S SERVICES,JUST ONE RECRUITMENT AND TRAINING LTD,"2,996.00",S24 CLA,EXTERNAL AGENCIES AND BODIES,2102894777,1000081607
05.12.2018,CHILDREN'S SERVICES,FUTURE FOUNDATIONS LTD,"3,040.99",S24 CLA,EXTERNAL AGENCIES AND BODIES,2102894775,1000063272
05.12.2018,CHILDREN'S SERVICES,JUST ONE RECRUITMENT AND TRAINING LTD,"5,040.00",S24 CLA,EXTERNAL AGENCIES AND BODIES,2102894755,1000081607
05.12.2018,CHILDREN'S SERVICES,REDACTED PERSONAL DATA,910,SCH TRANS - CONTRACT COST,OTHER PAYMENTS FOR CLIENTS,REDACTED,REDACTED
05.12.2018,CHILDREN'S SERVICES,REDACTED PERSONAL DATA,962,SCH TRANS - CONTRACT COST,OTHER PAYMENTS FOR CLIENTS,REDACTED,REDACTED
05.12.2018,CHILDREN'S SERVICES,CHARLOTTE  SHARMAN PRIMARY SCHOOL,"4,000.00",SCHOOLS DIRECT SALARY FUNDING,SPECIFIC GOV'T ADMIN GRANT,2102896302,5001000016
05.12.2018,CHILDREN'S SERVICES,ST JAMES CE SCHOOL,"4,000.00",SCHOOLS DIRECT SALARY FUNDING,SPECIFIC GOV'T ADMIN GRANT,2102896303,5001000070
05.12.2018,CHILDREN'S SERVICES,STEP AHEAD SERVICES LTD,969.78,SEMI INDEPENDENT,EXTERNAL AGENCIES AND BODIES,2102894786,1000036544
05.12.2018,CHILDREN'S SERVICES,STEP AHEAD SERVICES LTD,"1,500.00",SEMI INDEPENDENT,EXTERNAL AGENCIES AND BODIES,2102894876,1000036544
05.12.2018,CHILDREN'S SERVICES,YOUNG FUTURES,"2,070.00",SEMI INDEPENDENT,EXTERNAL AGENCIES AND BODIES,2102894784,1000059563
05.12.2018,CHILDREN'S SERVICES,STEP AHEAD SERVICES LTD,"2,639.96",SEMI INDEPENDENT,EXTERNAL AGENCIES AND BODIES,2102894858,1000036544
05.12.2018,CHILDREN'S SERVICES,YOUNG FUTURES,"2,700.00",SEMI INDEPENDENT,EXTERNAL AGENCIES AND BODIES,2102894878,1000059563
05.12.2018,CHILDREN'S SERVICES,YOUNG FUTURES,"3,257.10",SEMI INDEPENDENT,EXTERNAL AGENCIES AND BODIES,2102894861,1000059563
05.12.2018,CHILDREN'S SERVICES,SILVER BIRCH CARE LTD,"3,535.71",SEMI INDEPENDENT,EXTERNAL AGENCIES AND BODIES,2102894855,1000076525
05.12.2018,CHILDREN'S SERVICES,SILVER BIRCH CARE LTD,"3,535.71",SEMI INDEPENDENT,EXTERNAL AGENCIES AND BODIES,2102894863,1000076525
05.12.2018,CHILDREN'S SERVICES,FUTURE FOUNDATIONS LTD,"4,277.14",SEMI INDEPENDENT,EXTERNAL AGENCIES AND BODIES,2102894856,1000063272
05.12.2018,CHILDREN'S SERVICES,FUTURE FOUNDATIONS LTD,"4,277.14",SEMI INDEPENDENT,EXTERNAL AGENCIES AND BODIES,2102894866,1000063272
05.12.2018,CHILDREN'S SERVICES,FUTURE FOUNDATIONS LTD,"4,277.14",SEMI INDEPENDENT,EXTERNAL AGENCIES AND BODIES,2102894872,1000063272
05.12.2018,CHILDREN'S SERVICES,FUTURE FOUNDATIONS LTD,"4,277.14",SEMI INDEPENDENT,EXTERNAL AGENCIES AND BODIES,2102894875,1000063272
05.12.2018,CHILDREN'S SERVICES,YOUNG FUTURES,"7,928.40",SEMI INDEPENDENT,EXTERNAL AGENCIES AND BODIES,2102894859,1000059563
05.12.2018,CHILDREN'S SERVICES,YOUNG FUTURES,"7,928.40",SEMI INDEPENDENT,EXTERNAL AGENCIES AND BODIES,2102894860,1000059563
05.12.2018,CHILDREN'S SERVICES,SPORTFIT SHORT BREAK CARE LTD,"9,900.00",SEMI INDEPENDENT,EXTERNAL AGENCIES AND BODIES,2102894788,1000078113
05.12.2018,CHILDREN'S SERVICES,SILVER BIRCH CARE LTD,"10,447.71",SEMI INDEPENDENT,EXTERNAL AGENCIES AND BODIES,2102894857,1000076525
05.12.2018,CHILDREN'S SERVICES,FUTURE FOUNDATIONS LTD,257.14,SEMI INDEPENDENT,OTHER PAYMENTS FOR CLIENTS,2102894854,1000063272
05.12.2018,CHILDREN'S SERVICES,FUTURE FOUNDATIONS LTD,257.14,SEMI INDEPENDENT,OTHER PAYMENTS FOR CLIENTS,2102894865,1000063272
05.12.2018,CHILDREN'S SERVICES,FUTURE FOUNDATIONS LTD,257.14,SEMI INDEPENDENT,OTHER PAYMENTS FOR CLIENTS,2102894867,1000063272
05.12.2018,CHILDREN'S SERVICES,FUTURE FOUNDATIONS LTD,257.14,SEMI INDEPENDENT,OTHER PAYMENTS FOR CLIENTS,2102894874,1000063272
05.12.2018,CHILDREN'S SERVICES,SILVER BIRCH CARE LTD,257.15,SEMI INDEPENDENT,OTHER PAYMENTS FOR CLIENTS,2102894853,1000076525
05.12.2018,CHILDREN'S SERVICES,SILVER BIRCH CARE LTD,471.43,SEMI INDEPENDENT,OTHER PAYMENTS FOR CLIENTS,2102894873,1000076525
05.12.2018,CHILDREN'S SERVICES,YOUNG FUTURES,"1,080.00",SEMI INDEPENDENT,OTHER PAYMENTS FOR CLIENTS,2102894850,1000059563
05.12.2018,CHILDREN'S SERVICES,REDACTED PERSONAL DATA,-300,SEMI INDEPENDENT,OTHER PAYMENTS FOR CLIENTS,REDACTED,REDACTED
05.12.2018,CHILDREN'S SERVICES,REDACTED PERSONAL DATA,269.08,SPECIAL GUARDIANSHIP,PAYMENTS TO CARERS,REDACTED,REDACTED
05.12.2018,CHILDREN'S SERVICES,REDACTED PERSONAL DATA,269.08,SPECIAL GUARDIANSHIP,PAYMENTS TO CARERS,REDACTED,REDACTED
05.12.2018,CHILDREN'S SERVICES,REDACTED PERSONAL DATA,269.08,SPECIAL GUARDIANSHIP,PAYMENTS TO CARERS,REDACTED,REDACTED
05.12.2018,CHILDREN'S SERVICES,REDACTED PERSONAL DATA,269.08,SPECIAL GUARDIANSHIP,PAYMENTS TO CARERS,REDACTED,REDACTED
05.12.2018,CHILDREN'S SERVICES,REDACTED PERSONAL DATA,342.45,SPECIAL GUARDIANSHIP,PAYMENTS TO CARERS,REDACTED,REDACTED
05.12.2018,CHILDREN'S SERVICES,REDACTED PERSONAL DATA,343.05,SPECIAL GUARDIANSHIP,PAYMENTS TO CARERS,REDACTED,REDACTED
05.12.2018,CHILDREN'S SERVICES,REDACTED PERSONAL DATA,356.15,SPECIAL GUARDIANSHIP,PAYMENTS TO CARERS,REDACTED,REDACTED
05.12.2018,CHILDREN'S SERVICES,REDACTED PERSONAL DATA,388.04,SPECIAL GUARDIANSHIP,PAYMENTS TO CARERS,REDACTED,REDACTED
05.12.2018,CHILDREN'S SERVICES,REDACTED PERSONAL DATA,389.34,SPECIAL GUARDIANSHIP,PAYMENTS TO CARERS,REDACTED,REDACTED
05.12.2018,CHILDREN'S SERVICES,REDACTED PERSONAL DATA,403.04,SPECIAL GUARDIANSHIP,PAYMENTS TO CARERS,REDACTED,REDACTED
05.12.2018,CHILDREN'S SERVICES,REDACTED PERSONAL DATA,525,SPECIAL GUARDIANSHIP,PAYMENTS TO CARERS,REDACTED,REDACTED
05.12.2018,CHILDREN'S SERVICES,REDACTED PERSONAL DATA,525,SPECIAL GUARDIANSHIP,PAYMENTS TO CARERS,REDACTED,REDACTED
05.12.2018,CHILDREN'S SERVICES,REDACTED PERSONAL DATA,525,SPECIAL GUARDIANSHIP,PAYMENTS TO CARERS,REDACTED,REDACTED
05.12.2018,CHILDREN'S SERVICES,REDACTED PERSONAL DATA,595.47,SPECIAL GUARDIANSHIP,PAYMENTS TO CARERS,REDACTED,REDACTED
05.12.2018,CHILDREN'S SERVICES,REDACTED PERSONAL DATA,"-1,050.08",STAYING PUT,PAYMENTS TO CARERS,REDACTED,REDACTED
05.12.2018,CHILDREN'S SERVICES,REDACTED PERSONAL DATA,373.46,STAYING PUT,PAYMENTS TO CARERS,REDACTED,REDACTED
05.12.2018,CHILDREN'S SERVICES,REDACTED PERSONAL DATA,430,STAYING PUT,PAYMENTS TO CARERS,REDACTED,REDACTED
05.12.2018,CHILDREN'S SERVICES,REDACTED PERSONAL DATA,500,STAYING PUT,PAYMENTS TO CARERS,REDACTED,REDACTED
05.12.2018,CHILDREN'S SERVICES,REDACTED PERSONAL DATA,500,STAYING PUT,PAYMENTS TO CARERS,REDACTED,REDACTED
05.12.2018,CHILDREN'S SERVICES,REDACTED PERSONAL DATA,500,STAYING PUT,PAYMENTS TO CARERS,REDACTED,REDACTED
05.12.2018,CHILDREN'S SERVICES,REDACTED PERSONAL DATA,500,STAYING PUT,PAYMENTS TO CARERS,REDACTED,REDACTED
05.12.2018,CHILDREN'S SERVICES,REDACTED PERSONAL DATA,500,STAYING PUT,PAYMENTS TO CARERS,REDACTED,REDACTED
05.12.2018,CHILDREN'S SERVICES,REDACTED PERSONAL DATA,500,STAYING PUT,PAYMENTS TO CARERS,REDACTED,REDACTED
05.12.2018,CHILDREN'S SERVICES,REDACTED PERSONAL DATA,500,STAYING PUT,PAYMENTS TO CARERS,REDACTED,REDACTED
05.12.2018,CHILDREN'S SERVICES,REDACTED PERSONAL DATA,500,STAYING PUT,PAYMENTS TO CARERS,REDACTED,REDACTED
05.12.2018,CHILDREN'S SERVICES,REDACTED PERSONAL DATA,500,STAYING PUT,PAYMENTS TO CARERS,REDACTED,REDACTED
05.12.2018,CHILDREN'S SERVICES,REDACTED PERSONAL DATA,500,STAYING PUT,PAYMENTS TO CARERS,REDACTED,REDACTED
05.12.2018,CHILDREN'S SERVICES,REDACTED PERSONAL DATA,500,STAYING PUT,PAYMENTS TO CARERS,REDACTED,REDACTED
05.12.2018,CHILDREN'S SERVICES,REDACTED PERSONAL DATA,500,STAYING PUT,PAYMENTS TO CARERS,REDACTED,REDACTED
05.12.2018,CHILDREN'S SERVICES,REDACTED PERSONAL DATA,500,STAYING PUT,PAYMENTS TO CARERS,REDACTED,REDACTED
05.12.2018,CHILDREN'S SERVICES,REDACTED PERSONAL DATA,500,STAYING PUT,PAYMENTS TO CARERS,REDACTED,REDACTED
05.12.2018,CHILDREN'S SERVICES,REDACTED PERSONAL DATA,500,STAYING PUT,PAYMENTS TO CARERS,REDACTED,REDACTED
05.12.2018,CHILDREN'S SERVICES,REDACTED PERSONAL DATA,500,STAYING PUT,PAYMENTS TO CARERS,REDACTED,REDACTED
05.12.2018,CHILDREN'S SERVICES,REDACTED PERSONAL DATA,500,STAYING PUT,PAYMENTS TO CARERS,REDACTED,REDACTED
05.12.2018,CHILDREN'S SERVICES,REDACTED PERSONAL DATA,500,STAYING PUT,PAYMENTS TO CARERS,REDACTED,REDACTED
05.12.2018,CHILDREN'S SERVICES,REDACTED PERSONAL DATA,500,STAYING PUT,PAYMENTS TO CARERS,REDACTED,REDACTED
05.12.2018,CHILDREN'S SERVICES,REDACTED PERSONAL DATA,500,STAYING PUT,PAYMENTS TO CARERS,REDACTED,REDACTED
05.12.2018,CHILDREN'S SERVICES,REDACTED PERSONAL DATA,500,STAYING PUT,PAYMENTS TO CARERS,REDACTED,REDACTED
05.12.2018,CHILDREN'S SERVICES,REDACTED PERSONAL DATA,500,STAYING PUT,PAYMENTS TO CARERS,REDACTED,REDACTED
05.12.2018,CHILDREN'S SERVICES,REDACTED PERSONAL DATA,500,STAYING PUT,PAYMENTS TO CARERS,REDACTED,REDACTED
05.12.2018,CHILDREN'S SERVICES,REDACTED PERSONAL DATA,500,STAYING PUT,PAYMENTS TO CARERS,REDACTED,REDACTED
05.12.2018,CHILDREN'S SERVICES,REDACTED PERSONAL DATA,500,STAYING PUT,PAYMENTS TO CARERS,REDACTED,REDACTED
05.12.2018,CHILDREN'S SERVICES,REDACTED PERSONAL DATA,500,STAYING PUT,PAYMENTS TO CARERS,REDACTED,REDACTED
05.12.2018,CHILDREN'S SERVICES,REDACTED PERSONAL DATA,500,STAYING PUT,PAYMENTS TO CARERS,REDACTED,REDACTED
05.12.2018,CHILDREN'S SERVICES,REDACTED PERSONAL DATA,500,STAYING PUT,PAYMENTS TO CARERS,REDACTED,REDACTED
05.12.2018,CHILDREN'S SERVICES,REDACTED PERSONAL DATA,500,STAYING PUT,PAYMENTS TO CARERS,REDACTED,REDACTED
05.12.2018,CHILDREN'S SERVICES,REDACTED PERSONAL DATA,"1,379.08",STAYING PUT,PAYMENTS TO CARERS,REDACTED,REDACTED
05.12.2018,CHILDREN'S SERVICES,HARLINE LTD,260,SUMMERHOUSE - EX416 - 5015232,COMPUTER MAINTENANCE,5902332741,1000019611
05.12.2018,CHILDREN'S SERVICES,HARLINE LTD,385,SUMMERHOUSE - EX416 - 5015232,COMPUTER MAINTENANCE,5902332751,1000019611
05.12.2018,CHILDREN'S SERVICES,NELL GWYNN NURSERY SCHOOL,271,TEACHERS PAY GRANT,SCHOOLS CAPITATION,2102896299,5001000049
05.12.2018,CHILDREN'S SERVICES,ST FRANCESCA CABRINI PRIMARY SCHOOL,260,TEACHERS PAY GRANT,SCHOOLS CAPITATION,2102896298,5001000065
05.12.2018,CHILDREN'S SERVICES,KINTORE WAY CHILDRENS CENTRE,373,TEACHERS PAY GRANT,SCHOOLS CAPITATION,2102896300,5001000047
05.12.2018,CHILDREN'S SERVICES,ST JOSEPHS RC JUNIOR  SCHOOL,380,TEACHERS PAY GRANT,SCHOOLS CAPITATION,2102896301,5001000017
05.12.2018,CHILDREN'S SERVICES,TAAKSVALE HOUSING LTD,"2,070.00",TEMPORARY ACCOMMODATION,EXTERNAL AGENCIES AND BODIES,5902332874,1000073665
05.12.2018,CHILDREN'S SERVICES,REDACTED PERSONAL DATA,300,UASC FURTHER EDUCATION SUPPORT,CLIENT TRANSPORT,REDACTED,REDACTED
05.12.2018,CHILDREN'S SERVICES,REDACTED PERSONAL DATA,300,UASC FURTHER EDUCATION SUPPORT,CLIENT TRANSPORT,REDACTED,REDACTED
05.12.2018,CHILDREN'S SERVICES,REDACTED PERSONAL DATA,300,UASC FURTHER EDUCATION SUPPORT,CLIENT TRANSPORT,REDACTED,REDACTED
05.12.2018,CHILDREN'S SERVICES,REDACTED PERSONAL DATA,300,UASC FURTHER EDUCATION SUPPORT,CLIENT TRANSPORT,REDACTED,REDACTED
05.12.2018,CHILDREN'S SERVICES,REDACTED PERSONAL DATA,400,UASC FURTHER EDUCATION SUPPORT,OTHER PAYMENTS FOR CLIENTS,REDACTED,REDACTED
05.12.2018,CHILDREN'S SERVICES,STEP AHEAD SERVICES LTD,346.61,UASC SECTION 24,EXTERNAL AGENCIES AND BODIES,2102894766,1000036544
05.12.2018,CHILDREN'S SERVICES,FUTURE FOUNDATIONS LTD,"1,283.85",UASC SECTION 24,EXTERNAL AGENCIES AND BODIES,2102894744,1000063272
05.12.2018,CHILDREN'S SERVICES,STEP AHEAD SERVICES LTD,"1,398.57",UASC SECTION 24,EXTERNAL AGENCIES AND BODIES,2102894772,1000036544
05.12.2018,CHILDREN'S SERVICES,STEP AHEAD SERVICES LTD,"1,628.70",UASC SECTION 24,EXTERNAL AGENCIES AND BODIES,2102894757,1000036544
05.12.2018,CHILDREN'S SERVICES,FUTURE FOUNDATIONS LTD,"1,667.14",UASC SECTION 24,EXTERNAL AGENCIES AND BODIES,2102894756,1000063272
05.12.2018,CHILDREN'S SERVICES,FUTURE FOUNDATIONS LTD,"1,667.14",UASC SECTION 24,EXTERNAL AGENCIES AND BODIES,2102894771,1000063272
05.12.2018,CHILDREN'S SERVICES,STEP AHEAD SERVICES LTD,"2,014.20",UASC SECTION 24,EXTERNAL AGENCIES AND BODIES,2102894773,1000036544
05.12.2018,CHILDREN'S SERVICES,STEP AHEAD SERVICES LTD,"2,081.34",UASC SECTION 24,EXTERNAL AGENCIES AND BODIES,2102894764,1000036544
05.12.2018,CHILDREN'S SERVICES,STEP AHEAD SERVICES LTD,"2,081.34",UASC SECTION 24,EXTERNAL AGENCIES AND BODIES,2102894774,1000036544
05.12.2018,CHILDREN'S SERVICES,STEP AHEAD SERVICES LTD,300,UASC SECTION 24,OTHER PAYMENTS FOR CLIENTS,2102894782,1000036544
05.12.2018,CHILDREN'S SERVICES,REDACTED PERSONAL DATA,300,UASC UNIVERSITY SUPPORT,CLIENT TRANSPORT,REDACTED,REDACTED
05.12.2018,CHILDREN'S SERVICES,REDACTED PERSONAL DATA,800,UASC UNIVERSITY SUPPORT,OTHER PAYMENTS FOR CLIENTS,REDACTED,REDACTED
05.12.2018,CHILDREN'S SERVICES,FUTURE FOUNDATIONS LTD,"2,520.00",UNACCOMPANIED ASYLUM CHILDREN 16-17,EXTERNAL AGENCIES AND BODIES,2102894864,1000063272
05.12.2018,CHILDREN'S SERVICES,FUTURE FOUNDATIONS LTD,"2,604.00",UNACCOMPANIED ASYLUM CHILDREN 16-17,EXTERNAL AGENCIES AND BODIES,2102894851,1000063272
05.12.2018,CHILDREN'S SERVICES,FUTURE FOUNDATIONS LTD,"2,833.71",UNACCOMPANIED ASYLUM CHILDREN 16-17,EXTERNAL AGENCIES AND BODIES,2102894870,1000063272
05.12.2018,CHILDREN'S SERVICES,FUTURE FOUNDATIONS LTD,"4,277.14",UNACCOMPANIED ASYLUM CHILDREN 16-17,EXTERNAL AGENCIES AND BODIES,2102894862,1000063272
05.12.2018,CHILDREN'S SERVICES,FUTURE FOUNDATIONS LTD,"4,277.14",UNACCOMPANIED ASYLUM CHILDREN 16-17,EXTERNAL AGENCIES AND BODIES,2102894877,1000063272
05.12.2018,CHILDREN'S SERVICES,FUTURE FOUNDATIONS LTD,257.14,UNACCOMPANIED ASYLUM CHILDREN 16-17,OTHER PAYMENTS FOR CLIENTS,2102894847,1000063272
05.12.2018,CHILDREN'S SERVICES,FUTURE FOUNDATIONS LTD,257.14,UNACCOMPANIED ASYLUM CHILDREN 16-17,OTHER PAYMENTS FOR CLIENTS,2102894871,1000063272
05.12.2018,CHILDREN'S SERVICES,STEP AHEAD SERVICES LTD,300,UNACCOMPANIED ASYLUM CHILDREN 16-17,OTHER PAYMENTS FOR CLIENTS,2102894869,1000036544
05.12.2018,CHILDREN'S SERVICES,FUTURE FOUNDATIONS LTD,"2,642.31",UNACCOMPANIED ASYLUM CHILDREN 16-17,OTHER PAYMENTS FOR CLIENTS,2102894852,1000063272
05.12.2018,CHILDREN'S SERVICES,REDACTED PERSONAL DATA,"1,750.00",UNIVERSITY SUPPORT,OTHER PAYMENTS FOR CLIENTS,REDACTED,REDACTED
05.12.2018,CHILDREN'S SERVICES,REDACTED PERSONAL DATA,"1,750.00",UNIVERSITY SUPPORT,OTHER PAYMENTS FOR CLIENTS,REDACTED,REDACTED
05.12.2018,CHILDREN'S SERVICES,REDACTED PERSONAL DATA,"1,750.00",UNIVERSITY SUPPORT,OTHER PAYMENTS FOR CLIENTS,REDACTED,REDACTED
05.12.2018,CHILDREN'S SERVICES,REDACTED PERSONAL DATA,"1,750.00",UNIVERSITY SUPPORT,OTHER PAYMENTS FOR CLIENTS,REDACTED,REDACTED
05.12.2018,CHILDREN'S SERVICES,REDACTED PERSONAL DATA,"1,750.00",UNIVERSITY SUPPORT,OTHER PAYMENTS FOR CLIENTS,REDACTED,REDACTED
05.12.2018,CHILDREN'S SERVICES,REDACTED PERSONAL DATA,"1,750.00",UNIVERSITY SUPPORT,OTHER PAYMENTS FOR CLIENTS,REDACTED,REDACTED
05.12.2018,CHILDREN'S SERVICES,REDACTED PERSONAL DATA,"1,750.00",UNIVERSITY SUPPORT,OTHER PAYMENTS FOR CLIENTS,REDACTED,REDACTED
05.12.2018,COMMISSIONING & CENTRAL,LINDA COBB,"1,500.00",ADULTS MULTI-AGENCY SAFEGUARDING TRNG,TRAINING,5902332772,1000029191
05.12.2018,COMMISSIONING & CENTRAL,RAHANA HUSSAIN,550,CHILDREN'S MULTI-AGENCY SAFEGUARDING TRA,TRAINING,5902332770,1000052067
05.12.2018,COMMISSIONING & CENTRAL,T DASZKIEWICKZ ASSOCIATES,"1,400.00",CHILDREN'S MULTI-AGENCY SAFEGUARDING TRA,TRAINING,5902332779,1000080236
05.12.2018,COMMUNITIES,METROPOLITAN SUPPORT TRUST,939.48,NO RECOURSE TO PUBLIC FUNDS,ACCOMMODATION CHARGES,5902332843,1000047547
05.12.2018,COMMUNITIES,METROPOLITAN SUPPORT TRUST,939.48,NO RECOURSE TO PUBLIC FUNDS,ACCOMMODATION CHARGES,5902332849,1000047547
05.12.2018,COMMUNITIES,SOUTHSIDE PARTNERSHIP,"1,143.87",NO RECOURSE TO PUBLIC FUNDS,ACCOMMODATION CHARGES,5902332893,1716624
05.12.2018,COMMUNITIES,FINEFAIR LTD,"1,414.20",NO RECOURSE TO PUBLIC FUNDS,ACCOMMODATION CHARGES,5902332851,1000075570
05.12.2018,COMMUNITIES,DINARDO SUPPORTS LTD,"1,520.00",NO RECOURSE TO PUBLIC FUNDS,ACCOMMODATION CHARGES,5902332823,1000063093
05.12.2018,COMMUNITIES,DINARDO SUPPORTS LTD,"1,520.00",NO RECOURSE TO PUBLIC FUNDS,ACCOMMODATION CHARGES,5902332825,1000063093
05.12.2018,COMMUNITIES,CYBERSTYLE LETTINGS LTD,"3,615.00",NO RECOURSE TO PUBLIC FUNDS,ACCOMMODATION CHARGES,5902332888,1000079319
05.12.2018,COMMUNITIES,SOUTH OF THE RIVER INVESTMENTS LTD,"4,856.10",NO RECOURSE TO PUBLIC FUNDS,ACCOMMODATION CHARGES,5902332857,1000073638
05.12.2018,COMMUNITIES,TAAKSVALE HOUSING LTD,"24,417.00",NO RECOURSE TO PUBLIC FUNDS,ACCOMMODATION CHARGES,5902332892,1000073665
05.12.2018,COMMUNITIES,PPROPERTYPLACEBOOK LTD,"44,145.00",NO RECOURSE TO PUBLIC FUNDS,ACCOMMODATION CHARGES,5902332894,1000077817
05.12.2018,COMMUNITIES,MANOR ESTATE T&RA,"1,826.00",TENANTS FUND,GRANTS,5902332846,1000078115
05.12.2018,COMMUNITIES,SOLACE WOMEN'S AID,"87,462.00",VIOLENCE AGAINST WOMEN & GIRLS,EXTERNAL AGENCIES AND BODIES,5902332883,1000057231
05.12.2018,CUSTOMER EXPERIENCE HGF,BIRCHAM DYSON BELL,"28,603.25",LONDON BRIDGE INQUEST,LEGAL FEES & COURT COSTS,5902332847,1000048605
05.12.2018,CUSTOMER EXPERIENCE HGF,GUYS & ST THOMAS NHS FOUNDATION TRUST,850,MORTUARY,OTHER CONTRACTORS,5902332838,1765536
05.12.2018,CUSTOMER EXPERIENCE HGF,GUYS & ST THOMAS NHS FOUNDATION TRUST,"6,589.00",MORTUARY,OTHER CONTRACTORS,5902332834,1765536
05.12.2018,CUSTOMER EXPERIENCE HGF,TAAKSVALE HOUSING LTD,"107,272.75",NIGHTLY TA (NSC),EXTERNAL AGENCIES AND BODIES,5902332873,1000073665
05.12.2018,ENVIRONMENT AND LEISURE,DULWICH PICTURE GALLERY,"7,410.00",CAPITAL PS (LEISURE),CAPITAL GRANTS,5902332723,1000061895
05.12.2018,ENVIRONMENT AND LEISURE,ASHTEAD PLANT HIRE CO LTD,"1,178.00",CAPITAL PS (LEISURE),CONST'N MAIN CONTRACT - NON CERTIFICATED,5902332747,1000059371
05.12.2018,ENVIRONMENT AND LEISURE,SERENA KORDA,"1,000.00",CAPITAL PS (LEISURE),CONSTR'N SUB CONTRACT - NON CERTIFICATED,5902332903,1000081973
05.12.2018,ENVIRONMENT AND LEISURE,CONWAY AECOM LTD,"4,343.42",CAPITAL PS (LEISURE),CONSTR'N SUB CONTRACT - NON CERTIFICATED,5902332816,1000071205
05.12.2018,ENVIRONMENT AND LEISURE,BAILY GARNER,892.8,CAPITAL PS (LEISURE),CONSTRUCTION FEES  - EXTERNAL,5902332876,1000033754
05.12.2018,ENVIRONMENT AND LEISURE,DAVID MILES & PARTNERS LTD,"5,500.00",CAPITAL PS (LEISURE),CONSTRUCTION FEES  - EXTERNAL,5902332810,1000001119
05.12.2018,ENVIRONMENT AND LEISURE,ROOFF LTD,"117,449.74",CAPITAL PS (LEISURE),CONSTRUCTION FEES  - EXTERNAL,2102896222,3000001090
05.12.2018,ENVIRONMENT AND LEISURE,RH WROUGHT IRON,"2,000.00",CAPITAL PS (LEISURE),CONSTRUCTION MAIN CONTRACT -CERTIFICATED,2102896212,3000000680
05.12.2018,ENVIRONMENT AND LEISURE,CONWAY AECOM LTD,"63,403.56",CAPITAL PS (LEISURE),CONSTRUCTION SUB CONTRACT -CERTIFICATED,2102896206,3000001595
05.12.2018,ENVIRONMENT DIRECTORATE,KENT COUNTY COUNCIL - LASER,684.67,COLUMNS - MINOR ROADS,ELECTRICITY,5902332848,1000012926
05.12.2018,ENVIRONMENT DIRECTORATE,ZAUN LTD,"1,012.00",ENGINEERING CRAFTS,OTHER CONTRACTORS,5902332766,1000030488
05.12.2018,ENVIRONMENT DIRECTORATE,GREENHAM TRADING LTD,"1,047.32",ESTATE CLEANING-GENERAL,MATERIALS,5902332862,1000006610
05.12.2018,ENVIRONMENT DIRECTORATE,CONTEGO SAFETY SOLUTIONS LTD,422.75,MANAGEMENT TEAM,MATERIALS,5902332789,1000077673
05.12.2018,ENVIRONMENT DIRECTORATE,INSPECTORATE LTD,"4,250.00",PUBLIC LIGHTING,SOUTHWARK DIRECT CHARGES,5902332850,1000078730
05.12.2018,ENVIRONMENT DIRECTORATE,SOUTHWARK NEWSPAPER LTD,276,STREET WORKS OVERHEADS,MARKETING & PUBLICITY SERVICES,5902332719,1556957
05.12.2018,ENVIRONMENT DIRECTORATE,SOUTHWARK NEWSPAPER LTD,276,STREET WORKS OVERHEADS,MARKETING & PUBLICITY SERVICES,5902332806,1556957
05.12.2018,ENVIRONMENT DIRECTORATE,SOUTHWARK NEWSPAPER LTD,288,STREET WORKS OVERHEADS,MARKETING & PUBLICITY SERVICES,5902332797,1556957
05.12.2018,ENVIRONMENT DIRECTORATE,SOUTHWARK NEWSPAPER LTD,288,STREET WORKS OVERHEADS,MARKETING & PUBLICITY SERVICES,5902332802,1556957
05.12.2018,ENVIRONMENT DIRECTORATE,SOUTHWARK NEWSPAPER LTD,300,STREET WORKS OVERHEADS,MARKETING & PUBLICITY SERVICES,5902332803,1556957
05.12.2018,ENVIRONMENT DIRECTORATE,SOUTHWARK NEWSPAPER LTD,312,STREET WORKS OVERHEADS,MARKETING & PUBLICITY SERVICES,5902332798,1556957
05.12.2018,ENVIRONMENT DIRECTORATE,SOUTHWARK NEWSPAPER LTD,312,STREET WORKS OVERHEADS,MARKETING & PUBLICITY SERVICES,5902332801,1556957
05.12.2018,ENVIRONMENT DIRECTORATE,SOUTHWARK NEWSPAPER LTD,312,STREET WORKS OVERHEADS,MARKETING & PUBLICITY SERVICES,5902332804,1556957
05.12.2018,ENVIRONMENT DIRECTORATE,SOUTHWARK NEWSPAPER LTD,336,STREET WORKS OVERHEADS,MARKETING & PUBLICITY SERVICES,5902332800,1556957
05.12.2018,ENVIRONMENT DIRECTORATE,SOUTHWARK NEWSPAPER LTD,336,STREET WORKS OVERHEADS,MARKETING & PUBLICITY SERVICES,5902332805,1556957
05.12.2018,ENVIRONMENT DIRECTORATE,TYCO INTEGRATED FIRE & SECURITY,"1,161.72",TOWN CENTRE CCTV,OTHER CONTRACTORS,5902332775,1000077948
05.12.2018,F & C S EXCLUDING CORPORATE BUDGETS,CBC CIARAN BEARY CONSULTING LTD,"4,981.25",ADMINISTRATIVE SUPPORT,TRAINING,5902332887,1000037406
05.12.2018,F & C S EXCLUDING CORPORATE BUDGETS,CAPITA BUSINESS SERVICES LTD,"5,323.82",CAPITA,OTHER CONTRACTORS,5902332860,1000049446
05.12.2018,F & C S EXCLUDING CORPORATE BUDGETS,EXPERIAN LTD,"8,365.00",INCOME MANAGEMENT,COMMS & COMPUTING CONTRACT CHARGES,5902332745,1000026339
05.12.2018,HOUSING HRA,DACHI ASSOCIATES LTD,850,CAPITAL PS (HRA),CONSTRUCTION FEES  - EXTERNAL,5902332721,1000081964
05.12.2018,HOUSING HRA,CALFORD SEADEN LLP,"2,427.27",CAPITAL PS (HRA),CONSTRUCTION FEES  - EXTERNAL,5902332863,1061592
05.12.2018,HOUSING HRA,CALFORD SEADEN LLP,"3,998.26",CAPITAL PS (HRA),CONSTRUCTION FEES  - EXTERNAL,5902332872,1061592
05.12.2018,HOUSING HRA,PENNINGTON CHOICE LTD,"36,965.96",PENNINGTON,MANUAL CREDITORS,5902332884,1000067888
05.12.2018,HOUSING STRATEGY AND OPTIONS,BACK ON TRACK HOUSING,902,HOMELESS PROJECTS,GRANTS,5902332811,1000071262
05.12.2018,HOUSING STRATEGY AND OPTIONS,BACK ON TRACK HOUSING,902,HOMELESS PROJECTS,GRANTS,5902332813,1000071262
05.12.2018,HOUSING STRATEGY AND OPTIONS,BACK ON TRACK HOUSING,902,HOMELESS PROJECTS,GRANTS,5902332815,1000071262
05.12.2018,HOUSING STRATEGY AND OPTIONS,BACK ON TRACK HOUSING,902,HOMELESS PROJECTS,GRANTS,5902332817,1000071262
05.12.2018,HOUSING STRATEGY AND OPTIONS,RUBICON PROPERTY (SHRUBBERY LTD),"1,261.20",HOMELESS PROJECTS,GRANTS,5902332880,1000080428
05.12.2018,LEISURE DIRECTORATE,WHATS ON ROTHERHITHE GROUP,640.82,ADMINISTRATION,PROFESSIONAL FEES,5902332728,1000080239
05.12.2018,LEISURE DIRECTORATE,P D CONSTRUCTION LTD,605,BURGESS AREA TEAM,GROUNDS MAINTENANCE,5902332826,1000000390
05.12.2018,LEISURE DIRECTORATE,P D CONSTRUCTION LTD,660,BURGESS AREA TEAM,GROUNDS MAINTENANCE,5902332822,1000000390
05.12.2018,LEISURE DIRECTORATE,NPOWER LTD,"-1,634.26",CEMETERIES,ELECTRICITY,5902332269,1000078994
05.12.2018,LEISURE DIRECTORATE,NPOWER LTD,"-1,633.54",CEMETERIES,ELECTRICITY,5902332272,1000078994
05.12.2018,LEISURE DIRECTORATE,NPOWER LTD,-532.88,CEMETERIES,ELECTRICITY,5902332265,1000078994
05.12.2018,LEISURE DIRECTORATE,NPOWER LTD,493.41,CEMETERIES,ELECTRICITY,5902332260,1000078994
05.12.2018,LEISURE DIRECTORATE,NPOWER LTD,"1,261.68",CEMETERIES,ELECTRICITY,5902332263,1000078994
05.12.2018,LEISURE DIRECTORATE,WESTMINSTER WASTE,769,CEMETERIES,OTHER CONTRACTORS,5902332094,1000080933
05.12.2018,LEISURE DIRECTORATE,LAND USE CONSULTANTS LTD,"18,252.00",CEMETERIES,PROFESSIONAL FEES,5902332891,11132526
05.12.2018,LEISURE DIRECTORATE,KENT COUNTY COUNCIL - LASER,707.18,DULWICH LIBRARY,ELECTRICITY,5902332886,1000012926
05.12.2018,LEISURE DIRECTORATE,COVERGOLD LTD,395,LOCAL HISTORY LIBRARY,SUBSCRIPTIONS,5902332900,1000068605
05.12.2018,LEISURE DIRECTORATE,RH WROUGHT IRON,330,SOUTHWARK AREA TEAM,OTHER R&M,2102896221,3000000680
05.12.2018,LEISURE DIRECTORATE,RH WROUGHT IRON,"1,110.00",SOUTHWARK AREA TEAM,OTHER R&M,2102896221,3000000680
05.12.2018,MODERNISATION HGF,T2 SOLUTIONS 2000 LTD,475,HR PAYROLL COSTS,CONSULTANTS SERVICES,5902332740,1000080952
05.12.2018,MODERNISATION HGF,VIRGIN MEDIA,867.46,IT MANAGEMENT,DATA COMMUNICATIONS,5902332189,1000026457
05.12.2018,MODERNISATION HGF,APTIVA ENVIRONMENTAL LTD,"2,292.00",REPAIR AND MAINTENANCE SERVICES,BUILDING R&M,2102896199,3000001565
05.12.2018,MODERNISATION HGF,ITEC CONNECT LTD,"3,687.00",TECHNOLOGY,PRINTING,5902332796,1000080418
05.12.2018,MODERNISATION HGF,CHALLENGE CONSULTANCY LTD,600,WOMEN�S NETWORK,TRAINING,5902332781,1000048110
05.12.2018,PLANNING AND TRANSPORT,IDOX SOFWARE LIMITED,"42,300.00",DEVELOPMENT CONTROL ADMINSTRATION,TRAINING,5902332842,1000032110
05.12.2018,RESIDENT SERVICES,EDF ENERGY PLC,845.64,TA HOSTELS,ELECTRICITY,5902332736,1008746
05.12.2018,SOUTHWARK BUILDING SERVICES,N & C BUILDING MATERIALS,287.3,BOR & BKSIDE DAY TO DAY - CARPENTER,MATERIALS,5902332755,1005586
05.12.2018,SOUTHWARK BUILDING SERVICES,N & C BUILDING MATERIALS,299.72,R & M OVERHEADS,MATERIALS,5902332757,1005586
05.12.2018,SOUTHWARK BUILDING SERVICES,TRAVIS PERKINS,"-1,342.60",STORES/LOGISTICS,BSU STORES AUTO POSTINGS,5902332861,1514319
05.12.2018,SOUTHWARK BUILDING SERVICES,TRAVIS PERKINS,270,STORES/LOGISTICS,CREDITORS -GR/IR CLEARING ACCOUNT,5902332858,1514319
05.12.2018,SOUTHWARK BUILDING SERVICES,TRAVIS PERKINS,282,STORES/LOGISTICS,CREDITORS -GR/IR CLEARING ACCOUNT,5902332858,1514319
05.12.2018,SOUTHWARK BUILDING SERVICES,TRAVIS PERKINS,294,STORES/LOGISTICS,CREDITORS -GR/IR CLEARING ACCOUNT,5902332858,1514319
05.12.2018,SOUTHWARK BUILDING SERVICES,TRAVIS PERKINS,330,STORES/LOGISTICS,CREDITORS -GR/IR CLEARING ACCOUNT,5902332858,1514319
05.12.2018,SOUTHWARK BUILDING SERVICES,TRAVIS PERKINS,340,STORES/LOGISTICS,CREDITORS -GR/IR CLEARING ACCOUNT,5902332858,1514319
05.12.2018,SOUTHWARK BUILDING SERVICES,TRAVIS PERKINS,429.6,STORES/LOGISTICS,CREDITORS -GR/IR CLEARING ACCOUNT,5902332858,1514319
05.12.2018,SOUTHWARK BUILDING SERVICES,TRAVIS PERKINS,539.4,STORES/LOGISTICS,CREDITORS -GR/IR CLEARING ACCOUNT,5902332858,1514319
05.12.2018,SOUTHWARK BUILDING SERVICES,TRAVIS PERKINS,540,STORES/LOGISTICS,CREDITORS -GR/IR CLEARING ACCOUNT,5902332858,1514319
05.12.2018,SOUTHWARK BUILDING SERVICES,TRAVIS PERKINS,540,STORES/LOGISTICS,CREDITORS -GR/IR CLEARING ACCOUNT,5902332858,1514319
05.12.2018,SOUTHWARK BUILDING SERVICES,TRAVIS PERKINS,540,STORES/LOGISTICS,CREDITORS -GR/IR CLEARING ACCOUNT,5902332858,1514319
05.12.2018,SOUTHWARK BUILDING SERVICES,TRAVIS PERKINS,559.79,STORES/LOGISTICS,CREDITORS -GR/IR CLEARING ACCOUNT,5902332858,1514319
05.12.2018,SOUTHWARK BUILDING SERVICES,TRAVIS PERKINS,567.36,STORES/LOGISTICS,CREDITORS -GR/IR CLEARING ACCOUNT,5902332858,1514319
05.12.2018,SOUTHWARK BUILDING SERVICES,TRAVIS PERKINS,570,STORES/LOGISTICS,CREDITORS -GR/IR CLEARING ACCOUNT,5902332858,1514319
05.12.2018,SOUTHWARK BUILDING SERVICES,TRAVIS PERKINS,570,STORES/LOGISTICS,CREDITORS -GR/IR CLEARING ACCOUNT,5902332858,1514319
05.12.2018,SOUTHWARK BUILDING SERVICES,TRAVIS PERKINS,600,STORES/LOGISTICS,CREDITORS -GR/IR CLEARING ACCOUNT,5902332858,1514319
05.12.2018,SOUTHWARK BUILDING SERVICES,TRAVIS PERKINS,616.5,STORES/LOGISTICS,CREDITORS -GR/IR CLEARING ACCOUNT,5902332858,1514319
05.12.2018,SOUTHWARK BUILDING SERVICES,TRAVIS PERKINS,"1,074.60",STORES/LOGISTICS,CREDITORS -GR/IR CLEARING ACCOUNT,5902332858,1514319
05.12.2018,SOUTHWARK BUILDING SERVICES,TRAVIS PERKINS,"1,100.00",STORES/LOGISTICS,CREDITORS -GR/IR CLEARING ACCOUNT,5902332858,1514319
05.12.2018,SOUTHWARK BUILDING SERVICES,TRAVIS PERKINS,"1,392.40",STORES/LOGISTICS,CREDITORS -GR/IR CLEARING ACCOUNT,5902332858,1514319
05.12.2018,SOUTHWARK BUILDING SERVICES,A T & T (GB LTD ),"1,540.44",STORES/LOGISTICS,CREDITORS -GR/IR CLEARING ACCOUNT,5902332877,1000078342
05.12.2018,SOUTHWARK BUILDING SERVICES,CHARLES ENDIRECT LTD,"1,567.00",STORES/LOGISTICS,CREDITORS -GR/IR CLEARING ACCOUNT,5902332764,11284665
05.12.2018,SOUTHWARK BUILDING SERVICES,TRAVIS PERKINS,"1,839.31",STORES/LOGISTICS,CREDITORS -GR/IR CLEARING ACCOUNT,5902332858,1514319
05.12.2018,SOUTHWARK BUILDING SERVICES,TRAVIS PERKINS,"2,053.30",STORES/LOGISTICS,CREDITORS -GR/IR CLEARING ACCOUNT,5902332858,1514319
05.12.2018,SOUTHWARK BUILDING SERVICES,TRAVIS PERKINS,"2,205.00",STORES/LOGISTICS,CREDITORS -GR/IR CLEARING ACCOUNT,5902332858,1514319
05.12.2018,SOUTHWARK BUILDING SERVICES,TRAVIS PERKINS,"2,891.80",STORES/LOGISTICS,CREDITORS -GR/IR CLEARING ACCOUNT,5902332858,1514319
05.12.2018,SOUTHWARK BUILDING SERVICES,TRAVIS PERKINS,"3,353.60",STORES/LOGISTICS,CREDITORS -GR/IR CLEARING ACCOUNT,5902332858,1514319
05.12.2018,SOUTHWARK BUILDING SERVICES,CHARLES ENDIRECT LTD,"3,788.00",STORES/LOGISTICS,CREDITORS -GR/IR CLEARING ACCOUNT,5902332764,11284665
06.12.2018,ADULT SOCIAL CARE,REDACTED PERSONAL DATA,500,APPOINTEESHIPS,OTHER PAYMENTS FOR CLIENTS,REDACTED,REDACTED
06.12.2018,ASSET MANAGEMENT,GW LEGAL,500,DISREPAIR,BUILDING R&M,5902331832,1000081845
06.12.2018,ASSET MANAGEMENT,PROPERTY FACILITIES GROUP PLC,"17,923.06",R&M CONTRACTS (SOUTH),BUILDING R&M,2102896321,3000001420
06.12.2018,CHIEF EXECUTIVE,RED R DESIGN,500,CAPITAL PS (REGEN),CONSTRUCTION FEES  - EXTERNAL,5902333053,1000035984
06.12.2018,CHIEF EXECUTIVE,WYNNE-WILLIAMS ASSOCIATES LTD,"9,334.25",CAPITAL PS (REGEN),CONSTRUCTION FEES  - EXTERNAL,5902333022,1000081419
06.12.2018,CHIEF EXECUTIVE,ADDLESHAW GODDARD LLP,713,CAPITAL PS (REGEN),CONSTRUCTION FEES - LEGAL,5902332952,1000079782
06.12.2018,CHIEF EXECUTIVE,ADDLESHAW GODDARD LLP,"1,182.63",CAPITAL PS (REGEN),CONSTRUCTION FEES - LEGAL,5902332948,1000079782
06.12.2018,CHIEF EXECUTIVE,ADDLESHAW GODDARD LLP,"14,122.00",CAPITAL PS (REGEN),CONSTRUCTION FEES - LEGAL,5902332946,1000079782
06.12.2018,CHIEF EXECUTIVE,FAITHFUL & GOULD,"13,799.67",CAPITAL PS (STRAT SERV),CONSTRUCTION FEES - QUANTITY SURVEYOR,5902333033,1000061390
06.12.2018,CHILDREN AND ADULT,MLM CONSULTING ENGINEERS LTD,950,CAPITAL PS (EDUCATION),CONSTRUCTION FEES,5902332281,1000059806
06.12.2018,CHILDREN AND ADULT,DAVID MILES & PARTNERS LTD,"3,471.54",CAPITAL PS (SOC SERV),CONSTRUCTION MAIN CONTRACT,5902333075,1000001119
06.12.2018,CHILDREN'S SERVICES,CAMBIAN AUTISM SERVICES LTD,"22,863.33",CASEWORK OLA  0-8,ADDITIONAL PAYMENTS TO AGENCIES/CARERS,2102896362,1000074719
06.12.2018,CHILDREN'S SERVICES,CAMBIAN ASPERGER SYNDROME SERVICES,"46,333.33",CASEWORK OLA  0-8,ADDITIONAL PAYMENTS TO AGENCIES/CARERS,2102896370,1000077659
06.12.2018,CHILDREN'S SERVICES,PULSE HEALTHCARE LTD,"1,001.00",CASEWORK OLA  0-8,CONTRIBUTION TO PROVISIONS (TP PAYMENTS),5902332422,1000035063
06.12.2018,CHILDREN'S SERVICES,CAMBIAN ASPERGER SYNDROME SERVICES,"7,501.67",CASEWORK OLA  0-8,CONTRIBUTION TO PROVISIONS (TP PAYMENTS),2102896371,1000077659
06.12.2018,CHILDREN'S SERVICES,REDACTED PERSONAL DATA,420.2,CASEWORK OLA  0-8,CONTRIBUTION TO PROVISIONS (TP PAYMENTS),REDACTED,REDACTED
06.12.2018,CHILDREN'S SERVICES,WHITEFIELD ACADEMY TRUST,"3,333.00",CASEWORK OLA  0-8,RECOUPMENT,2102896379,1000080971
06.12.2018,CHILDREN'S SERVICES,ISLINGTON COUNCIL,"60,311.00",CASEWORK OLA  0-8,RECOUPMENT,2102896378,11204697
06.12.2018,CHILDREN'S SERVICES,STEPHEN HAWKING SCHOOL,"6,655.01",CASEWORK OLA  0-8,RECOUPMENT,2102896377,1000071455
06.12.2018,CHILDREN'S SERVICES,MOAT SCHOOL LTD,"7,150.00",CASEWORK OLA  0-8,RECOUPMENT,2102896351,1000010219
06.12.2018,CHILDREN'S SERVICES,MOAT SCHOOL LTD,"10,000.00",CASEWORK OLA  0-8,RECOUPMENT,2102896350,1000010219
06.12.2018,CHILDREN'S SERVICES,ABINGDON HOUSE SCHOOL,"10,750.00",CASEWORK OLA  0-8,RECOUPMENT,2102896353,1000072800
06.12.2018,CHILDREN'S SERVICES,ABINGDON HOUSE SCHOOL,"10,750.00",CASEWORK OLA  0-8,RECOUPMENT,2102896354,1000072800
06.12.2018,CHILDREN'S SERVICES,FLEET TUTORS,"1,884.00",CASEWORK OLA  0-8,"SCHOOLS CAPITATION, OTHER GRANTS",2102896375,1000044820
06.12.2018,CHILDREN'S SERVICES,FLEET TUTORS,"1,884.00",CASEWORK OLA  0-8,"SCHOOLS CAPITATION, OTHER GRANTS",2102896376,1000044820
06.12.2018,CHILDREN'S SERVICES,FLEET TUTORS,"2,295.00",CASEWORK OLA  0-8,"SCHOOLS CAPITATION, OTHER GRANTS",2102896374,1000044820
06.12.2018,CHILDREN'S SERVICES,HARRIS PRIMARY FREE SCHOOL PECKHAM,"44,803.09",CASEWORK SOUTHWARK 0-8,STATEMENTED FEES,2102896369,1000071084
06.12.2018,CHILDREN'S SERVICES,HARRIS PRIMARY ACADEMY PECKHAM PARK,"59,642.53",CASEWORK SOUTHWARK 0-8,STATEMENTED FEES,2102896368,1000068029
06.12.2018,CHILDREN'S SERVICES,ST MICHAELS FELLOWSHIP,"14,680.67",FAMILY ASSESSMENTS,RESIDENTIAL CARE,5902333088,1000004439
06.12.2018,CHILDREN'S SERVICES,REDACTED PERSONAL DATA,299,LEAVING CARE GRANT,OTHER PAYMENTS FOR CLIENTS,REDACTED,REDACTED
06.12.2018,CHILDREN'S SERVICES,REDACTED PERSONAL DATA,"1,000.00",LEAVING CARE GRANT,OTHER PAYMENTS FOR CLIENTS,REDACTED,REDACTED
06.12.2018,CHILDREN'S SERVICES,ARC COMMUNITY TRUSTEES,310.05,NURSERY ED GRANT 3 YEAR OLD,GRANTS,2102896323,1000046206
06.12.2018,CHILDREN'S SERVICES,FOUNTAIN CHILDRENS CENTRE LIMITED,"4,020.90",NURSERY ED GRANT 3 YEAR OLD,GRANTS,2102896324,1000042265
06.12.2018,CHILDREN'S SERVICES,KISIMUL GROUP LTD,"36,426.00",PFA TEAM SOUTHWARK 9 PLUS,ADDITIONAL PAYMENTS TO AGENCIES/CARERS,2102896365,1000079657
06.12.2018,CHILDREN'S SERVICES,KISIMUL GROUP LTD,"54,869.33",PFA TEAM SOUTHWARK 9 PLUS,ADDITIONAL PAYMENTS TO AGENCIES/CARERS,2102896364,1000079657
06.12.2018,CHILDREN'S SERVICES,SAINT GABRIELS COLLEGE,"5,278.35",PFA TEAM SOUTHWARK 9 PLUS,CENTRAL GOVERNMENT,2102896383,1000075366
06.12.2018,CHILDREN'S SERVICES,VIBE TEACHER RECRUITMENT LTD,"1,890.00",PFA TEAM SOUTHWARK 9 PLUS,CONTRIBUTION TO PROVISIONS (TP PAYMENTS),2102896366,1000081423
06.12.2018,CHILDREN'S SERVICES,VIBE TEACHER RECRUITMENT LTD,"2,210.00",PFA TEAM SOUTHWARK 9 PLUS,CONTRIBUTION TO PROVISIONS (TP PAYMENTS),2102896367,1000081423
06.12.2018,CHILDREN'S SERVICES,LONDON BOROUGH OF MERTON,"7,573.84",PFA TEAM SOUTHWARK 9 PLUS,RECOUPMENT,2102896382,1000020886
06.12.2018,CHILDREN'S SERVICES,MOAT SCHOOL LTD,"10,000.00",PFA TEAM SOUTHWARK 9 PLUS,RECOUPMENT,2102896349,1000010219
06.12.2018,CHILDREN'S SERVICES,MOAT SCHOOL LTD,"10,000.00",PFA TEAM SOUTHWARK 9 PLUS,RECOUPMENT,2102896352,1000010219
06.12.2018,CHILDREN'S SERVICES,CENTER ACADEMY SCHOOL,"13,666.00",PFA TEAM SOUTHWARK 9 PLUS,RECOUPMENT,2102896348,11295355
06.12.2018,CHILDREN'S SERVICES,BECKMEAD SCHOOL,"13,976.08",PFA TEAM SOUTHWARK 9 PLUS,RECOUPMENT,2102896380,1000073292
06.12.2018,CHILDREN'S SERVICES,BECKMEAD SCHOOL,"50,009.76",PFA TEAM SOUTHWARK 9 PLUS,RECOUPMENT,2102896381,1000073292
06.12.2018,CHILDREN'S SERVICES,THE COMPLETE WORKS INDEPENDENT SCHOOL,600,PFA TEAM SOUTHWARK 9 PLUS,"SCHOOLS CAPITATION, OTHER GRANTS",2102896361,1000033256
06.12.2018,CHILDREN'S SERVICES,THE COMPLETE WORKS INDEPENDENT SCHOOL,"7,000.00",PFA TEAM SOUTHWARK 9 PLUS,"SCHOOLS CAPITATION, OTHER GRANTS",2102896358,1000033256
06.12.2018,CHILDREN'S SERVICES,THE COMPLETE WORKS INDEPENDENT SCHOOL,"7,000.00",PFA TEAM SOUTHWARK 9 PLUS,"SCHOOLS CAPITATION, OTHER GRANTS",2102896359,1000033256
06.12.2018,CHILDREN'S SERVICES,THE COMPLETE WORKS INDEPENDENT SCHOOL,"7,000.00",PFA TEAM SOUTHWARK 9 PLUS,"SCHOOLS CAPITATION, OTHER GRANTS",2102896360,1000033256
06.12.2018,CHILDREN'S SERVICES,ABBEY MANOR COLLEGE,"31,848.24",PFA TEAM SOUTHWARK 9 PLUS,"SCHOOLS CAPITATION, OTHER GRANTS",2102896384,1000073855
06.12.2018,CHILDREN'S SERVICES,WEY ECADEMY LTD,519.33,PFA TEAM SOUTHWARK 9 PLUS,"SCHOOLS CAPITATION, STANDARDS FUND",2102896373,1000080290
06.12.2018,CHILDREN'S SERVICES,WEY ECADEMY LTD,"1,038.67",PFA TEAM SOUTHWARK 9 PLUS,"SCHOOLS CAPITATION, STANDARDS FUND",2102896372,1000080290
06.12.2018,CHILDREN'S SERVICES,HARRIS GIRLS ACADEMY EAST DULWICH,"2,639.17",PFA TEAM SOUTHWARK 9 PLUS,STATEMENTED FEES,2102896357,1000052853
06.12.2018,CHILDREN'S SERVICES,CATHERINE RUSHFORTH & ASSOCIATES,"1,400.00",PRIMARY ACHIEVEMENT,CONSULTANTS SERVICES,5902332309,1000055976
06.12.2018,CHILDREN'S SERVICES,ROYAL BOROUGH OF GREENWICH,"14,025.96",REGIONAL ADOPTION AGENCY,EXTERNAL AGENCIES AND BODIES,5902333013,1000030426
06.12.2018,CHILDREN'S SERVICES,HORNBY & LEVY SOLICITORS,654.5,S & FAM SUPP - PRAC GRP E SET 26-28,EXTERNAL AGENCIES AND BODIES,5902333083,1000064117
06.12.2018,CHILDREN'S SERVICES,FRESH IDEAS & SOLUTIONS SERVICES CIC,"1,587.33",SCH TRANS - CONTRACT COST,OTHER PAYMENTS FOR CLIENTS,2102896388,1000070832
06.12.2018,CHILDREN'S SERVICES,REDACTED PERSONAL DATA,"1,160.00",SCH TRANS - CONTRACT COST,OTHER PAYMENTS FOR CLIENTS,REDACTED,REDACTED
06.12.2018,CHILDREN'S SERVICES,PULSE HEALTHCARE LTD,308,SCH TRANS - CONTRACT COST,RECOUPMENT,5902332196,1000035063
06.12.2018,CHILDREN'S SERVICES,BEHAVIOUR MATTERS LTD,"6,000.00",SEND REDESIGN PROJECT,CONSULTANTS SERVICES,2102896363,1000072737
06.12.2018,CHILDREN'S SERVICES,CHARTWELLS,672,SUMMERHOUSE - EX416 - 5015232,CATERING MATERIALS & SUPPLIES,5902332909,1000010625
06.12.2018,CHILDREN'S SERVICES,CHARTWELLS,"1,386.00",SUMMERHOUSE - EX416 - 5015232,CATERING MATERIALS & SUPPLIES,5902332908,1000010625
06.12.2018,CHILDREN'S SERVICES,PSYCHO DYNAMICS LIMITED,"1,960.00",SUMMERHOUSE - EX416 - 5015232,CONSULTANTS SERVICES,5902332906,1000051708
06.12.2018,CHILDREN'S SERVICES,SOUTH OF THE RIVER INVESTMENTS LTD,"2,181.00",TEMPORARY ACCOMMODATION,EXTERNAL AGENCIES AND BODIES,5902332920,1000073638
06.12.2018,CHILDREN'S SERVICES,REDACTED PERSONAL DATA,300,UASC FURTHER EDUCATION SUPPORT,CLIENT TRANSPORT,REDACTED,REDACTED
06.12.2018,CHILDREN'S SERVICES,REDACTED PERSONAL DATA,500,UASC FURTHER EDUCATION SUPPORT,OTHER PAYMENTS FOR CLIENTS,REDACTED,REDACTED
06.12.2018,COMMISSIONING & CENTRAL,SYED & QUINN LTD,500,ADULTS MULTI-AGENCY SAFEGUARDING TRNG,TRAINING,5902332713,1000029554
06.12.2018,COMMISSIONING & CENTRAL,SYED & QUINN LTD,375,ASW - PROFESSIONAL DEVELOPMENT,TRAINING,5902332711,1000029554
06.12.2018,COMMUNITIES,THEATRE PECKHAM,375,COMMUNITY COUNCILS TEAM,HIRE OF ROOMS/HALLS,5902332964,1071668
06.12.2018,COMMUNITIES,NATIONWIDE ACCOMMODATION,"-1,710.00",NO RECOURSE TO PUBLIC FUNDS,ACCOMMODATION CHARGES,5902333086,1000076112
06.12.2018,COMMUNITIES,GALAXY LETTINGS LTD,"2,100.00",NO RECOURSE TO PUBLIC FUNDS,ACCOMMODATION CHARGES,5902332961,1000055897
06.12.2018,COMMUNITIES,NORBURY PROPERTY SERVICES (LONDON) LTD,"3,030.00",NO RECOURSE TO PUBLIC FUNDS,ACCOMMODATION CHARGES,5902332913,1000075566
06.12.2018,COMMUNITIES,CROWN HOUSING LTD,"3,915.00",NO RECOURSE TO PUBLIC FUNDS,ACCOMMODATION CHARGES,5902332911,1000075070
06.12.2018,COMMUNITIES,VENTURE HOUSING (LONDON) LTD,"5,520.00",NO RECOURSE TO PUBLIC FUNDS,ACCOMMODATION CHARGES,5902332976,1000056686
06.12.2018,COMMUNITIES,S & G PROPERTIES,"7,856.45",NO RECOURSE TO PUBLIC FUNDS,ACCOMMODATION CHARGES,5902333002,1000005082
06.12.2018,COMMUNITIES,NATIONWIDE ACCOMMODATION,"8,868.50",NO RECOURSE TO PUBLIC FUNDS,ACCOMMODATION CHARGES,5902333080,1000076112
06.12.2018,COMMUNITIES,ZFA LTD,"10,730.00",NO RECOURSE TO PUBLIC FUNDS,ACCOMMODATION CHARGES,5902332910,1000074420
06.12.2018,COMMUNITIES,LIVING ACCOMODATION LTD,"13,010.00",NO RECOURSE TO PUBLIC FUNDS,ACCOMMODATION CHARGES,5902332975,1000063985
06.12.2018,COMMUNITIES,CITYGLEN LTD,"22,975.00",NO RECOURSE TO PUBLIC FUNDS,ACCOMMODATION CHARGES,5902332918,1000026239
06.12.2018,COMMUNITIES,J & M OASIS LTD,"32,511.00",NO RECOURSE TO PUBLIC FUNDS,ACCOMMODATION CHARGES,5902332977,1000072169
06.12.2018,COMMUNITIES,RED R DESIGN,600,RESIDENT INVOLVEMENT TEAM,MARKETING & PUBLICITY SERVICES,5902332064,1000035984
06.12.2018,COMMUNITIES,WEBBER & QUENTIN T&RA,"1,000.00",TRSIG,GRANTS,5902332973,1988233
06.12.2018,COMMUNITIES,WEBBER & QUENTIN T&RA,"1,000.00",TRSIG,GRANTS,5902332973,1988233
06.12.2018,CUSTOMER EXPERIENCE,INFINITY NETWORKS LTD,"11,738.00",PECKHAM MSSP,EQUIPMENT PURCHASE & REPAIR,5902332225,1000035571
06.12.2018,CUSTOMER EXPERIENCE HGF,SG PATH LTD,415.8,CORONER'S,PROFESSIONAL FEES,5902332966,1000077883
06.12.2018,CUSTOMER EXPERIENCE HGF,SG PATH LTD,415.8,CORONER'S,PROFESSIONAL FEES,5902332969,1000077883
06.12.2018,CUSTOMER EXPERIENCE HGF,SG PATH LTD,415.8,CORONER'S,PROFESSIONAL FEES,5902332970,1000077883
06.12.2018,CUSTOMER EXPERIENCE HGF,SG PATH LTD,415.8,CORONER'S,PROFESSIONAL FEES,5902332971,1000077883
06.12.2018,CUSTOMER EXPERIENCE HGF,SG PATH LTD,415.8,CORONER'S,PROFESSIONAL FEES,5902332974,1000077883
06.12.2018,CUSTOMER EXPERIENCE HGF,SG PATH LTD,415.8,CORONER'S,PROFESSIONAL FEES,5902333078,1000077883
06.12.2018,CUSTOMER EXPERIENCE HGF,SG PATH LTD,415.8,CORONER'S,PROFESSIONAL FEES,5902333082,1000077883
06.12.2018,CUSTOMER EXPERIENCE HGF,SG PATH LTD,415.8,CORONER'S,PROFESSIONAL FEES,5902333084,1000077883
06.12.2018,CUSTOMER EXPERIENCE HGF,SG PATH LTD,595.9,CORONER'S,PROFESSIONAL FEES,5902333077,1000077883
06.12.2018,CUSTOMER EXPERIENCE HGF,KENT COUNTY COUNCIL - LASER,"3,549.37",CUSTOMER SUPPORT,ELECTRICITY,5902332962,1000012926
06.12.2018,ENVIRONMENT AND LEISURE,SOUTHAMPTON WAY T&RA,327.1,CAPITAL PS (LEISURE),CAPITAL GRANTS,5902332950,1000057779
06.12.2018,ENVIRONMENT AND LEISURE,INTO SERVICES LONDON LTD,300,CAPITAL PS (LEISURE),CONST'N MAIN CONTRACT - NON CERTIFICATED,5902331818,1000059328
06.12.2018,ENVIRONMENT AND LEISURE,INTO SERVICES LONDON LTD,"1,000.00",CAPITAL PS (LEISURE),CONST'N MAIN CONTRACT - NON CERTIFICATED,5902331821,1000059328
06.12.2018,ENVIRONMENT AND LEISURE,INTO SERVICES LONDON LTD,"1,000.00",CAPITAL PS (LEISURE),CONST'N MAIN CONTRACT - NON CERTIFICATED,5902331821,1000059328
06.12.2018,ENVIRONMENT AND LEISURE,INTO SERVICES LONDON LTD,"1,800.00",CAPITAL PS (LEISURE),CONST'N MAIN CONTRACT - NON CERTIFICATED,5902331804,1000059328
06.12.2018,ENVIRONMENT AND LEISURE,INTO SERVICES LONDON LTD,"2,510.00",CAPITAL PS (LEISURE),CONST'N MAIN CONTRACT - NON CERTIFICATED,5902331821,1000059328
06.12.2018,ENVIRONMENT AND LEISURE,INTO SERVICES LONDON LTD,"2,850.00",CAPITAL PS (LEISURE),CONST'N MAIN CONTRACT - NON CERTIFICATED,5902331821,1000059328
06.12.2018,ENVIRONMENT AND LEISURE,THOMAS FORD AND PARTNERS,"2,000.00",CAPITAL PS (LEISURE),CONSTRUCTION FEES  - EXTERNAL,5902332890,1000037686
06.12.2018,ENVIRONMENT AND LEISURE,CYCLEHOOP LTD,"8,000.00",CAPITAL PS (LEISURE),CONSTRUCTION FEES - INTERNAL,5902331772,1000057894
06.12.2018,ENVIRONMENT DIRECTORATE,CALLOW MASTER LOCKSMITHS,272.76,ENGINEERING CRAFTS,MATERIALS,5902333020,11179552
06.12.2018,ENVIRONMENT DIRECTORATE,CALLOW MASTER LOCKSMITHS,366.51,ENGINEERING CRAFTS,MATERIALS,5902333019,11179552
06.12.2018,ENVIRONMENT DIRECTORATE,CALLOW MASTER LOCKSMITHS,368.44,ENGINEERING CRAFTS,MATERIALS,5902333019,11179552
06.12.2018,ENVIRONMENT DIRECTORATE,CALLOW MASTER LOCKSMITHS,400,ENGINEERING CRAFTS,MATERIALS,5902333004,11179552
06.12.2018,ENVIRONMENT DIRECTORATE,WELDING ENGINEERING SERVICES,450,ENGINEERING CRAFTS,MATERIALS,5902333025,1000076708
06.12.2018,ENVIRONMENT DIRECTORATE,CALLOW MASTER LOCKSMITHS,606.84,ENGINEERING CRAFTS,MATERIALS,5902333020,11179552
06.12.2018,ENVIRONMENT DIRECTORATE,CALLOW MASTER LOCKSMITHS,746.88,ENGINEERING CRAFTS,MATERIALS,5902333019,11179552
06.12.2018,ENVIRONMENT DIRECTORATE,CALLOW MASTER LOCKSMITHS,"1,094.63",ENGINEERING CRAFTS,MATERIALS,5902333019,11179552
06.12.2018,ENVIRONMENT DIRECTORATE,LANDSCAPE SUPPLY COMPANY,321.92,GROUNDS MAINTENANCE - GENERAL,EQUIPMENT PURCHASE & REPAIR,5902332086,1000051937
06.12.2018,ENVIRONMENT DIRECTORATE,RED R DESIGN,675,HEALTH & SAFETY,PRINTING,5902332341,1000035984
06.12.2018,ENVIRONMENT DIRECTORATE,APCOA PARKING (UK) LTD,"96,421.83",PARKING OVERHEADS,OTHER CONTRACTORS,5902332945,1718645
06.12.2018,ENVIRONMENT DIRECTORATE,APCOA PARKING (UK) LTD,"247,628.13",PARKING OVERHEADS,OTHER CONTRACTORS,5902332938,1718645
06.12.2018,ENVIRONMENT DIRECTORATE,GRAFTON MERCHANTING GB LTD,255,PARKS TECH UNIT (PREMISES),BUILDING R&M,5902333051,11296147
06.12.2018,ENVIRONMENT DIRECTORATE,GRAFTON MERCHANTING GB LTD,"2,153.68",PARKS TECH UNIT (PREMISES),BUILDING R&M,5902333050,11296147
06.12.2018,ENVIRONMENT DIRECTORATE,P D CONSTRUCTION LTD,690,PARKS TECH UNIT (PREMISES),OTHER R&M,5902333063,1000000390
06.12.2018,ENVIRONMENT DIRECTORATE,ORANGETEK LTD,259.8,PUBLIC LIGHTING,MATERIALS,5902333027,1000079879
06.12.2018,ENVIRONMENT DIRECTORATE,EDMUNDSON ELECTRICAL LTD,"1,228.00",PUBLIC LIGHTING,MATERIALS,5902333045,1000066568
06.12.2018,ENVIRONMENT DIRECTORATE,UK POWER NETWORKS (OPERATIONS) LTD,388,PUBLIC LIGHTING,SOUTHWARK DIRECT CHARGES,5902332990,1000016085
06.12.2018,ENVIRONMENT DIRECTORATE,UK POWER NETWORKS (OPERATIONS) LTD,633,PUBLIC LIGHTING,SOUTHWARK DIRECT CHARGES,5902333003,1000016085
06.12.2018,ENVIRONMENT DIRECTORATE,UK POWER NETWORKS (OPERATIONS) LTD,781,PUBLIC LIGHTING,SOUTHWARK DIRECT CHARGES,5902332996,1000016085
06.12.2018,ENVIRONMENT DIRECTORATE,UK POWER NETWORKS (OPERATIONS) LTD,"1,168.00",PUBLIC LIGHTING,SOUTHWARK DIRECT CHARGES,5902332993,1000016085
06.12.2018,ENVIRONMENT DIRECTORATE,UK POWER NETWORKS (OPERATIONS) LTD,"1,339.00",PUBLIC LIGHTING,SOUTHWARK DIRECT CHARGES,5902332988,1000016085
06.12.2018,ENVIRONMENT DIRECTORATE,UK POWER NETWORKS (OPERATIONS) LTD,"1,588.00",PUBLIC LIGHTING,SOUTHWARK DIRECT CHARGES,5902333001,1000016085
06.12.2018,ENVIRONMENT DIRECTORATE,UK POWER NETWORKS (OPERATIONS) LTD,"1,890.00",PUBLIC LIGHTING,SOUTHWARK DIRECT CHARGES,5902332994,1000016085
06.12.2018,ENVIRONMENT DIRECTORATE,GRAFTON MERCHANTING GB LTD,323.75,SIGN SHOP,MATERIALS,5902333056,11296147
06.12.2018,ENVIRONMENT DIRECTORATE,F H BRUNDLE,"1,521.00",SIGN SHOP,MATERIALS,5902333058,1082714
06.12.2018,ENVIRONMENT DIRECTORATE,AUTO SISTANCE LTD,350,STREET WORKS OVERHEADS,BOOKS & PUBLICATIONS,5902332937,1000070536
06.12.2018,EXTERNAL AFFAIRS,DENMAUR INDEPENDENT PAPERS LTD,"8,241.03",SOUTHWARK LIFE,MARKETING & PUBLICITY SERVICES,5902332352,1000064794
06.12.2018,F & C S EXCLUDING CORPORATE BUDGETS,NORTHGATE PUBLIC SERVICES (UK) LTD,950,ADMINISTRATIVE SUPPORT,SOFTWARE,5902333046,1000037405
06.12.2018,F & C S EXCLUDING CORPORATE BUDGETS,TRAINING SYNERGY LTD,500,ADMINISTRATIVE SUPPORT,TRAINING,5902332965,1000075956
06.12.2018,F & C S EXCLUDING CORPORATE BUDGETS,SOUTHWARK CATHEDRAL ENTERPRISES LTD,"1,200.00",ADMINISTRATIVE SUPPORT,TRAINING,5902332137,1000011453
06.12.2018,HOUSING & MODERNISATION,SOUTHSIDE YOUNG LEADERS ACADEMY,650,VCS GRANTS,OTHER CONTRACTORS,5902331480,1000061432
06.12.2018,HOUSING & MODERNISATION,THEATRE PECKHAM,"1,000.00",VCS GRANTS,OTHER CONTRACTORS,5902331467,1071668
06.12.2018,HOUSING & MODERNISATION,RED R DESIGN,325,WEGOVNOW,HIRE OF ROOMS/HALLS,5902331602,1000035984
06.12.2018,HOUSING GENERAL FUND,FRANKHAM CONSULTANCY GROUP LTD,625.2,CAPITAL PS (HOUSING GF),CAPITAL GRANTS,5902333081,1000043952
06.12.2018,HOUSING GENERAL FUND,FRANKHAM CONSULTANCY GROUP LTD,674,CAPITAL PS (HOUSING GF),CAPITAL GRANTS,5902333085,1000043952
06.12.2018,HOUSING HRA,P & R INSTALLATION COMPANY LTD,"1,950.00",CAPITAL PS (HRA),CONSTRUCTION FEES  - EXTERNAL,5902333018,1000079262
06.12.2018,HOUSING HRA,CALFORD SEADEN LLP,"8,993.40",CAPITAL PS (HRA),CONSTRUCTION FEES  - EXTERNAL,5902333079,1061592
06.12.2018,HOUSING HRA,PRB ESTATES LTD,"131,051.85",CAPITAL PS (HRA),CONSTRUCTION MAIN CONTRACT -CERTIFICATED,2102896318,3000001691
06.12.2018,HOUSING HRA,A & E ELKINS LTD,"155,367.75",CAPITAL PS (HRA),CONSTRUCTION MAIN CONTRACT -CERTIFICATED,2102896320,4012501
06.12.2018,HOUSING HRA,MEARS LTD,"20,896.06",MEARS,MANUAL CREDITORS,2102896319,3000001096
06.12.2018,HOUSING STRATEGY AND OPTIONS,PARAGON REALTY LTD,"1,050.00",HOMELESS PROJECTS,GRANTS,5902332917,1000079707
06.12.2018,HOUSING STRATEGY AND OPTIONS,PARAGON REALTY LTD,"1,325.00",HOMELESS PROJECTS,GRANTS,5902332924,1000079707
06.12.2018,HOUSING STRATEGY AND OPTIONS,CHOICELET LTD,"1,680.00",HOMELESS PROJECTS,GRANTS,5902333076,1000081073
06.12.2018,LEISURE DIRECTORATE,KENT COUNTY COUNCIL - LASER,"7,540.72",CANADA WATER LIBRARY,ELECTRICITY,5902332956,1000012926
06.12.2018,LEISURE DIRECTORATE,KENT COUNTY COUNCIL - LASER,"1,021.85",CANADA WATER LIBRARY,GAS,5902332942,1000012926
06.12.2018,LEISURE DIRECTORATE,KENT COUNTY COUNCIL - LASER,"1,056.92",CANADA WATER LIBRARY,GAS,5902332931,1000012926
06.12.2018,LEISURE DIRECTORATE,PARKRUN LTD,"1,250.00",COMMUNITY SPORTS DEVELOPMENT,GRANTS,5902333093,1000081902
06.12.2018,LEISURE DIRECTORATE,TELESHORE UK LTD,693.8,CREMATORIUM,MATERIALS,5902332107,1000075290
06.12.2018,LEISURE DIRECTORATE,QUADRON SERVICES LIMITED,"8,073.40",DULWICH AREA TEAM,DISCRETIONARY FLEXIBLE FEES & INCOME,5902333066,1000066528
06.12.2018,LEISURE DIRECTORATE,P D CONSTRUCTION LTD,390,DULWICH AREA TEAM,OTHER R&M,5902333062,1000000390
06.12.2018,LEISURE DIRECTORATE,RED R DESIGN,"1,475.00",LIBARIES DEVELOPMENT,MARKETING & PUBLICITY SERVICES,5902332151,1000035984
06.12.2018,LEISURE DIRECTORATE,RED R DESIGN,"2,865.00",LIBARIES DEVELOPMENT,MARKETING & PUBLICITY SERVICES,5902332176,1000035984
06.12.2018,LEISURE DIRECTORATE,ARTWORKS ELEPHANT LLP,"5,277.85",TEMPORARY NEWINGTON,NNDR,5902332505,1000074341
06.12.2018,MODERNISATION HGF,ROYAL MAIL GROUP LTD,"1,491.86",160 TOOLEY ST.,POSTAGES,5902332515,1000008168
06.12.2018,MODERNISATION HGF,SUNGARD AVAILABILITY SERVICES (UK),"40,366.55",IT MANAGEMENT,SOFTWARE,5902333090,1000040008
06.12.2018,MODERNISATION HGF,BRECKLAND DISTRICT COUNCIL,"2,995.00",ORG TRANSFORMATION,CONSULTANTS SERVICES,5902332296,1000081798
06.12.2018,MODERNISATION HGF,LEARNING POOL LTD,"15,000.00",ORG TRANSFORMATION,SUBSCRIPTIONS,5902332927,1000055255
06.12.2018,MODERNISATION HGF,COMENSURA LTD,"444,870.66",WEEKLY PAYMENTS,AGENCY STAFF,5902333008,1000051261
06.12.2018,PLANNING AND TRANSPORT,IN THE RIGHT LIGHT,300,PLANNING POLICY TEAM,MARKETING & PUBLICITY SERVICES,5902333047,1000079033
06.12.2018,PLANNING AND TRANSPORT,RED R DESIGN,"1,655.00",PLANNING POLICY TEAM,MARKETING & PUBLICITY SERVICES,5902333034,1000035984
06.12.2018,REGENERATION,CARL TURNER ARCHITECTS LTD,"2,745.00",MASTER PLAN-H/WAY & TRANS INTERCHANGE,PROFESSIONAL FEES,5902332103,1000060355
06.12.2018,REGENERATION,OPEN COMMUNITIES LTD,"1,472.50",OKR MASTER PLANNING,PROFESSIONAL FEES,5902332936,1000065800
06.12.2018,REGENERATION,KALMARS COMMERCIAL LTD,"113,500.00",OKR MASTER PLANNING,PROFESSIONAL FEES,5902332929,1000081844
06.12.2018,RESIDENT SERVICES,LIVING ACCOMODATION LTD,945,TA PLACEMENTS,EXTERNAL AGENCIES AND BODIES,5902332963,1000063985
06.12.2018,SOUTHWARK BUILDING SERVICES,1st ACTIVE PROPERTY SERVICES LTD,"37,228.79",BUSINESS SUPPORT,OTHER CONTRACTORS,2102896322,3000001655
07.12.2018,ADULT SOCIAL CARE,GROVE HOTEL LTD,"1,050.00",APPOINTEESHIPS,OTHER PAYMENTS FOR CLIENTS,5902333232,1000043663
07.12.2018,ADULT SOCIAL CARE,THE RIVERSIDE GROUP LTD,"6,546.54",APPOINTEESHIPS,OTHER PAYMENTS FOR CLIENTS,5902333186,1000069625
07.12.2018,ADULT SOCIAL CARE,REDACTED PERSONAL DATA,"4,284.94",APPOINTEESHIPS,OTHER PAYMENTS FOR CLIENTS,REDACTED,REDACTED
07.12.2018,ADULT SOCIAL CARE,SETH LOVIS & CO SOLICITORS LTD,"6,858.05",APPOINTEESHIPS,OTHER PAYMENTS FOR CLIENTS,5902332835,1000081994
07.12.2018,ADULT SOCIAL CARE,VEOLIA ES (UK)LTD,467.01,FRED FRANCIS CENTRE,PREMISES CLEANING,5902333165,1824835
07.12.2018,ADULT SOCIAL CARE,ACCESS MOBILITY TRANSPORT LTD,"2,393.60",LD LTS 18-64,CLIENT TRANSPORT,2102896508,1000074637
07.12.2018,ADULT SOCIAL CARE,THE NEW SHOOTS,300,LD LTS 18-64,DAYCARE,2102896502,1000073970
07.12.2018,ADULT SOCIAL CARE,ACT TOO LTD,400,LD LTS 18-64,DAYCARE,2102896509,1000053657
07.12.2018,ADULT SOCIAL CARE,REDACTED PERSONAL DATA,269.8,LD LTS 18-64,HOMECARE - SPOT,REDACTED,REDACTED
07.12.2018,ADULT SOCIAL CARE,REDACTED PERSONAL DATA,269.8,LD LTS 18-64,HOMECARE - SPOT,REDACTED,REDACTED
07.12.2018,ADULT SOCIAL CARE,REDACTED PERSONAL DATA,269.8,LD LTS 18-64,HOMECARE - SPOT,REDACTED,REDACTED
07.12.2018,ADULT SOCIAL CARE,REDACTED PERSONAL DATA,323.76,LD LTS 18-64,HOMECARE - SPOT,REDACTED,REDACTED
07.12.2018,ADULT SOCIAL CARE,REDACTED PERSONAL DATA,323.76,LD LTS 18-64,HOMECARE - SPOT,REDACTED,REDACTED
07.12.2018,ADULT SOCIAL CARE,REDACTED PERSONAL DATA,323.76,LD LTS 18-64,HOMECARE - SPOT,REDACTED,REDACTED
07.12.2018,ADULT SOCIAL CARE,REDACTED PERSONAL DATA,323.76,LD LTS 18-64,HOMECARE - SPOT,REDACTED,REDACTED
07.12.2018,ADULT SOCIAL CARE,CONTACT PROFESSIONALS,465,LD LTS 18-64,SUPPORTED LIVING,2102896501,1000057263
07.12.2018,ADULT SOCIAL CARE,CONTACT PROFESSIONALS,465,LD LTS 18-64,SUPPORTED LIVING,2102896503,1000057263
07.12.2018,ADULT SOCIAL CARE,CONTACT PROFESSIONALS,465,LD LTS 18-64,SUPPORTED LIVING,2102896506,1000057263
07.12.2018,ADULT SOCIAL CARE,CONTACT PROFESSIONALS,465,LD LTS 18-64,SUPPORTED LIVING,2102896511,1000057263
07.12.2018,ADULT SOCIAL CARE,CONTACT PROFESSIONALS,930,LD LTS 18-64,SUPPORTED LIVING,2102896505,1000057263
07.12.2018,ADULT SOCIAL CARE,SWEETTREE HOME CARE SERVICES LTD,"1,077.50",LD LTS 18-64,SUPPORTED LIVING,2102896466,1000058171
07.12.2018,ADULT SOCIAL CARE,BURGESS AUTISTIC TRUST,"3,120.00",LD LTS 18-64,SUPPORTED LIVING,2102896474,1000044550
07.12.2018,ADULT SOCIAL CARE,BURGESS AUTISTIC TRUST,"3,120.00",LD LTS 18-64,SUPPORTED LIVING,2102896476,1000044550
07.12.2018,ADULT SOCIAL CARE,REDACTED PERSONAL DATA,269.8,LD LTS 18-64,SUPPORTED LIVING,REDACTED,REDACTED
07.12.2018,ADULT SOCIAL CARE,LONDON CARE LTD,699.44,MEM LTS 18-64,HOMECARE - C&V,2102896611,1000003398
07.12.2018,ADULT SOCIAL CARE,LONDON CARE LTD,815.92,MEM LTS 18-64,HOMECARE - C&V,2102896493,1000003398
07.12.2018,ADULT SOCIAL CARE,LONDON CARE LTD,722.83,MEM LTS 65+,HOMECARE - C&V,2102896619,1000003398
07.12.2018,ADULT SOCIAL CARE,LONDON CARE LTD,806.88,MEM LTS 65+,HOMECARE - C&V,2102896624,1000003398
07.12.2018,ADULT SOCIAL CARE,LONDON CARE LTD,806.88,MEM LTS 65+,HOMECARE - C&V,2102896628,1000003398
07.12.2018,ADULT SOCIAL CARE,EDGE TRAINING AND CONSULTANCY LTD,405,MH AMHP TEAM,TRAINING,5902332752,1000057249
07.12.2018,ADULT SOCIAL CARE,REDACTED PERSONAL DATA,296.78,MH LTS 18-64,HOMECARE - SPOT,REDACTED,REDACTED
07.12.2018,ADULT SOCIAL CARE,REDACTED PERSONAL DATA,296.78,MH LTS 18-64,HOMECARE - SPOT,REDACTED,REDACTED
07.12.2018,ADULT SOCIAL CARE,REDACTED PERSONAL DATA,296.78,MH LTS 18-64,HOMECARE - SPOT,REDACTED,REDACTED
07.12.2018,ADULT SOCIAL CARE,REDACTED PERSONAL DATA,296.78,MH LTS 18-64,HOMECARE - SPOT,REDACTED,REDACTED
07.12.2018,ADULT SOCIAL CARE,REDACTED PERSONAL DATA,431.68,MH LTS 18-64,HOMECARE - SPOT,REDACTED,REDACTED
07.12.2018,ADULT SOCIAL CARE,REDACTED PERSONAL DATA,431.68,MH LTS 18-64,HOMECARE - SPOT,REDACTED,REDACTED
07.12.2018,ADULT SOCIAL CARE,REDACTED PERSONAL DATA,431.68,MH LTS 18-64,HOMECARE - SPOT,REDACTED,REDACTED
07.12.2018,ADULT SOCIAL CARE,REDACTED PERSONAL DATA,431.68,MH LTS 18-64,HOMECARE - SPOT,REDACTED,REDACTED
07.12.2018,ADULT SOCIAL CARE,REDACTED PERSONAL DATA,431.68,MH LTS 18-64,HOMECARE - SPOT,REDACTED,REDACTED
07.12.2018,ADULT SOCIAL CARE,REDACTED PERSONAL DATA,431.68,MH LTS 18-64,HOMECARE - SPOT,REDACTED,REDACTED
07.12.2018,ADULT SOCIAL CARE,REDACTED PERSONAL DATA,269.8,MH LTS 18-64,SUPPORTED LIVING,REDACTED,REDACTED
07.12.2018,ADULT SOCIAL CARE,REDACTED PERSONAL DATA,269.8,MH LTS 18-64,SUPPORTED LIVING,REDACTED,REDACTED
07.12.2018,ADULT SOCIAL CARE,REDACTED PERSONAL DATA,313.22,MH LTS 18-64,SUPPORTED LIVING,REDACTED,REDACTED
07.12.2018,ADULT SOCIAL CARE,REDACTED PERSONAL DATA,323.76,MH LTS 18-64,SUPPORTED LIVING,REDACTED,REDACTED
07.12.2018,ADULT SOCIAL CARE,REDACTED PERSONAL DATA,323.76,MH LTS 18-64,SUPPORTED LIVING,REDACTED,REDACTED
07.12.2018,ADULT SOCIAL CARE,REDACTED PERSONAL DATA,323.76,MH LTS 18-64,SUPPORTED LIVING,REDACTED,REDACTED
07.12.2018,ADULT SOCIAL CARE,REDACTED PERSONAL DATA,386.12,MH LTS 18-64,SUPPORTED LIVING,REDACTED,REDACTED
07.12.2018,ADULT SOCIAL CARE,REDACTED PERSONAL DATA,441.28,MH LTS 18-64,SUPPORTED LIVING,REDACTED,REDACTED
07.12.2018,ADULT SOCIAL CARE,REDACTED PERSONAL DATA,512.62,MH LTS 18-64,SUPPORTED LIVING,REDACTED,REDACTED
07.12.2018,ADULT SOCIAL CARE,REDACTED PERSONAL DATA,661.92,MH LTS 18-64,SUPPORTED LIVING,REDACTED,REDACTED
07.12.2018,ADULT SOCIAL CARE,REDACTED PERSONAL DATA,876.85,MH LTS 18-64,SUPPORTED LIVING,REDACTED,REDACTED
07.12.2018,ADULT SOCIAL CARE,REDACTED PERSONAL DATA,876.85,MH LTS 18-64,SUPPORTED LIVING,REDACTED,REDACTED
07.12.2018,ADULT SOCIAL CARE,REDACTED PERSONAL DATA,876.85,MH LTS 18-64,SUPPORTED LIVING,REDACTED,REDACTED
07.12.2018,ADULT SOCIAL CARE,REDACTED PERSONAL DATA,"1,409.71",MH LTS 18-64,SUPPORTED LIVING,REDACTED,REDACTED
07.12.2018,ADULT SOCIAL CARE,REDACTED PERSONAL DATA,474.08,MH LTS 65+,SUPPORTED LIVING,REDACTED,REDACTED
07.12.2018,ADULT SOCIAL CARE,REDACTED PERSONAL DATA,620.54,MH LTS 65+,SUPPORTED LIVING,REDACTED,REDACTED
07.12.2018,ADULT SOCIAL CARE,REDACTED PERSONAL DATA,620.54,MH LTS 65+,SUPPORTED LIVING,REDACTED,REDACTED
07.12.2018,ADULT SOCIAL CARE,REDACTED PERSONAL DATA,654.27,MH LTS 65+,SUPPORTED LIVING,REDACTED,REDACTED
07.12.2018,ADULT SOCIAL CARE,PHOENIX HEALTHCARE & RECRUITMENT,300.36,PHY LTS 18-64,DAYCARE,2102896510,1000065636
07.12.2018,ADULT SOCIAL CARE,PHOENIX HEALTHCARE & RECRUITMENT,482.36,PHY LTS 18-64,DAYCARE,2102896507,1000065636
07.12.2018,ADULT SOCIAL CARE,LONDON CARE LTD,399.6,PHY LTS 18-64,HOMECARE - C&V,2102896613,1000003398
07.12.2018,ADULT SOCIAL CARE,LONDON CARE LTD,482.85,PHY LTS 18-64,HOMECARE - C&V,2102896484,1000003398
07.12.2018,ADULT SOCIAL CARE,LONDON CARE LTD,482.85,PHY LTS 18-64,HOMECARE - C&V,2102896485,1000003398
07.12.2018,ADULT SOCIAL CARE,SUPREME CARE SERVICES LTD,524.87,PHY LTS 18-64,HOMECARE - C&V,2102896608,1000059416
07.12.2018,ADULT SOCIAL CARE,LONDON CARE LTD,949.4,PHY LTS 18-64,HOMECARE - C&V,2102896486,1000003398
07.12.2018,ADULT SOCIAL CARE,LONDON CARE LTD,"1,065.88",PHY LTS 18-64,HOMECARE - C&V,2102896489,1000003398
07.12.2018,ADULT SOCIAL CARE,LONDON CARE LTD,"1,065.88",PHY LTS 18-64,HOMECARE - C&V,2102896629,1000003398
07.12.2018,ADULT SOCIAL CARE,LONDON CARE LTD,"2,231.46",PHY LTS 18-64,HOMECARE - C&V,2102896488,1000003398
07.12.2018,ADULT SOCIAL CARE,LONDON CARE LTD,287.26,PHY LTS 65+,HOMECARE - C&V,2102896500,1000003398
07.12.2018,ADULT SOCIAL CARE,LONDON CARE LTD,416.32,PHY LTS 65+,HOMECARE - C&V,2102896479,1000003398
07.12.2018,ADULT SOCIAL CARE,LONDON CARE LTD,416.32,PHY LTS 65+,HOMECARE - C&V,2102896495,1000003398
07.12.2018,ADULT SOCIAL CARE,LONDON CARE LTD,416.32,PHY LTS 65+,HOMECARE - C&V,2102896623,1000003398
07.12.2018,ADULT SOCIAL CARE,LONDON CARE LTD,416.32,PHY LTS 65+,HOMECARE - C&V,2102896625,1000003398
07.12.2018,ADULT SOCIAL CARE,LONDON CARE LTD,466.48,PHY LTS 65+,HOMECARE - C&V,2102896483,1000003398
07.12.2018,ADULT SOCIAL CARE,LONDON CARE LTD,466.48,PHY LTS 65+,HOMECARE - C&V,2102896620,1000003398
07.12.2018,ADULT SOCIAL CARE,LONDON CARE LTD,491.37,PHY LTS 65+,HOMECARE - C&V,2102896617,1000003398
07.12.2018,ADULT SOCIAL CARE,LONDON CARE LTD,499.68,PHY LTS 65+,HOMECARE - C&V,2102896627,1000003398
07.12.2018,ADULT SOCIAL CARE,LONDON CARE LTD,555.48,PHY LTS 65+,HOMECARE - C&V,2102896496,1000003398
07.12.2018,ADULT SOCIAL CARE,LONDON CARE LTD,566.32,PHY LTS 65+,HOMECARE - C&V,2102896491,1000003398
07.12.2018,ADULT SOCIAL CARE,LONDON CARE LTD,882.8,PHY LTS 65+,HOMECARE - C&V,2102896498,1000003398
07.12.2018,ADULT SOCIAL CARE,LONDON CARE LTD,882.8,PHY LTS 65+,HOMECARE - C&V,2102896612,1000003398
07.12.2018,ADULT SOCIAL CARE,LONDON CARE LTD,949.4,PHY LTS 65+,HOMECARE - C&V,2102896614,1000003398
07.12.2018,ADULT SOCIAL CARE,SUPREME CARE SERVICES LTD,982.75,PHY LTS 65+,HOMECARE - C&V,2102896609,1000059416
07.12.2018,ADULT SOCIAL CARE,LONDON CARE LTD,"1,107.72",PHY LTS 65+,HOMECARE - C&V,2102896482,1000003398
07.12.2018,ADULT SOCIAL CARE,LONDON CARE LTD,"1,931.96",PHY LTS 65+,HOMECARE - C&V,2102896492,1000003398
07.12.2018,ADULT SOCIAL CARE,LONDON CARE LTD,"1,931.96",PHY LTS 65+,HOMECARE - C&V,2102896618,1000003398
07.12.2018,ADULT SOCIAL CARE,LONDON CARE LTD,"2,273.44",PHY LTS 65+,HOMECARE - C&V,2102896497,1000003398
07.12.2018,ADULT SOCIAL CARE,LONDON CARE LTD,"2,448.32",PHY LTS 65+,HOMECARE - C&V,2102896631,1000003398
07.12.2018,ADULT SOCIAL CARE,LONDON CARE LTD,"2,631.40",PHY LTS 65+,HOMECARE - C&V,2102896630,1000003398
07.12.2018,ADULT SOCIAL CARE,SERVESOUL LTD,254.52,PHY LTS 65+,HOMECARE - SPOT,2102896473,1000081503
07.12.2018,ADULT SOCIAL CARE,SERVESOUL LTD,254.52,PHY LTS 65+,HOMECARE - SPOT,2102896478,1000081503
07.12.2018,ADULT SOCIAL CARE,CARE DIRECT UK LTD,497,PHY LTS 65+,HOMECARE - SPOT,2102896467,1000066322
07.12.2018,ADULT SOCIAL CARE,CARE DIRECT UK LTD,497,PHY LTS 65+,HOMECARE - SPOT,2102896468,1000066322
07.12.2018,ADULT SOCIAL CARE,METRO HOMECARE LTD,551.6,PHY LTS 65+,HOMECARE - SPOT,2102896504,1000070695
07.12.2018,ADULT SOCIAL CARE,MEDACS HOMECARE,794.75,PHY LTS 65+,HOMECARE - SPOT,2102896610,11287415
07.12.2018,ADULT SOCIAL CARE,LONDON CARE LTD,616.28,SOCIAL ISOLATION,HOMECARE - C&V,2102896480,1000003398
07.12.2018,ASSET MANAGEMENT,HIGHER ELEVATION LTD,"5,100.50",ADAPTATIONS,BUILDING R&M,5902333119,1000067328
07.12.2018,ASSET MANAGEMENT,PENNINGTON CHOICE LTD,869,HEALTH AND SAFETY,TRAINING,5902333243,1000067888
07.12.2018,ASSET MANAGEMENT,SANDERSONS BUILDING SERVICES LTD,"1,463.40",R&M CONTRACTS (SOUTH),BUILDING R&M,2102896688,3000002065
07.12.2018,ASSET MANAGEMENT,SANDERSONS BUILDING SERVICES LTD,"5,564.52",R&M CONTRACTS (SOUTH),BUILDING R&M,2102896689,3000002065
07.12.2018,CAMBERWELL COMMUNITY COUNCIL,YOUTH FUTURES,"3,900.00",SAFER CAMBERWELL YOUTH PROJECT,GRANT,CHEQUE PAYMENT,CHEQUE PAYMENT
07.12.2018,CENTRAL FUNCTIONS,STANBURY BUILDING SERVICES LTD,395,COMMERCIAL PROPERTIES,BUILDING R&M,5902332156,1000078207
07.12.2018,CENTRAL FUNCTIONS,LONDON REGIONAL TRANSPORT,"4,250.00",COMMERCIAL PROPERTIES,RENTS,2102896678,3000393
07.12.2018,CHIEF EXECUTIVE,TRITON BUILDING RESTORATION LTD,"39,170.02",CAPITAL PS (REGEN),CONSTRUCTION,2102896456,3000002061
07.12.2018,CHIEF EXECUTIVE'S OFFICE,SAVILLS (UK) LTD,"5,254.00",CHIEF EXEC'S OFFICE,RENTS,2102896682,1000023005
07.12.2018,CHILDREN AND ADULT,STONEGROVE LIMITED,"-121,361.17",CAPITAL PS (EDUCATION),CONSTRUCTION MAIN CONTRACT -CERTIFICATED,5902333466,3000001525
07.12.2018,CHILDREN AND ADULT,STONEGROVE LIMITED,"121,361.17",CAPITAL PS (EDUCATION),CONSTRUCTION MAIN CONTRACT -CERTIFICATED,5902333459,3000001525
07.12.2018,CHILDREN AND ADULT,INTERSERVE (FACILITIES MANAGEMENT),"5,458.40",CAPITAL PS (SOC SERV),CONSTRUCTION MAIN CONTRACT,2102896449,3000000166
07.12.2018,CHILDREN AND ADULT,KIER SUPPORT SERVICES LIMITED,"87,436.14",CAPITAL PS (SOC SERV),CONSTRUCTION MAIN CONTRACT,2102896637,3000001246
07.12.2018,CHILDREN'S SERVICES,ACTION FOR CHILDREN,825,ADOPTION PLACEMENTS & INTER AGENCY,EXTERNAL AGENCIES AND BODIES,5902333098,1000049964
07.12.2018,CHILDREN'S SERVICES,ACTION FOR CHILDREN,825,ADOPTION PLACEMENTS & INTER AGENCY,EXTERNAL AGENCIES AND BODIES,5902333099,1000049964
07.12.2018,CHILDREN'S SERVICES,REDACTED PERSONAL DATA,321,ADOPTION REFORM GRANT (PART B),PROFESSIONAL FEES,REDACTED,REDACTED
07.12.2018,CHILDREN'S SERVICES,REDACTED PERSONAL DATA,481.5,ADOPTION REFORM GRANT (PART B),PROFESSIONAL FEES,REDACTED,REDACTED
07.12.2018,CHILDREN'S SERVICES,INSTITUTE OF LEARNING UNLIMITED,"-2,450.00",ADULT SKILLS BUDGET,GRANTS,5902333445,1000068095
07.12.2018,CHILDREN'S SERVICES,INSTITUTE OF LEARNING UNLIMITED,"2,450.00",ADULT SKILLS BUDGET,GRANTS,5902333436,1000068095
07.12.2018,CHILDREN'S SERVICES,WIZE UP INDEPENDENT SCHOOL,"1,386.00",ALTERNATIVE PROVISION,EXTERNAL AGENCIES AND BODIES,5902333108,1000080560
07.12.2018,CHILDREN'S SERVICES,WORKING TRANSITIONS,300,ASSISSTANT DIRECTOR (CHILDREN),EXTERNAL AGENCIES AND BODIES,5902333105,1000063689
07.12.2018,CHILDREN'S SERVICES,AIDHOUR LIMITED,552.2,CATCH 22 INNOVATION GRANT,PROFESSIONAL FEES,5902333103,1000057345
07.12.2018,CHILDREN'S SERVICES,AIDHOUR LIMITED,"4,028.00",CATCH 22 INNOVATION GRANT,PROFESSIONAL FEES,5902333102,1000057345
07.12.2018,CHILDREN'S SERVICES,PITMAN TRAINING CENTRE,495,CLA TEAM SAFEGUARDING,TRAINING,5902332759,1000082001
07.12.2018,CHILDREN'S SERVICES,PECKHAM FESTIVAL CIC,500,DIRECT DELIVERY,MARKETING & PUBLICITY SERVICES,5902333288,1000081352
07.12.2018,CHILDREN'S SERVICES,REDACTED PERSONAL DATA,798.12,DISABILITY & HIV,PAYMENTS TO CARERS,REDACTED,REDACTED
07.12.2018,CHILDREN'S SERVICES,UNIVERSITY COLLEGE LONDON,"2,530.20",EARLY YEARS IMPROVEMENT,TRAINING,5902333115,1000036232
07.12.2018,CHILDREN'S SERVICES,THAMES REACH,803.5,EDUCATIONAL PSYCHOLOGY - SEND,TRAINING,5902333255,1723415
07.12.2018,CHILDREN'S SERVICES,ANDREW DODGE,"1,500.00",GOVERNOR TRAINING,CONSULTANTS SERVICES,5902333015,1000046142
07.12.2018,CHILDREN'S SERVICES,MIME CONSULTING LTD,"8,976.33",MANAGEMENT AND SUPPORT,PROFESSIONAL FEES,5902333281,1000057079
07.12.2018,CHILDREN'S SERVICES,ARK SCHOOLS T/A GLOBE ACADEMY,"1,050.00",PUPIL PREMIUM CURRENT YEAR,SCHOOLS CAPITATION,2102894253,1000060008
07.12.2018,CHILDREN'S SERVICES,HARRIS ACADEMY CRYSTAL PALACE,"1,484.00",PUPIL PREMIUM CURRENT YEAR,SCHOOLS CAPITATION,2102894252,1000073877
07.12.2018,CHILDREN'S SERVICES,SILVER BIRCH CARE LTD,"3,000.00",S24 CLA,EXTERNAL AGENCIES AND BODIES,5902333308,1000076525
07.12.2018,CHILDREN'S SERVICES,ARC COMMUNITY TRUSTEES,650,SPECIAL GUARDIANSHIP,EXTERNAL AGENCIES AND BODIES,5902333110,1000046206
07.12.2018,CHILDREN'S SERVICES,KENT COUNTY SUPPLIES,895.41,THOMAS CALTON CENTRE,GAS,5902333245,1000000291
07.12.2018,COMMISSIONING & CENTRAL,BRIDGER BELL COMMERCIAL LLP,"9,851.50",COMMISSIONING TEAM,RENTS,2102896674,1000064051
07.12.2018,COMMUNITIES,K3 PROPERTY MANAGEMENT LTD,972,NO RECOURSE TO PUBLIC FUNDS,ACCOMMODATION CHARGES,5902333117,1000068219
07.12.2018,COMMUNITIES,GROVE HOTEL LTD,"2,100.00",NO RECOURSE TO PUBLIC FUNDS,ACCOMMODATION CHARGES,5902333174,1000043663
07.12.2018,COMMUNITIES,DMS PROPERTIES SERVICES LTD,"3,240.00",NO RECOURSE TO PUBLIC FUNDS,ACCOMMODATION CHARGES,5902333133,1000081522
07.12.2018,COMMUNITIES,ST HELENA & OLDFIELD TR&A,"1,900.00",TRSIG,GRANTS,5902333306,1000061625
07.12.2018,COMMUNITIES,CANADA ESTATE T&RA,"2,350.00",TRSIG,GRANTS,5902333213,1372721
07.12.2018,COMMUNITIES,DRAPER T&RA,"4,290.00",TRSIG,GRANTS,5902333249,1000037876
07.12.2018,COMMUNITIES,CAROLINE GARDENS RESIDENTS ASSOCIATION,"4,500.00",TRSIG,GRANTS,5902333153,1000052192
07.12.2018,COMMUNITIES,DEYNSFORD TENANT MANAGEMENT ORGANISATION,"4,685.00",TRSIG,GRANTS,5902333217,1000075613
07.12.2018,COMMUNITIES,SOUTH LONDON CARES LTD,"4,931.00",TRSIG,GRANTS,5902333302,1000073924
07.12.2018,COMMUNITIES,NECKINGER ESTATE T&RA,"4,950.00",TRSIG,GRANTS,5902333268,1266905
07.12.2018,CUSTOMER EXPERIENCE HGF,NORTHGATE PUBLIC SERVICES (UK) LTD,"1,155.94",BLUE BADGES,MATERIALS,5902333097,1000037405
07.12.2018,CUSTOMER EXPERIENCE HGF,DIGNITY FUNERALS LTD,"12,640.00",CORONER'S,OTHER CONTRACTORS,5902333298,1000041373
07.12.2018,CUSTOMER EXPERIENCE HGF,WANDLE HOUSING ASSOCIATION,"25,631.25",CUSTOMER SUPPORT,RENTS,2102896679,1039321
07.12.2018,DULWICH COMMUNITY COUNCIL,CROXTED ROAD ESTATE TRA,"1,125.00",GLAZEBROOK GROWERS WORKSHOPS AND CELEBRATION,GRANT,CHEQUE PAYMENT,CHEQUE PAYMENT
07.12.2018,ENVIRONMENT DIRECTORATE,SPALDINGS (UK) LTD,957.3,GROUNDS MAINTENANCE - GENERAL,MATERIALS,5902333182,1907384
07.12.2018,ENVIRONMENT DIRECTORATE,CADPOINT,"1,000.00",HIGHWAY MAINTENANCE OVERHEADS,TRAINING,5902333124,1000046236
07.12.2018,ENVIRONMENT DIRECTORATE,AGENTIS WORKWEAR LTD,382.1,MANAGEMENT TEAM,"CLOTHING, UNIFORMS & LAUNDRY",5902333299,1000065561
07.12.2018,ENVIRONMENT DIRECTORATE,AGENTIS WORKWEAR LTD,"1,195.39",MANAGEMENT TEAM,"CLOTHING, UNIFORMS & LAUNDRY",5902333294,1000065561
07.12.2018,ENVIRONMENT DIRECTORATE,JC PEACOCK AND COMPANY LTD,"1,460.20",MANAGEMENT TEAM,MATERIALS,5902332420,1000065103
07.12.2018,ENVIRONMENT DIRECTORATE,HIQ NETWORK TYRES,434.9,MANAGEMENT TEAM,OTHER VEHICLE RUNNING COSTS,5902333134,1000077177
07.12.2018,ENVIRONMENT DIRECTORATE,VIKING DIRECT LIMITED,349,PROJECT SUPPORT,OFFICE EXPENSES,5902333211,1000001715
07.12.2018,ENVIRONMENT DIRECTORATE,HENRY SHEACH LAWNMOWER SERVICES LTD,549.8,STREET CLEANING-GENERAL,EQUIPMENT PURCHASE & REPAIR,5902333139,1000045980
07.12.2018,ENVIRONMENT DIRECTORATE,HENDERSON UK PROPERTY PAIF,"1,750.00",STREET TRADING A/C,RENTS,2102896675,1000080250
07.12.2018,F & C S EXCLUDING CORPORATE BUDGETS,CAPITA BUSINESS SERVICES LTD,"2,015.00",ADMINISTRATIVE SUPPORT,EQUIPMENT PURCHASE & REPAIR,5902333100,1000006291
07.12.2018,F & C S EXCLUDING CORPORATE BUDGETS,POSTURITE (UK) LTD,760.37,ADULT'S SERVICES FINANCE TEAM,FURNITURE PURCHASE & REPAIR,5902333121,11015468
07.12.2018,F & C S EXCLUDING CORPORATE BUDGETS,CAPITA BUSINESS SERVICES LTD,"33,003.12",CAPITA,OTHER CONTRACTORS,5902333216,1000049446
07.12.2018,F & C S EXCLUDING CORPORATE BUDGETS,POSTURITE (UK) LTD,986.92,FC&P QUALITY & PERFORMANCE,EQUIPMENT PURCHASE & REPAIR,5902332875,11015468
07.12.2018,HOUSING GENERAL FUND,FRANKHAM CONSULTANCY GROUP LTD,672.8,CAPITAL PS (HOUSING GF),CAPITAL GRANTS,5902333111,1000043952
07.12.2018,HOUSING GENERAL FUND,C & C BUILDERS LTD,"6,125.00",CAPITAL PS (HOUSING GF),CAPITAL GRANTS,5902333159,1000079100
07.12.2018,HOUSING GENERAL FUND,AMITY ESTATES LTD,"1,900.00",CAPITAL PS (HOUSING GF),CONSTRUCTION SITE COSTS,5902333269,1000050384
07.12.2018,HOUSING HRA,JAMES REMOVALS,550,CAPITAL PS (HRA),CAPITAL GRANTS,5902333122,1000060016
07.12.2018,HOUSING HRA,JAMES REMOVALS,"1,436.67",CAPITAL PS (HRA),CAPITAL GRANTS,5902333127,1000060016
07.12.2018,HOUSING HRA,L H BRIDGE LTD,"6,325.00",CAPITAL PS (HRA),CONST'N MAIN CONTRACT - NON CERTIFICATED,2102896690,3000001167
07.12.2018,HOUSING HRA,PROFILE CONSTRUCTION CONSULTANTS LTD,942.5,CAPITAL PS (HRA),CONSTRUCTION FEES  - EXTERNAL,5902333248,1000062440
07.12.2018,HOUSING HRA,PROFILE CONSTRUCTION CONSULTANTS LTD,"1,047.50",CAPITAL PS (HRA),CONSTRUCTION FEES  - EXTERNAL,5902333242,1000062440
07.12.2018,HOUSING HRA,PROFILE CONSTRUCTION CONSULTANTS LTD,"1,047.50",CAPITAL PS (HRA),CONSTRUCTION FEES  - EXTERNAL,5902333246,1000062440
07.12.2018,HOUSING HRA,PROFILE CONSTRUCTION CONSULTANTS LTD,"1,467.50",CAPITAL PS (HRA),CONSTRUCTION FEES  - EXTERNAL,5902333230,1000062440
07.12.2018,HOUSING HRA,PROFILE CONSTRUCTION CONSULTANTS LTD,"4,195.00",CAPITAL PS (HRA),CONSTRUCTION FEES  - EXTERNAL,5902333235,1000062440
07.12.2018,HOUSING HRA,CALFORD SEADEN LLP,"15,695.36",CAPITAL PS (HRA),CONSTRUCTION FEES  - EXTERNAL,5902332201,1061592
07.12.2018,HOUSING HRA,COLLIER CONTRACTS LTD,"94,454.49",CAPITAL PS (HRA),CONSTRUCTION MAIN CONTRACT -CERTIFICATED,2102896457,3000002072
07.12.2018,HOUSING HRA,LAMBERT SMITH HAMPTON GROUP LTD,"2,125.00",CAPITAL PS (REGEN),CONSTRUCTION FEES,5902333261,1000060045
07.12.2018,HOUSING HRA,LAMBERT SMITH HAMPTON GROUP LTD,"2,125.00",CAPITAL PS (REGEN),CONSTRUCTION FEES,5902333267,1000060045
07.12.2018,HOUSING HRA,LAMBERT SMITH HAMPTON GROUP LTD,"2,125.00",CAPITAL PS (REGEN),CONSTRUCTION FEES,5902333270,1000060045
07.12.2018,HOUSING HRA,LAMBERT SMITH HAMPTON GROUP LTD,"2,125.00",CAPITAL PS (REGEN),CONSTRUCTION FEES,5902333272,1000060045
07.12.2018,HOUSING HRA,LAMBERT SMITH HAMPTON GROUP LTD,"2,125.00",CAPITAL PS (REGEN),CONSTRUCTION FEES,5902333273,1000060045
07.12.2018,HOUSING STRATEGY AND OPTIONS,REACH-OUT HOUSING LTD,"-1,610.76",HOMELESS PROJECTS,GRANTS,5902333389,1000071129
07.12.2018,HOUSING STRATEGY AND OPTIONS,REACH-OUT HOUSING LTD,"1,610.76",HOMELESS PROJECTS,GRANTS,5902321250,1000071129
07.12.2018,HOUSING STRATEGY AND OPTIONS,UNITE THE UNION,"1,060.00",HOMELESSNESS TRAINING ACADEMY,TRAINING,5902333156,1000081799
07.12.2018,LEISURE DIRECTORATE,THE DULWICH ESTATE,468.75,ACCOMODATION,RENTS,2102896647,3000036
07.12.2018,LEISURE DIRECTORATE,THE DULWICH ESTATE,750,ACCOMODATION,RENTS,2102896652,3000036
07.12.2018,LEISURE DIRECTORATE,THE DULWICH ESTATE,"10,718.75",ACCOMODATION,RENTS,2102896664,3000036
07.12.2018,LEISURE DIRECTORATE,ONE TREE HILL ALLOTMENT SOCIETY,"4,875.00",ACCOMODATION,SERVICE CHARGES,2102896642,1000069929
07.12.2018,LEISURE DIRECTORATE,BROXAP LTD,932,DULWICH AREA TEAM,OTHER R&M,5902333297,11110032
07.12.2018,LEISURE DIRECTORATE,SB SECURITY SOLUTIONS LTD,690,DULWICH EVENTS,OP LEASE/HIRE CHARGES:PLANT/EQUIP/FURNIT,5902333304,1000051168
07.12.2018,LEISURE DIRECTORATE,SOUTH LONDON GALLERY,"4,998.50",GRANTS COMMISSIONING,GRANTS,5902333112,11011694
07.12.2018,LEISURE DIRECTORATE,SOUTH LONDON GALLERY,"4,998.50",GRANTS COMMISSIONING,GRANTS,5902333113,11011694
07.12.2018,LEISURE DIRECTORATE,METRO CENTRE LTD,"6,183.00",GRANTS COMMISSIONING,GRANTS,5902333178,1000073797
07.12.2018,LEISURE DIRECTORATE,ACTIVE COMMUNITIES NETWORK LTD,"6,667.00",GRANTS COMMISSIONING,GRANTS,5902333172,1000057408
07.12.2018,LEISURE DIRECTORATE,SKYWAY,"9,498.00",GRANTS COMMISSIONING,GRANTS,5902333170,1000069595
07.12.2018,LEISURE DIRECTORATE,ANOA LONDON LTD,"6,509.59",GROVE VALE LIBRARY,RENTS,2102896684,1000081764
07.12.2018,LEISURE DIRECTORATE,THE DULWICH ESTATE,500,HOMERSTALL ROAD SPORTS GROUND,RENTS,2102896673,3000036
07.12.2018,LEISURE DIRECTORATE,THE DULWICH ESTATE,"1,210.00",HOMERSTALL ROAD SPORTS GROUND,RENTS,2102896648,3000036
07.12.2018,LEISURE DIRECTORATE,THE DULWICH ESTATE,"2,975.00",HOMERSTALL ROAD SPORTS GROUND,RENTS,2102896657,3000036
07.12.2018,LEISURE DIRECTORATE,THE DULWICH ESTATE,"5,339.50",HOMERSTALL ROAD SPORTS GROUND,RENTS,2102896680,3000036
07.12.2018,LEISURE DIRECTORATE,VEOLIA ES (UK)LTD,741.6,KINGSWOOD HOUSE,CSC CONTRACT,5902333151,1824835
07.12.2018,LEISURE DIRECTORATE,KENT COUNTY COUNCIL - LASER,994.92,KINGSWOOD HOUSE,ELECTRICITY,5902333160,1000012926
07.12.2018,LEISURE DIRECTORATE,NETWORK RAIL INFRASTRUCTURE LTD,"1,450.00",PARKS SERVICES DEVELOPMENT,RENTS,2102896676,1000061958
07.12.2018,LEISURE DIRECTORATE,TGL GROUP LTD,383.6,TREES PRINCIPAL ROADS,EQUIPMENT PURCHASE & REPAIR,5902333135,1000081990
07.12.2018,LEISURE DIRECTORATE,TGL GROUP LTD,480,TREES PRINCIPAL ROADS,EQUIPMENT PURCHASE & REPAIR,5902333132,1000081990
07.12.2018,LEISURE DIRECTORATE,TGL GROUP LTD,480,TREES PRINCIPAL ROADS,EQUIPMENT PURCHASE & REPAIR,5902333137,1000081990
07.12.2018,MODERNISATION HGF,NETWORK RAIL INFRASTRUCTURE LTD,"9,182.70",160 TOOLEY ST.,RENTS,2102896677,1000061958
07.12.2018,MODERNISATION HGF,SODEXHO PASS LTD,756.08,CHILDCARE VOUCHERS,OTHER EMPLOYEE EXPENSES,5902333175,1000048650
07.12.2018,MODERNISATION HGF,SODEXHO PASS LTD,"25,202.87",CHILDCARE VOUCHERS,OTHER EMPLOYEE EXPENSES,5902333175,1000048650
07.12.2018,MODERNISATION HGF,HAPPY COMPUTERS LTD,495,CORPORATE TRAINING BUDGETS,TRAINING,5902333104,11008543
07.12.2018,MODERNISATION HGF,HAPPY COMPUTERS LTD,"3,960.00",CORPORATE TRAINING BUDGETS,TRAINING,5902333107,11008543
07.12.2018,MODERNISATION HGF,THE KNOWLEDGE ACADEMY LTD,"9,966.00",CORPORATE TRAINING BUDGETS,TRAINING,5902333155,1000064533
07.12.2018,MODERNISATION HGF,JOHN STATTERS ASSOCIATES,"3,562.50",HR PAYROLL COSTS,CONSULTANTS SERVICES,5902333129,1000065600
07.12.2018,MODERNISATION HGF,VODAFONE LTD,"2,756.07",TECHNOLOGY,DATA COMMUNICATIONS,5902333114,1000067176
07.12.2018,PLANNING AND TRANSPORT,WATES LIVING SPACE (MAINTENANCE) LTD,"1,303.13",DANGEROUS STRUCTURES,OTHER CONTRACTORS,5902332652,11322039
07.12.2018,PLANNING AND TRANSPORT,CREATIVITY CLUB LTD,378,PECKHAM TOWNSCAPE HERITAGE INITIATIVE,MISCELLANEOUS EXPENSES,5902333152,1000079990
07.12.2018,PROPERTY SERVICES,ALI EKBER BULUT,"1,750.00",CPHA  MANAGED PROPERTIES,RENTS,2102896683,1000080799
07.12.2018,PROPERTY SERVICES,GOVERNORS OF WILSONS SCHOOL,"12,500.00",CPHA SURPLUS,RENTS,2102896651,3000767
07.12.2018,PROPERTY SERVICES,COVERED MARKETS LTD,"65,000.00",SANDGATE ST INDUSTRIAL ESTATE,RENTS,2102896653,3000134
07.12.2018,REGENERATION,TROWERS & HAMLINS LLP,"13,351.48",SOUTHWARK REGEN IN PARTNERSHIP PROGRAMME,PAYMENTS FOR LEGAL SERVICES,5902333218,1000016239
07.12.2018,RESIDENT SERVICES,THE DULWICH ESTATE,975,CAMBERWELL,RENTS,2102896659,3000036
07.12.2018,RESIDENT SERVICES,THE DULWICH ESTATE,337.5,DULWICH,RENTS,2102896649,3000036
07.12.2018,RESIDENT SERVICES,THE DULWICH ESTATE,400,DULWICH,RENTS,2102896669,3000036
07.12.2018,RESIDENT SERVICES,JOHNSON FELLOWS,405,DULWICH,RENTS,2102896658,1000055871
07.12.2018,RESIDENT SERVICES,CENTRAL & CECIL HOUSING TRUST,"51,250.00",NORTHCOTT HOUSE,RENTS,2102896681,1809267
07.12.2018,RESIDENT SERVICES,RELIANCE HIGH-TECH LTD,"1,618.65",OPERATIONS/OFFICES ACCOMMODATION,MEDICAL / HEALTH & SAFETY SERVICES,5902333154,1000079374
07.12.2018,REVENUES AND BENEFITS,ARCH CONSULTING,"2,466.29",SAP PAYROLL,SOFTWARE,5902333275,1000056829
07.12.2018,REVENUES AND BENEFITS,ARCH CONSULTING,"19,905.59",SAP PAYROLL,SOFTWARE,5902333275,1000056829
07.12.2018,SOUTHWARK BUILDING SERVICES,EMPIRE BUILDERS,"6,307.49",BUSINESS SUPPORT,OTHER CONTRACTORS,2102896452,3000001466
07.12.2018,SOUTHWARK BUILDING SERVICES,MULTI-INSTALLATIONS LTD,"11,985.10",BUSINESS SUPPORT,OTHER CONTRACTORS,2102896453,3000000595
07.12.2018,SOUTHWARK BUILDING SERVICES,A & E ELKINS LTD,"15,456.08",BUSINESS SUPPORT,OTHER CONTRACTORS,2102896450,4012501
07.12.2018,SOUTHWARK BUILDING SERVICES,BRIDGEWATER ROOFING CONTRACTORS LTD,"23,676.27",BUSINESS SUPPORT,OTHER CONTRACTORS,2102896454,3000001482
07.12.2018,SOUTHWARK BUILDING SERVICES,CRATUS BUILDING SERVICES LIMITED,"48,256.99",BUSINESS SUPPORT,OTHER CONTRACTORS,2102896451,3000001055
07.12.2018,SOUTHWARK BUILDING SERVICES,E & E BUILDING SERVICES LTD,"63,402.01",BUSINESS SUPPORT,OTHER CONTRACTORS,2102896455,3000001176
07.12.2018,SOUTHWARK BUILDING SERVICES,CITY ELECTRICAL FACTORS LTD,309.62,ELECTRICAL TEAM - ELECTRICIAN,MATERIALS,5902333301,1003485
07.12.2018,SOUTHWARK BUILDING SERVICES,CITY ELECTRICAL FACTORS LTD,781.32,ELECTRICAL TEAM - ELECTRICIAN,MATERIALS,5902333212,1003485
07.12.2018,SOUTHWARK BUILDING SERVICES,CITY ELECTRICAL FACTORS LTD,850,ELECTRICAL TEAM - ELECTRICIAN,MATERIALS,5902333233,1003485
08.12.2018,ADULT SOCIAL CARE,PANCHSHEEL GLOBAL PVT LTD,"1,073.48",SAFEGUARDING TEAM,OTHER CONTRACTORS,5902332356,1000078003
08.12.2018,ASSET MANAGEMENT,HATC LTD,"1,915.00",DEVELOPMENT DELIVERY,TRAINING,5902333021,1000052676
08.12.2018,ASSET MANAGEMENT,LOCKESLEYS LTD,"1,798.13",R&M CONTRACTS (SOUTH),BUILDING R&M,5902332889,1000066272
08.12.2018,CHIEF EXECUTIVE'S OFFICE,ROYAL MENCAP SOCIETY,"31,241.00",CHIEF EXEC'S OFFICE,GRANTS,5902332333,1000034706
08.12.2018,CHILDREN'S SERVICES,OPTIMUM FOCUS COMPANY LTD,793,FAMILY GROUP CONFERENCES,EXTERNAL AGENCIES AND BODIES,5902332170,1000081322
08.12.2018,CHILDREN'S SERVICES,NORMANS MUSICAL INSTRUMENTS,272.25,LEA MUSIC SERVICE(310) - 5018566,EQUIPMENT PURCHASE & REPAIR,5902332749,1000015419
08.12.2018,CHILDREN'S SERVICES,KENT COUNTY SUPPLIES,"1,104.75",THOMAS CALTON CENTRE,GAS,5902333238,1000000291
08.12.2018,COMMUNITIES,AUDITEL RENTAL & SERVICE LTD,"4,225.00",COMMUNITY COUNCILS TEAM,COMMS & COMPUTING CONTRACT CHARGES,5902332254,1000026622
08.12.2018,CUSTOMER EXPERIENCE HGF,BIRCHAM DYSON BELL,"55,162.50",LONDON BRIDGE INQUEST,LEGAL FEES & COURT COSTS,5902332852,1000048605
08.12.2018,ENVIRONMENT AND LEISURE,CONWAY AECOM LTD,"3,449.37",CAPITAL PS (LEISURE),CONSTR'N SUB CONTRACT - NON CERTIFICATED,5902332896,1000071205
08.12.2018,ENVIRONMENT AND LEISURE,CONWAY AECOM LTD,"6,153.80",CAPITAL PS (LEISURE),CONSTR'N SUB CONTRACT - NON CERTIFICATED,5902332901,1000071205
08.12.2018,ENVIRONMENT AND LEISURE,C S G (USHERS) LTD,"4,595.00",CAPITAL PS (LEISURE),CONSTRUCTION FEES  - EXTERNAL,5902332499,1000073203
08.12.2018,ENVIRONMENT DIRECTORATE,THE T.P. PARTNERSHIP,445,ESTATE CLEANING-GENERAL,OTHER CONTRACTORS,5902332774,1000045906
08.12.2018,ENVIRONMENT DIRECTORATE,TYCO INTEGRATED FIRE & SECURITY,"3,487.20",PKG & CAR PKS CCTV,PROFESSIONAL FEES,5902332784,1000077948
08.12.2018,ENVIRONMENT DIRECTORATE,TYCO INTEGRATED FIRE & SECURITY,858.11,TOWN CENTRE CCTV,OTHER CONTRACTORS,5902332578,1000077948
08.12.2018,HOUSING HRA,UK POWER NETWORKS (OPERATIONS) LTD,"2,109.42",CAPITAL PS (HRA),CONSTRUCTION SITE COSTS,5902332392,1000016085
08.12.2018,LEISURE DIRECTORATE,WESTCO TRADING LTD,775,PLAY SERVICE MANAGEMENT & ADMIN,MARKETING & PUBLICITY SERVICES,5902332557,1000069599
08.12.2018,PLANNING AND TRANSPORT,SOUTHWARK NEWSPAPER LTD,504,DEVELOPMENT CONTROL ADMINSTRATION,MARKETING & PUBLICITY SERVICES,5902332695,1556957
08.12.2018,PUBLIC HEALTH,AIDS CARE EDUCATION AND TRAINING,"14,000.00",HEALTHY SCHOOLS (PHSE),CONSULTANTS SERVICES,5902332403,1000075909
08.12.2018,REVENUES AND BENEFITS,CAPITA SECURE INFORMATION,"1,485.00",GM SAP,SOFTWARE,5902333161,1000070739
09.12.2018,CHIEF EXECUTIVE,PLOWMAN CRAVEN LIMITED,"1,995.00",CAPITAL PS (REGEN),CONSTRUCTION FEES,5902332632,1000050360
09.12.2018,COMMISSIONING & CENTRAL,SERVELEC SYNERGY LTD,"29,630.10",C&AS SOFTWARE APPS,CONSULTANTS SERVICES,5902332778,1000077688
09.12.2018,CUSTOMER EXPERIENCE HGF,CALFORD SEADEN LLP,964.32,REGISTRARS,OFFICE EXPENSES,5902332845,1061592
09.12.2018,ENVIRONMENT DIRECTORATE,IMPERIAL JANITORIAL SUPPLIES LTD,255,ESTATE CLEANING-GENERAL,MATERIALS,5902332767,1000038126
09.12.2018,ENVIRONMENT DIRECTORATE,IMPERIAL JANITORIAL SUPPLIES LTD,965.4,ESTATE CLEANING-GENERAL,MATERIALS,5902333260,1000038126
09.12.2018,F & C S EXCLUDING CORPORATE BUDGETS,DSI BILLING SERVICES LTD,"2,027.98",ADMINISTRATIVE SUPPORT,POSTAGES,5902332919,1000058640
09.12.2018,HOUSING & MODERNISATION,THE MOBILE COFFEE BEAN,395,WEGOVNOW,HIRE OF ROOMS/HALLS,5902333150,1000081967
09.12.2018,HOUSING HRA,CALFORD SEADEN LLP,"1,002.43",CAPITAL PS (HRA),CONSTRUCTION FEES  - EXTERNAL,5902332953,1061592
09.12.2018,HOUSING HRA,CALFORD SEADEN LLP,"1,075.00",CAPITAL PS (HRA),CONSTRUCTION FEES  - EXTERNAL,5902332666,1061592
09.12.2018,HOUSING HRA,CALFORD SEADEN (HEALTH & SAFETY) LTD,"1,159.00",CAPITAL PS (HRA),CONSTRUCTION FEES  - EXTERNAL,5902332947,1097125
09.12.2018,HOUSING HRA,CALFORD SEADEN LLP,"1,664.42",CAPITAL PS (HRA),CONSTRUCTION FEES  - EXTERNAL,5902332682,1061592
09.12.2018,HOUSING HRA,CALFORD SEADEN LLP,"3,863.50",CAPITAL PS (HRA),CONSTRUCTION FEES  - EXTERNAL,5902332655,1061592
09.12.2018,HOUSING HRA,CALFORD SEADEN LLP,"28,152.10",CAPITAL PS (HRA),CONSTRUCTION FEES  - EXTERNAL,5902332914,1061592
09.12.2018,HOUSING HRA,CALFORD SEADEN LLP,"87,416.00",CAPITAL PS (HRA),CONSTRUCTION FEES  - EXTERNAL,5902332915,1061592
09.12.2018,HOUSING STRATEGY AND OPTIONS,SHELTER TRAINING LTD,"4,500.00",HOMELESSNESS TRAINING ACADEMY,TRAINING,5902332635,1000033177
09.12.2018,MODERNISATION HGF,ROYAL MAIL GROUP LTD,"1,638.91",160 TOOLEY ST.,POSTAGES,5902333044,1000008168
09.12.2018,MODERNISATION HGF,SWISS POST SOLUTIONS LTD,"9,957.73",REPAIR AND MAINTENANCE SERVICES,PRINTING,5902332570,1000073459
09.12.2018,MODERNISATION HGF,SWISS POST SOLUTIONS LTD,"33,381.20",REPAIR AND MAINTENANCE SERVICES,PRINTING,5902332570,1000073459
09.12.2018,PLANNING AND TRANSPORT,FUTURE OF LONDON 2011 LTD,"4,000.00",PLANNING POLICY TEAM,TRAINING,5902332637,1000066868
10.12.2018,ADULT SOCIAL CARE,F A ALBIN AND SONS,"3,067.00",APPOINTEESHIPS,OTHER PAYMENTS FOR CLIENTS,2102897015,11313949
10.12.2018,ADULT SOCIAL CARE,REDACTED PERSONAL DATA,266.65,APPOINTEESHIPS,OTHER PAYMENTS FOR CLIENTS,REDACTED,REDACTED
10.12.2018,ADULT SOCIAL CARE,CAREWATCH LEWISHAM,"2,143.54",MEM LTS 65+,HOMECARE - C&V,2102896870,1000042627
10.12.2018,ADULT SOCIAL CARE,CAREWATCH LEWISHAM,307.44,MH LTS 18-64,HOMECARE - C&V,2102896849,1000042627
10.12.2018,ADULT SOCIAL CARE,CAREWATCH LEWISHAM,580.72,MH LTS 65+,HOMECARE - C&V,2102896861,1000042627
10.12.2018,ADULT SOCIAL CARE,CAREWATCH LEWISHAM,597.8,MH LTS 65+,HOMECARE - C&V,2102896889,1000042627
10.12.2018,ADULT SOCIAL CARE,PC WORLD,332.5,ORIENT STREET,EQUIPMENT PURCHASE & REPAIR,5902333411,1000035760
10.12.2018,ADULT SOCIAL CARE,CAREWATCH LEWISHAM,324.52,PHY LTS 18-64,HOMECARE - C&V,2102896878,1000042627
10.12.2018,ADULT SOCIAL CARE,CAREWATCH LEWISHAM,358.68,PHY LTS 18-64,HOMECARE - C&V,2102896852,1000042627
10.12.2018,ADULT SOCIAL CARE,CAREWATCH LEWISHAM,597.8,PHY LTS 18-64,HOMECARE - C&V,2102896862,1000042627
10.12.2018,ADULT SOCIAL CARE,CAREWATCH LEWISHAM,696.01,PHY LTS 18-64,HOMECARE - C&V,2102896854,1000042627
10.12.2018,ADULT SOCIAL CARE,CAREWATCH LEWISHAM,772.87,PHY LTS 18-64,HOMECARE - C&V,2102896884,1000042627
10.12.2018,ADULT SOCIAL CARE,CAREWATCH LEWISHAM,866.81,PHY LTS 18-64,HOMECARE - C&V,2102896853,1000042627
10.12.2018,ADULT SOCIAL CARE,CAREWATCH LEWISHAM,871.08,PHY LTS 18-64,HOMECARE - C&V,2102896874,1000042627
10.12.2018,ADULT SOCIAL CARE,CAREWATCH LEWISHAM,999.18,PHY LTS 18-64,HOMECARE - C&V,2102896851,1000042627
10.12.2018,ADULT SOCIAL CARE,CAREWATCH LEWISHAM,"1,204.14",PHY LTS 18-64,HOMECARE - C&V,2102896848,1000042627
10.12.2018,ADULT SOCIAL CARE,CAREWATCH LEWISHAM,251.93,PHY LTS 65+,HOMECARE - C&V,2102896840,1000042627
10.12.2018,ADULT SOCIAL CARE,CAREWATCH LEWISHAM,273.28,PHY LTS 65+,HOMECARE - C&V,2102896863,1000042627
10.12.2018,ADULT SOCIAL CARE,CAREWATCH LEWISHAM,345.87,PHY LTS 65+,HOMECARE - C&V,2102896867,1000042627
10.12.2018,ADULT SOCIAL CARE,CAREWATCH LEWISHAM,350.14,PHY LTS 65+,HOMECARE - C&V,2102896860,1000042627
10.12.2018,ADULT SOCIAL CARE,CAREWATCH LEWISHAM,358.68,PHY LTS 65+,HOMECARE - C&V,2102896845,1000042627
10.12.2018,ADULT SOCIAL CARE,CAREWATCH LEWISHAM,358.68,PHY LTS 65+,HOMECARE - C&V,2102896856,1000042627
10.12.2018,ADULT SOCIAL CARE,CAREWATCH LEWISHAM,478.24,PHY LTS 65+,HOMECARE - C&V,2102896858,1000042627
10.12.2018,ADULT SOCIAL CARE,CAREWATCH LEWISHAM,580.72,PHY LTS 65+,HOMECARE - C&V,2102896843,1000042627
10.12.2018,ADULT SOCIAL CARE,CAREWATCH LEWISHAM,589.26,PHY LTS 65+,HOMECARE - C&V,2102896857,1000042627
10.12.2018,ADULT SOCIAL CARE,CAREWATCH LEWISHAM,597.8,PHY LTS 65+,HOMECARE - C&V,2102896886,1000042627
10.12.2018,ADULT SOCIAL CARE,CAREWATCH LEWISHAM,631.96,PHY LTS 65+,HOMECARE - C&V,2102896838,1000042627
10.12.2018,ADULT SOCIAL CARE,CAREWATCH LEWISHAM,666.12,PHY LTS 65+,HOMECARE - C&V,2102896883,1000042627
10.12.2018,ADULT SOCIAL CARE,CAREWATCH LEWISHAM,725.9,PHY LTS 65+,HOMECARE - C&V,2102896888,1000042627
10.12.2018,ADULT SOCIAL CARE,CAREWATCH LEWISHAM,768.6,PHY LTS 65+,HOMECARE - C&V,2102896855,1000042627
10.12.2018,ADULT SOCIAL CARE,CAREWATCH LEWISHAM,828.38,PHY LTS 65+,HOMECARE - C&V,2102896879,1000042627
10.12.2018,ADULT SOCIAL CARE,CAREWATCH LEWISHAM,836.92,PHY LTS 65+,HOMECARE - C&V,2102896872,1000042627
10.12.2018,ADULT SOCIAL CARE,CAREWATCH LEWISHAM,909.51,PHY LTS 65+,HOMECARE - C&V,2102896892,1000042627
10.12.2018,ADULT SOCIAL CARE,CAREWATCH LEWISHAM,956.48,PHY LTS 65+,HOMECARE - C&V,2102896877,1000042627
10.12.2018,ADULT SOCIAL CARE,CAREWATCH LEWISHAM,956.48,PHY LTS 65+,HOMECARE - C&V,2102896890,1000042627
10.12.2018,ADULT SOCIAL CARE,CAREWATCH LEWISHAM,"1,054.69",PHY LTS 65+,HOMECARE - C&V,2102896875,1000042627
10.12.2018,ADULT SOCIAL CARE,CAREWATCH LEWISHAM,"1,058.96",PHY LTS 65+,HOMECARE - C&V,2102896887,1000042627
10.12.2018,ADULT SOCIAL CARE,CAREWATCH LEWISHAM,"1,076.04",PHY LTS 65+,HOMECARE - C&V,2102896871,1000042627
10.12.2018,ADULT SOCIAL CARE,CAREWATCH LEWISHAM,"1,076.04",PHY LTS 65+,HOMECARE - C&V,2102896894,1000042627
10.12.2018,ADULT SOCIAL CARE,CAREWATCH LEWISHAM,"1,473.15",PHY LTS 65+,HOMECARE - C&V,2102896881,1000042627
10.12.2018,ADULT SOCIAL CARE,CAREWATCH LEWISHAM,"1,699.46",PHY LTS 65+,HOMECARE - C&V,2102896876,1000042627
10.12.2018,ADULT SOCIAL CARE,CAREWATCH LEWISHAM,"1,874.53",PHY LTS 65+,HOMECARE - C&V,2102896896,1000042627
10.12.2018,ADULT SOCIAL CARE,CAREWATCH LEWISHAM,"2,668.75",PHY LTS 65+,HOMECARE - C&V,2102896850,1000042627
10.12.2018,ADULT SOCIAL CARE,CAREWATCH LEWISHAM,"2,681.56",PHY LTS 65+,HOMECARE - C&V,2102896844,1000042627
10.12.2018,ADULT SOCIAL CARE,CAREWATCH LEWISHAM,"3,014.62",PHY LTS 65+,HOMECARE - C&V,2102896868,1000042627
10.12.2018,ADULT SOCIAL CARE,METRO HOMECARE LTD,323.85,PHY LTS 65+,HOMECARE - SPOT,2102896822,1000070695
10.12.2018,ADULT SOCIAL CARE,YOUTH GRACES (UK) LTD,512.84,PHY LTS 65+,HOMECARE - SPOT,2102896819,1000072524
10.12.2018,ADULT SOCIAL CARE,CONCEPT CARE SOLUTIONS LTD,714,PHY LTS 65+,HOMECARE - SPOT,2102896975,1000081790
10.12.2018,ADULT SOCIAL CARE,LAMBETH CHINESE COMMUNITY ASSOCIATION,753.3,PHY LTS 65+,HOMECARE - SPOT,2102896971,11117038
10.12.2018,ADULT SOCIAL CARE,LAMBETH CHINESE COMMUNITY ASSOCIATION,777.6,PHY LTS 65+,HOMECARE - SPOT,2102896973,11117038
10.12.2018,ADULT SOCIAL CARE,WESTMINSTER HOMECARE LTD,"1,290.16",PHY LTS 65+,HOMECARE - SPOT,2102896824,1000075287
10.12.2018,ADULT SOCIAL CARE,LAMBETH CHINESE COMMUNITY ASSOCIATION,"2,608.20",PHY LTS 65+,HOMECARE - SPOT,2102896974,11117038
10.12.2018,ADULT SOCIAL CARE,CONCEPT CARE SOLUTIONS LTD,267.75,PHY STS 65+,HOMECARE - IC,2102896977,1000081790
10.12.2018,ADULT SOCIAL CARE,CAREWATCH LEWISHAM,593.53,PHY STS 65+,HOMECARE - IC,2102896859,1000042627
10.12.2018,ADULT SOCIAL CARE,F A ALBIN AND SONS,900,PUBLIC FUNERALS S.46,OTHER CONTRACTORS,5902333353,11313949
10.12.2018,ADULT SOCIAL CARE,CAREWATCH LEWISHAM,409.92,SEN LTS 65+,HOMECARE - C&V,2102896891,1000042627
10.12.2018,ADULT SOCIAL CARE,POSTURE PEOPLE LTD,310.25,SERVICE DEV MGMT,OFFICE EXPENSES,5902333413,1000078441
10.12.2018,ADULT SOCIAL CARE,CAREWATCH LEWISHAM,"1,298.08",SOCIAL ISOLATION,HOMECARE - C&V,2102896839,1000042627
10.12.2018,ADULT SOCIAL CARE,SHARED CARE SERVICES LTD,256,SPECIALIST CARE,SECTION 17 PAYMENTS TO AGENCIES/CARERS,2102896727,1000080308
10.12.2018,ADULT SOCIAL CARE,INTERSERVE HEALTHCARE,719.74,SPECIALIST CARE,SECTION 17 PAYMENTS TO AGENCIES/CARERS,2102896729,1000049612
10.12.2018,ADULT SOCIAL CARE,INTERSERVE HEALTHCARE,254.14,TRANSITIONS 14-18YRS,SECTION 17 PAYMENTS TO AGENCIES/CARERS,2102896721,1000049612
10.12.2018,ADULT SOCIAL CARE,INTERSERVE HEALTHCARE,350.68,TRANSITIONS 14-18YRS,SECTION 17 PAYMENTS TO AGENCIES/CARERS,2102896725,1000049612
10.12.2018,ASSET MANAGEMENT,FRASER BROWN MACKENNA LTD,"8,755.00",DEVELOPMENT DELIVERY,PROFESSIONAL FEES,5902333144,1000081651
10.12.2018,ASSET MANAGEMENT,BB7 FIRE LTD,"11,138.00",HEALTH AND SAFETY,PROFESSIONAL FEES,5902333443,1000079759
10.12.2018,ASSET MANAGEMENT,BUILDTRUST LTD,336.22,R&M CONTRACTS (SOUTH),BUILDING R&M,2102897017,3000002010
10.12.2018,ASSET MANAGEMENT,BUILDTRUST LTD,"1,405.31",R&M CONTRACTS (SOUTH),BUILDING R&M,2102897019,3000002010
10.12.2018,ASSET MANAGEMENT,BUILDTRUST LTD,"3,295.06",R&M CONTRACTS (SOUTH),BUILDING R&M,2102897017,3000002010
10.12.2018,ASSET MANAGEMENT,BUILDTRUST LTD,"5,474.31",R&M CONTRACTS (SOUTH),BUILDING R&M,2102897018,3000002010
10.12.2018,ASSET MANAGEMENT,BUILDTRUST LTD,"11,477.00",R&M CONTRACTS (SOUTH),BUILDING R&M,2102897016,3000002010
10.12.2018,ASSET MANAGEMENT,MASHER BROTHERS LTD,"30,861.93",R&M CONTRACTS (SOUTH),BUILDING R&M,2102897020,3000001100
10.12.2018,CENTRAL FUNCTIONS,SYSTEM CONCEPTS LTD,850,COMMERCIAL PROPERTIES,PROFESSIONAL FEES,5902333358,1000081220
10.12.2018,CHIEF EXECUTIVE,CONWAY AECOM LTD,"5,019.66",CAPITAL PS (REGEN),CONSTR'N SUB CONTRACT - NON CERTIFICATED,5902332923,1000071205
10.12.2018,CHIEF EXECUTIVE,CONWAY AECOM LTD,"11,144.35",CAPITAL PS (REGEN),CONSTR'N SUB CONTRACT - NON CERTIFICATED,5902332944,1000071205
10.12.2018,CHIEF EXECUTIVE,CONWAY AECOM LTD,"11,974.98",CAPITAL PS (REGEN),CONSTR'N SUB CONTRACT - NON CERTIFICATED,5902332949,1000071205
10.12.2018,CHIEF EXECUTIVE,CONWAY AECOM LTD,"12,706.49",CAPITAL PS (REGEN),CONSTR'N SUB CONTRACT - NON CERTIFICATED,5902333408,1000071205
10.12.2018,CHIEF EXECUTIVE,CONWAY AECOM LTD,"13,109.34",CAPITAL PS (REGEN),CONSTR'N SUB CONTRACT - NON CERTIFICATED,5902332941,1000071205
10.12.2018,CHIEF EXECUTIVE,CONWAY AECOM LTD,718.39,CAPITAL PS (REGEN),CONSTRUCTION,5902333324,1000071205
10.12.2018,CHIEF EXECUTIVE,CONWAY AECOM LTD,"2,844.34",CAPITAL PS (REGEN),CONSTRUCTION,5902332871,1000071205
10.12.2018,CHIEF EXECUTIVE,CONWAY AECOM LTD,"7,066.65",CAPITAL PS (REGEN),CONSTRUCTION,5902332844,1000071205
10.12.2018,CHIEF EXECUTIVE,SANCHEZ BENTON ARCHITECTS LTD,"1,175.10",CAPITAL PS (REGEN),CONSTRUCTION FEES - ARCHITECT,5902333374,1000080367
10.12.2018,CHIEF EXECUTIVE'S OFFICE,BENSON SEDGWICK,"16,500.00",HERNE HILL,GRANTS,5902332885,1000080835
10.12.2018,CHILDREN AND ADULT,GL HEARN LTD,"3,250.00",CAPITAL PS (EDUCATION),CONSTRUCTION FEES,5902333322,1000051282
10.12.2018,CHILDREN AND ADULT,PDC CONSTRUCTION SERVICES LTD,"8,747.03",CAPITAL PS (EDUCATION),CONSTRUCTION SITE COSTS,2102896694,3000001841
10.12.2018,CHILDREN'S SERVICES,IMAGO LTD,"13,353.10",ACTION FOR CHILDRENS,EXTERNAL AGENCIES AND BODIES,5902333427,1000076913
10.12.2018,CHILDREN'S SERVICES,THE FAMILY PLACE LTD,"2,065.00",ADOPTION REFORM GRANT (PART B),PROFESSIONAL FEES,5902333355,1000077965
10.12.2018,CHILDREN'S SERVICES,GREATER LONDON FOSTERING,"-1,200.00",AGENCY FOSTERING,EXTERNAL AGENCIES AND BODIES,2102887340,1000029184
10.12.2018,CHILDREN'S SERVICES,NATIONAL FOSTERING AGENCY,294,AGENCY FOSTERING,EXTERNAL AGENCIES AND BODIES,2102896986,1000038868
10.12.2018,CHILDREN'S SERVICES,GREATER LONDON FOSTERING,600,AGENCY FOSTERING,EXTERNAL AGENCIES AND BODIES,2102896998,1000029184
10.12.2018,CHILDREN'S SERVICES,SWIIS FOSTER CARE LTD,697.97,AGENCY FOSTERING,EXTERNAL AGENCIES AND BODIES,2102897003,1000069633
10.12.2018,CHILDREN'S SERVICES,TIME FOR CHILDREN LTD,"1,484.59",AGENCY FOSTERING,EXTERNAL AGENCIES AND BODIES,2102896806,1000024439
10.12.2018,CHILDREN'S SERVICES,TACT,"2,622.00",AGENCY FOSTERING,EXTERNAL AGENCIES AND BODIES,2102896810,1000012941
10.12.2018,CHILDREN'S SERVICES,TACT,"2,622.00",AGENCY FOSTERING,EXTERNAL AGENCIES AND BODIES,2102896813,1000012941
10.12.2018,CHILDREN'S SERVICES,TACT,"2,622.00",AGENCY FOSTERING,EXTERNAL AGENCIES AND BODIES,2102896814,1000012941
10.12.2018,CHILDREN'S SERVICES,TACT,"2,821.50",AGENCY FOSTERING,EXTERNAL AGENCIES AND BODIES,2102896799,1000012941
10.12.2018,CHILDREN'S SERVICES,TACT,"3,060.00",AGENCY FOSTERING,EXTERNAL AGENCIES AND BODIES,2102896798,1000012941
10.12.2018,CHILDREN'S SERVICES,TACT,"3,060.00",AGENCY FOSTERING,EXTERNAL AGENCIES AND BODIES,2102896807,1000012941
10.12.2018,CHILDREN'S SERVICES,GREATER LONDON FOSTERING,"3,116.40",AGENCY FOSTERING,EXTERNAL AGENCIES AND BODIES,2102896992,1000029184
10.12.2018,CHILDREN'S SERVICES,FOSTERING FOR YOU LTD,"3,165.69",AGENCY FOSTERING,EXTERNAL AGENCIES AND BODIES,2102896802,1000080380
10.12.2018,CHILDREN'S SERVICES,FOSTERING FOR YOU LTD,"3,165.69",AGENCY FOSTERING,EXTERNAL AGENCIES AND BODIES,2102896808,1000080380
10.12.2018,CHILDREN'S SERVICES,GREATER LONDON FOSTERING,"3,180.00",AGENCY FOSTERING,EXTERNAL AGENCIES AND BODIES,2102896994,1000029184
10.12.2018,CHILDREN'S SERVICES,GREATER LONDON FOSTERING,"3,180.00",AGENCY FOSTERING,EXTERNAL AGENCIES AND BODIES,2102897000,1000029184
10.12.2018,CHILDREN'S SERVICES,THE FOSTER CARE AGENCY LTD,"3,278.70",AGENCY FOSTERING,EXTERNAL AGENCIES AND BODIES,2102896999,1000043235
10.12.2018,CHILDREN'S SERVICES,FOSTERING FOR YOU LTD,"3,332.31",AGENCY FOSTERING,EXTERNAL AGENCIES AND BODIES,2102896801,1000080380
10.12.2018,CHILDREN'S SERVICES,FOSTERING FOR YOU LTD,"3,332.31",AGENCY FOSTERING,EXTERNAL AGENCIES AND BODIES,2102896803,1000080380
10.12.2018,CHILDREN'S SERVICES,FOSTERING FOR YOU LTD,"3,332.31",AGENCY FOSTERING,EXTERNAL AGENCIES AND BODIES,2102896805,1000080380
10.12.2018,CHILDREN'S SERVICES,NATIONAL FOSTERING AGENCY,"3,342.90",AGENCY FOSTERING,EXTERNAL AGENCIES AND BODIES,2102896996,1000038868
10.12.2018,CHILDREN'S SERVICES,GREATER LONDON FOSTERING,"3,403.50",AGENCY FOSTERING,EXTERNAL AGENCIES AND BODIES,2102897007,1000029184
10.12.2018,CHILDREN'S SERVICES,ORANGE GROVE FOSTERCARE LTD,"3,480.00",AGENCY FOSTERING,EXTERNAL AGENCIES AND BODIES,2102896797,1000078716
10.12.2018,CHILDREN'S SERVICES,ORANGE GROVE FOSTERCARE LTD,"3,480.00",AGENCY FOSTERING,EXTERNAL AGENCIES AND BODIES,2102896809,1000078716
10.12.2018,CHILDREN'S SERVICES,FAMILY FIRST FOSTERING LTD,"3,573.54",AGENCY FOSTERING,EXTERNAL AGENCIES AND BODIES,2102896804,1000080631
10.12.2018,CHILDREN'S SERVICES,DIVERSITY FOSTER CARE LTD,"3,976.16",AGENCY FOSTERING,EXTERNAL AGENCIES AND BODIES,2102896983,1000081399
10.12.2018,CHILDREN'S SERVICES,DIVERSITY FOSTER CARE LTD,"3,976.16",AGENCY FOSTERING,EXTERNAL AGENCIES AND BODIES,2102896997,1000081399
10.12.2018,CHILDREN'S SERVICES,NATIONAL FOSTERING AGENCY,"4,116.00",AGENCY FOSTERING,EXTERNAL AGENCIES AND BODIES,2102896989,1000038868
10.12.2018,CHILDREN'S SERVICES,NATIONAL FOSTERING AGENCY,"4,264.20",AGENCY FOSTERING,EXTERNAL AGENCIES AND BODIES,2102896984,1000038868
10.12.2018,CHILDREN'S SERVICES,NATIONAL FOSTERING AGENCY,"4,264.20",AGENCY FOSTERING,EXTERNAL AGENCIES AND BODIES,2102896985,1000038868
10.12.2018,CHILDREN'S SERVICES,NATIONAL FOSTERING AGENCY,"4,264.20",AGENCY FOSTERING,EXTERNAL AGENCIES AND BODIES,2102897001,1000038868
10.12.2018,CHILDREN'S SERVICES,NATIONAL FOSTERING AGENCY,"4,264.20",AGENCY FOSTERING,EXTERNAL AGENCIES AND BODIES,2102897004,1000038868
10.12.2018,CHILDREN'S SERVICES,NATIONAL FOSTERING AGENCY,"4,264.20",AGENCY FOSTERING,EXTERNAL AGENCIES AND BODIES,2102897008,1000038868
10.12.2018,CHILDREN'S SERVICES,GREATER LONDON FOSTERING,"4,281.30",AGENCY FOSTERING,EXTERNAL AGENCIES AND BODIES,2102896993,1000029184
10.12.2018,CHILDREN'S SERVICES,BANYA FAMILY PLACEMENT AGENCY LTD,"4,363.80",AGENCY FOSTERING,EXTERNAL AGENCIES AND BODIES,2102896800,11328315
10.12.2018,CHILDREN'S SERVICES,NATIONAL FOSTERING AGENCY,"4,410.00",AGENCY FOSTERING,EXTERNAL AGENCIES AND BODIES,2102897009,1000038868
10.12.2018,CHILDREN'S SERVICES,NATIONAL FOSTERING AGENCY,"4,478.40",AGENCY FOSTERING,EXTERNAL AGENCIES AND BODIES,2102896988,1000038868
10.12.2018,CHILDREN'S SERVICES,GREATER LONDON FOSTERING,"4,495.50",AGENCY FOSTERING,EXTERNAL AGENCIES AND BODIES,2102896991,1000029184
10.12.2018,CHILDREN'S SERVICES,FOSTERING SUPPORT GROUP LTD,"4,799.76",AGENCY FOSTERING,EXTERNAL AGENCIES AND BODIES,2102896812,1000065830
10.12.2018,CHILDREN'S SERVICES,NATIONAL FOSTERING AGENCY,"5,044.20",AGENCY FOSTERING,EXTERNAL AGENCIES AND BODIES,2102897002,1000038868
10.12.2018,CHILDREN'S SERVICES,FOLLOWING WHISPERS FAMILY SERVICE LTD,"6,315.00",AGENCY FOSTERING,EXTERNAL AGENCIES AND BODIES,2102897005,1000065611
10.12.2018,CHILDREN'S SERVICES,FIVE RIVERS CHILD CARE LTD,"6,317.14",AGENCY FOSTERING,EXTERNAL AGENCIES AND BODIES,2102896995,1000018792
10.12.2018,CHILDREN'S SERVICES,FOLLOWING WHISPERS FAMILY SERVICE LTD,"6,642.90",AGENCY FOSTERING,EXTERNAL AGENCIES AND BODIES,2102896990,1000065611
10.12.2018,CHILDREN'S SERVICES,GREATER LONDON FOSTERING,"7,140.00",AGENCY FOSTERING,EXTERNAL AGENCIES AND BODIES,2102896987,1000029184
10.12.2018,CHILDREN'S SERVICES,GUARANTEED TRAINING LTD,"1,250.00",CHILDRENS CENTRE,GENERAL SALES,5902333325,1000066767
10.12.2018,CHILDREN'S SERVICES,AIDHOUR LIMITED,296.7,CLA TEAM SAFEGUARDING,PROFESSIONAL FEES,5902333369,1000057345
10.12.2018,CHILDREN'S SERVICES,AIDHOUR LIMITED,379.65,CLA TEAM SAFEGUARDING,PROFESSIONAL FEES,5902333403,1000057345
10.12.2018,CHILDREN'S SERVICES,AIDHOUR LIMITED,391.65,CLA TEAM SAFEGUARDING,PROFESSIONAL FEES,5902333368,1000057345
10.12.2018,CHILDREN'S SERVICES,AIDHOUR LIMITED,690.9,CLA TEAM SAFEGUARDING,PROFESSIONAL FEES,5902333371,1000057345
10.12.2018,CHILDREN'S SERVICES,AIDHOUR LIMITED,701.3,CLA TEAM SAFEGUARDING,PROFESSIONAL FEES,5902333372,1000057345
10.12.2018,CHILDREN'S SERVICES,NCFE,"1,284.00",DIRECT DELIVERY,MATERIALS,5902333332,1000048913
10.12.2018,CHILDREN'S SERVICES,REDACTED PERSONAL DATA,300,DISABILITY & HIV,ADDITIONAL PAYMENTS TO AGENCIES/CARERS,REDACTED,REDACTED
10.12.2018,CHILDREN'S SERVICES,REDACTED PERSONAL DATA,300,DISABILITY & HIV,ADDITIONAL PAYMENTS TO AGENCIES/CARERS,REDACTED,REDACTED
10.12.2018,CHILDREN'S SERVICES,REDACTED PERSONAL DATA,300,DISABILITY & HIV,OTHER PAYMENTS FOR CLIENTS,REDACTED,REDACTED
10.12.2018,CHILDREN'S SERVICES,REDACTED PERSONAL DATA,750,DISABILITY & HIV,PAYMENTS TO CARERS,REDACTED,REDACTED
10.12.2018,CHILDREN'S SERVICES,OPTIMUM FOCUS COMPANY LTD,615.34,FAMILY GROUP CONFERENCES,EXTERNAL AGENCIES AND BODIES,5902333016,1000081322
10.12.2018,CHILDREN'S SERVICES,OPTIMUM FOCUS COMPANY LTD,"1,227.42",FAMILY GROUP CONFERENCES,EXTERNAL AGENCIES AND BODIES,5902333017,1000081322
10.12.2018,CHILDREN'S SERVICES,REDACTED PERSONAL DATA,300,FRIENDS & FAMILY FOSTERING,ADDITIONAL PAYMENTS TO AGENCIES/CARERS,REDACTED,REDACTED
10.12.2018,CHILDREN'S SERVICES,REDACTED PERSONAL DATA,300,FRIENDS & FAMILY FOSTERING,OTHER PAYMENTS FOR CLIENTS,REDACTED,REDACTED
10.12.2018,CHILDREN'S SERVICES,SIAN MATHIAS,400,GOVERNOR TRAINING,CONSULTANTS SERVICES,5902333370,1000080305
10.12.2018,CHILDREN'S SERVICES,JOHN GUEST SAFEGUARDING LIMITED,325,GOVERNOR TRAINING,CONSULTANTS SERVICES,5902333384,1000065465
10.12.2018,CHILDREN'S SERVICES,JOHN GUEST SAFEGUARDING LIMITED,325,GOVERNOR TRAINING,CONSULTANTS SERVICES,5902333385,1000065465
